Departmental Family,Entity,Date,Expense Type,Expense Area,Supplier ,Transaction Number,Amount
DEPARTMENT FOR EDUCATION,DEPARTMENT FOR EDUCATION,12/05/2010,CAPITAL GRANTS,School Formation and Investment Group,DARWEN ACADEMY,1000150,1673130.74
DEPARTMENT FOR EDUCATION,DEPARTMENT FOR EDUCATION,12/05/2010,CURRENT GRANTS,Children and Families Early Years Extended Schools and Special Needs,DITTAS SPLD TRAINING,1000151,67700
DEPARTMENT FOR EDUCATION,TEACHERS PENSION SCHEME,12/05/2010,FUNDING TO PAY TEACHERS PENSIONS,Workforce Group Young - TPS,CAPITA TP NATWEST,1000156,15383486.05
DEPARTMENT FOR EDUCATION,DEPARTMENT FOR EDUCATION,12/05/2010,GRANT IN AID,School Resources Group,PARTNERSHIPS FOR SCHOOLS,2000145,91155083
DEPARTMENT FOR EDUCATION,DEPARTMENT FOR EDUCATION,12/05/2010,CONTRACT PROGRAMME EXPENDITURE,School Formation and Investment Group,APPLEYARDS LTD,4000023677,85700.67
DEPARTMENT FOR EDUCATION,DEPARTMENT FOR EDUCATION,12/05/2010,STAFF EXPENSES / COSTS,Chief Information Officer Group,CARLSON WAGONLIT TRAVEL,4000023683,-356.3
DEPARTMENT FOR EDUCATION,DEPARTMENT FOR EDUCATION,12/05/2010,STAFF EXPENSES / COSTS,Young People Talent Task Force Division,CARLSON WAGONLIT TRAVEL,4000023683,-269.82
DEPARTMENT FOR EDUCATION,DEPARTMENT FOR EDUCATION,12/05/2010,STAFF EXPENSES / COSTS,Commercial Group Shared Services and Children and Young People,CARLSON WAGONLIT TRAVEL,4000023683,-260.73
DEPARTMENT FOR EDUCATION,DEPARTMENT FOR EDUCATION,12/05/2010,STAFF EXPENSES / COSTS,Children and Families Supporting Delivery Group,CARLSON WAGONLIT TRAVEL,4000023683,-229.32
DEPARTMENT FOR EDUCATION,DEPARTMENT FOR EDUCATION,12/05/2010,STAFF EXPENSES / COSTS,Commercial Group EFM,CARLSON WAGONLIT TRAVEL,4000023683,-206.74
DEPARTMENT FOR EDUCATION,DEPARTMENT FOR EDUCATION,12/05/2010,STAFF EXPENSES / COSTS,Commercial Group Schools and Category Management,CARLSON WAGONLIT TRAVEL,4000023683,-162.39
DEPARTMENT FOR EDUCATION,DEPARTMENT FOR EDUCATION,12/05/2010,STAFF EXPENSES / COSTS,School Standards Group,CARLSON WAGONLIT TRAVEL,4000023683,-148.68
DEPARTMENT FOR EDUCATION,DEPARTMENT FOR EDUCATION,12/05/2010,STAFF EXPENSES / COSTS,Children and Families Child Well Being Group,CARLSON WAGONLIT TRAVEL,4000023683,-142.44
DEPARTMENT FOR EDUCATION,DEPARTMENT FOR EDUCATION,12/05/2010,STAFF EXPENSES / COSTS,Children and Families Safeguarding Group,CARLSON WAGONLIT TRAVEL,4000023683,-118.92
DEPARTMENT FOR EDUCATION,DEPARTMENT FOR EDUCATION,12/05/2010,STAFF EXPENSES / COSTS,Children and Families Child Well Being Group,CARLSON WAGONLIT TRAVEL,4000023683,-99.32
DEPARTMENT FOR EDUCATION,DEPARTMENT FOR EDUCATION,12/05/2010,STAFF EXPENSES / COSTS,School Resources Group,CARLSON WAGONLIT TRAVEL,4000023683,-77.98
DEPARTMENT FOR EDUCATION,DEPARTMENT FOR EDUCATION,12/05/2010,STAFF EXPENSES / COSTS,Corporate and Internal Communications Group,CARLSON WAGONLIT TRAVEL,4000023683,-75.07
DEPARTMENT FOR EDUCATION,DEPARTMENT FOR EDUCATION,12/05/2010,STAFF EXPENSES / COSTS,People and Change,CARLSON WAGONLIT TRAVEL,4000023683,-65
DEPARTMENT FOR EDUCATION,DEPARTMENT FOR EDUCATION,12/05/2010,STAFF EXPENSES / COSTS,Children and Families Supporting Delivery Group,CARLSON WAGONLIT TRAVEL,4000023683,-63.99
DEPARTMENT FOR EDUCATION,DEPARTMENT FOR EDUCATION,12/05/2010,STAFF EXPENSES / COSTS,Curriculum and Pupil Well Being Curriculum Unit,CARLSON WAGONLIT TRAVEL,4000023683,-54.99
DEPARTMENT FOR EDUCATION,DEPARTMENT FOR EDUCATION,12/05/2010,STAFF EXPENSES / COSTS,Commercial Group Shared Services and Children and Young People,CARLSON WAGONLIT TRAVEL,4000023683,-45.69
DEPARTMENT FOR EDUCATION,DEPARTMENT FOR EDUCATION,12/05/2010,STAFF EXPENSES / COSTS,Young People Quality Standards and Reform Group,CARLSON WAGONLIT TRAVEL,4000023683,-42.91
DEPARTMENT FOR EDUCATION,DEPARTMENT FOR EDUCATION,12/05/2010,STAFF EXPENSES / COSTS,Children and Families Group,CARLSON WAGONLIT TRAVEL,4000023683,-36.63
DEPARTMENT FOR EDUCATION,DEPARTMENT FOR EDUCATION,12/05/2010,STAFF EXPENSES / COSTS,Private Office ,CARLSON WAGONLIT TRAVEL,4000023683,-32.34
DEPARTMENT FOR EDUCATION,DEPARTMENT FOR EDUCATION,12/05/2010,STAFF EXPENSES / COSTS,Chief Information Officer Group,CARLSON WAGONLIT TRAVEL,4000023683,-26.43
DEPARTMENT FOR EDUCATION,DEPARTMENT FOR EDUCATION,12/05/2010,STAFF EXPENSES / COSTS,Private Office ,CARLSON WAGONLIT TRAVEL,4000023683,-20.52
DEPARTMENT FOR EDUCATION,DEPARTMENT FOR EDUCATION,12/05/2010,STAFF EXPENSES / COSTS,Chief Information Officer Group,CARLSON WAGONLIT TRAVEL,4000023683,-13
DEPARTMENT FOR EDUCATION,DEPARTMENT FOR EDUCATION,12/05/2010,STAFF EXPENSES / COSTS,14 - 19 Reform Qualification Standards and Reform,CARLSON WAGONLIT TRAVEL,4000023683,-12.97
DEPARTMENT FOR EDUCATION,DEPARTMENT FOR EDUCATION,12/05/2010,STAFF EXPENSES / COSTS,Curriculum and Pupil Well Being Unit,CARLSON WAGONLIT TRAVEL,4000023683,-11.75
DEPARTMENT FOR EDUCATION,DEPARTMENT FOR EDUCATION,12/05/2010,STAFF EXPENSES / COSTS,School Performance and Reform Group,CARLSON WAGONLIT TRAVEL,4000023683,-11.75
DEPARTMENT FOR EDUCATION,DEPARTMENT FOR EDUCATION,12/05/2010,STAFF EXPENSES / COSTS,School Standards Group,CARLSON WAGONLIT TRAVEL,4000023683,-10
DEPARTMENT FOR EDUCATION,DEPARTMENT FOR EDUCATION,12/05/2010,STAFF EXPENSES / COSTS,Children and Families Group,CARLSON WAGONLIT TRAVEL,4000023683,-9.66
DEPARTMENT FOR EDUCATION,DEPARTMENT FOR EDUCATION,12/05/2010,STAFF EXPENSES / COSTS,Young People Participation and Attainment Group,CARLSON WAGONLIT TRAVEL,4000023683,-7.07
DEPARTMENT FOR EDUCATION,DEPARTMENT FOR EDUCATION,12/05/2010,STAFF EXPENSES / COSTS,School Formation and Investment Group,CARLSON WAGONLIT TRAVEL,4000023683,-1.22
DEPARTMENT FOR EDUCATION,DEPARTMENT FOR EDUCATION,12/05/2010,STAFF EXPENSES / COSTS,Commercial Group Shared Services and Children and Young People,CARLSON WAGONLIT TRAVEL,4000023683,5.56
DEPARTMENT FOR EDUCATION,DEPARTMENT FOR EDUCATION,12/05/2010,STAFF EXPENSES / COSTS,Commercial Group EFM,CARLSON WAGONLIT TRAVEL,4000023683,16.78
DEPARTMENT FOR EDUCATION,DEPARTMENT FOR EDUCATION,12/05/2010,STAFF EXPENSES / COSTS,Private Office ,CARLSON WAGONLIT TRAVEL,4000023683,18.78
DEPARTMENT FOR EDUCATION,DEPARTMENT FOR EDUCATION,12/05/2010,MANAGEMENT CONSULTANCY,Children and Families Group,CARLSON WAGONLIT TRAVEL,4000023683,21.57
DEPARTMENT FOR EDUCATION,DEPARTMENT FOR EDUCATION,12/05/2010,STAFF EXPENSES / COSTS,Curriculum and Pupil Well Being Curriculum Unit,CARLSON WAGONLIT TRAVEL,4000023683,22.47
DEPARTMENT FOR EDUCATION,DEPARTMENT FOR EDUCATION,12/05/2010,STAFF EXPENSES / COSTS,School Standards Group,CARLSON WAGONLIT TRAVEL,4000023683,23.56
DEPARTMENT FOR EDUCATION,DEPARTMENT FOR EDUCATION,12/05/2010,STAFF EXPENSES / COSTS,School Standards Group,CARLSON WAGONLIT TRAVEL,4000023683,25.88
DEPARTMENT FOR EDUCATION,DEPARTMENT FOR EDUCATION,12/05/2010,STAFF EXPENSES / COSTS,Curriculum and Pupil Well Being Curriculum Unit,CARLSON WAGONLIT TRAVEL,4000023683,28.97
DEPARTMENT FOR EDUCATION,DEPARTMENT FOR EDUCATION,12/05/2010,STAFF EXPENSES / COSTS,Curriculum and Pupil Well Being Curriculum Unit,CARLSON WAGONLIT TRAVEL,4000023683,35.98
DEPARTMENT FOR EDUCATION,DEPARTMENT FOR EDUCATION,12/05/2010,STAFF EXPENSES / COSTS,Customer Contact and Business Development Group,CARLSON WAGONLIT TRAVEL,4000023683,40.97
DEPARTMENT FOR EDUCATION,DEPARTMENT FOR EDUCATION,12/05/2010,STAFF EXPENSES / COSTS,School Analysis and Research,CARLSON WAGONLIT TRAVEL,4000023683,41.78
DEPARTMENT FOR EDUCATION,DEPARTMENT FOR EDUCATION,12/05/2010,STAFF EXPENSES / COSTS,Commercial Group EFM,CARLSON WAGONLIT TRAVEL,4000023683,41.93
DEPARTMENT FOR EDUCATION,DEPARTMENT FOR EDUCATION,12/05/2010,STAFF EXPENSES / COSTS,Children and Families Directorate Support,CARLSON WAGONLIT TRAVEL,4000023683,43.42
DEPARTMENT FOR EDUCATION,DEPARTMENT FOR EDUCATION,12/05/2010,STAFF EXPENSES / COSTS,People and Change,CARLSON WAGONLIT TRAVEL,4000023683,45.69
DEPARTMENT FOR EDUCATION,DEPARTMENT FOR EDUCATION,12/05/2010,STAFF EXPENSES / COSTS,Young People Quality Standards and Reform Group,CARLSON WAGONLIT TRAVEL,4000023683,50.85
DEPARTMENT FOR EDUCATION,DEPARTMENT FOR EDUCATION,12/05/2010,STAFF EXPENSES / COSTS,School Analysis and Research,CARLSON WAGONLIT TRAVEL,4000023683,54.89
DEPARTMENT FOR EDUCATION,DEPARTMENT FOR EDUCATION,12/05/2010,STAFF EXPENSES / COSTS,Commercial Group Shared Services and Children and Young People,CARLSON WAGONLIT TRAVEL,4000023683,65.55
DEPARTMENT FOR EDUCATION,DEPARTMENT FOR EDUCATION,12/05/2010,STAFF EXPENSES / COSTS,School Performance and Reform Group,CARLSON WAGONLIT TRAVEL,4000023683,71.3
DEPARTMENT FOR EDUCATION,DEPARTMENT FOR EDUCATION,12/05/2010,STAFF EXPENSES / COSTS,School Standards Group,CARLSON WAGONLIT TRAVEL,4000023683,100.69
DEPARTMENT FOR EDUCATION,DEPARTMENT FOR EDUCATION,12/05/2010,STAFF EXPENSES / COSTS,"Strategic Analysis, Research and Policy Impact Group",CARLSON WAGONLIT TRAVEL,4000023683,102.57
DEPARTMENT FOR EDUCATION,DEPARTMENT FOR EDUCATION,12/05/2010,STAFF EXPENSES / COSTS,Press Office Group,CARLSON WAGONLIT TRAVEL,4000023683,115.12
DEPARTMENT FOR EDUCATION,DEPARTMENT FOR EDUCATION,12/05/2010,STAFF EXPENSES / COSTS,Corporate Services Strategy and Performance,CARLSON WAGONLIT TRAVEL,4000023683,115.69
DEPARTMENT FOR EDUCATION,DEPARTMENT FOR EDUCATION,12/05/2010,STAFF EXPENSES / COSTS,School Standards Group,CARLSON WAGONLIT TRAVEL,4000023683,123.04
DEPARTMENT FOR EDUCATION,DEPARTMENT FOR EDUCATION,12/05/2010,STAFF EXPENSES / COSTS,Children and Families Early Years Extended Schools and Special Needs,CARLSON WAGONLIT TRAVEL,4000023683,132.32
DEPARTMENT FOR EDUCATION,DEPARTMENT FOR EDUCATION,12/05/2010,STAFF EXPENSES / COSTS,Children and Families Early Years Extended Schools and Special Needs,CARLSON WAGONLIT TRAVEL,4000023683,136.95
DEPARTMENT FOR EDUCATION,DEPARTMENT FOR EDUCATION,12/05/2010,STAFF EXPENSES / COSTS,People and Change,CARLSON WAGONLIT TRAVEL,4000023683,141.51
DEPARTMENT FOR EDUCATION,DEPARTMENT FOR EDUCATION,12/05/2010,STAFF EXPENSES / COSTS,People and Change,CARLSON WAGONLIT TRAVEL,4000023683,142
DEPARTMENT FOR EDUCATION,DEPARTMENT FOR EDUCATION,12/05/2010,STAFF EXPENSES / COSTS,Commercial Group EFM,CARLSON WAGONLIT TRAVEL,4000023683,142.94
DEPARTMENT FOR EDUCATION,DEPARTMENT FOR EDUCATION,12/05/2010,STAFF EXPENSES / COSTS,Commercial Group EFM,CARLSON WAGONLIT TRAVEL,4000023683,144.24
DEPARTMENT FOR EDUCATION,DEPARTMENT FOR EDUCATION,12/05/2010,STAFF EXPENSES / COSTS,School Standards Group,CARLSON WAGONLIT TRAVEL,4000023683,146.74
DEPARTMENT FOR EDUCATION,DEPARTMENT FOR EDUCATION,12/05/2010,STAFF EXPENSES / COSTS,School Performance and Reform Group,CARLSON WAGONLIT TRAVEL,4000023683,146.92
DEPARTMENT FOR EDUCATION,DEPARTMENT FOR EDUCATION,12/05/2010,STAFF EXPENSES / COSTS,Young People Quality Standards and Reform Group,CARLSON WAGONLIT TRAVEL,4000023683,153.83
DEPARTMENT FOR EDUCATION,DEPARTMENT FOR EDUCATION,12/05/2010,STAFF EXPENSES / COSTS,Commercial Group Schools and Category Management,CARLSON WAGONLIT TRAVEL,4000023683,155.01
DEPARTMENT FOR EDUCATION,DEPARTMENT FOR EDUCATION,12/05/2010,STAFF EXPENSES / COSTS,Children and Families Child Well Being Group,CARLSON WAGONLIT TRAVEL,4000023683,155.1
DEPARTMENT FOR EDUCATION,DEPARTMENT FOR EDUCATION,12/05/2010,STAFF EXPENSES / COSTS,School Standards Group,CARLSON WAGONLIT TRAVEL,4000023683,162.99
DEPARTMENT FOR EDUCATION,DEPARTMENT FOR EDUCATION,12/05/2010,STAFF EXPENSES / COSTS,Children and Families Safeguarding Group,CARLSON WAGONLIT TRAVEL,4000023683,163.11
DEPARTMENT FOR EDUCATION,DEPARTMENT FOR EDUCATION,12/05/2010,STAFF EXPENSES / COSTS,People and Change,CARLSON WAGONLIT TRAVEL,4000023683,167.25
DEPARTMENT FOR EDUCATION,DEPARTMENT FOR EDUCATION,12/05/2010,STAFF EXPENSES / COSTS,Commercial Group Schools and Category Management,CARLSON WAGONLIT TRAVEL,4000023683,169.36
DEPARTMENT FOR EDUCATION,DEPARTMENT FOR EDUCATION,12/05/2010,STAFF EXPENSES / COSTS,School Standards Group,CARLSON WAGONLIT TRAVEL,4000023683,169.78
DEPARTMENT FOR EDUCATION,DEPARTMENT FOR EDUCATION,12/05/2010,STAFF EXPENSES / COSTS,School Standards Group,CARLSON WAGONLIT TRAVEL,4000023683,173.5
DEPARTMENT FOR EDUCATION,DEPARTMENT FOR EDUCATION,12/05/2010,STAFF EXPENSES / COSTS,People and Change,CARLSON WAGONLIT TRAVEL,4000023683,178.67
DEPARTMENT FOR EDUCATION,DEPARTMENT FOR EDUCATION,12/05/2010,STAFF EXPENSES / COSTS,People and Change,CARLSON WAGONLIT TRAVEL,4000023683,182.59
DEPARTMENT FOR EDUCATION,DEPARTMENT FOR EDUCATION,12/05/2010,STAFF EXPENSES / COSTS,Chief Information Officer Group,CARLSON WAGONLIT TRAVEL,4000023683,196.6
DEPARTMENT FOR EDUCATION,DEPARTMENT FOR EDUCATION,12/05/2010,STAFF EXPENSES / COSTS,Commercial Group Strategic Functions,CARLSON WAGONLIT TRAVEL,4000023683,202.97
DEPARTMENT FOR EDUCATION,DEPARTMENT FOR EDUCATION,12/05/2010,STAFF EXPENSES / COSTS,School Formation and Investment Group,CARLSON WAGONLIT TRAVEL,4000023683,213.97
DEPARTMENT FOR EDUCATION,DEPARTMENT FOR EDUCATION,12/05/2010,STAFF EXPENSES / COSTS,Young People  Schools Children and Young People Group,CARLSON WAGONLIT TRAVEL,4000023683,223.06
DEPARTMENT FOR EDUCATION,DEPARTMENT FOR EDUCATION,12/05/2010,STAFF EXPENSES / COSTS,Private Office ,CARLSON WAGONLIT TRAVEL,4000023683,225.41
DEPARTMENT FOR EDUCATION,DEPARTMENT FOR EDUCATION,12/05/2010,STAFF EXPENSES / COSTS,School Standards Group,CARLSON WAGONLIT TRAVEL,4000023683,226
DEPARTMENT FOR EDUCATION,DEPARTMENT FOR EDUCATION,12/05/2010,STAFF EXPENSES / COSTS,Young People Participation and Attainment Group,CARLSON WAGONLIT TRAVEL,4000023683,229.01
DEPARTMENT FOR EDUCATION,DEPARTMENT FOR EDUCATION,12/05/2010,STAFF EXPENSES / COSTS,School Analysis and Research,CARLSON WAGONLIT TRAVEL,4000023683,229.75
DEPARTMENT FOR EDUCATION,DEPARTMENT FOR EDUCATION,12/05/2010,STAFF EXPENSES / COSTS,Chief Information Officer Group,CARLSON WAGONLIT TRAVEL,4000023683,232.87
DEPARTMENT FOR EDUCATION,DEPARTMENT FOR EDUCATION,12/05/2010,STAFF EXPENSES / COSTS,Commercial Group Schools and Category Management,CARLSON WAGONLIT TRAVEL,4000023683,241.43
DEPARTMENT FOR EDUCATION,DEPARTMENT FOR EDUCATION,12/05/2010,STAFF EXPENSES / COSTS,Commercial Group Strategic Functions,CARLSON WAGONLIT TRAVEL,4000023683,241.86
DEPARTMENT FOR EDUCATION,DEPARTMENT FOR EDUCATION,12/05/2010,STAFF EXPENSES / COSTS,Commercial Group Schools and Category Management,CARLSON WAGONLIT TRAVEL,4000023683,241.98
DEPARTMENT FOR EDUCATION,DEPARTMENT FOR EDUCATION,12/05/2010,STAFF EXPENSES / COSTS,School Formation and Investment Group,CARLSON WAGONLIT TRAVEL,4000023683,260.19
DEPARTMENT FOR EDUCATION,DEPARTMENT FOR EDUCATION,12/05/2010,STAFF EXPENSES / COSTS,Curriculum and Pupil Well Being Improving Behaviour and Attendance Unit,CARLSON WAGONLIT TRAVEL,4000023683,261.81
DEPARTMENT FOR EDUCATION,DEPARTMENT FOR EDUCATION,12/05/2010,STAFF EXPENSES / COSTS,Chief Information Officer Group,CARLSON WAGONLIT TRAVEL,4000023683,264.73
DEPARTMENT FOR EDUCATION,DEPARTMENT FOR EDUCATION,12/05/2010,STAFF EXPENSES / COSTS,Children and Families Child Well Being Group,CARLSON WAGONLIT TRAVEL,4000023683,269.21
DEPARTMENT FOR EDUCATION,DEPARTMENT FOR EDUCATION,12/05/2010,STAFF EXPENSES / COSTS,Young People  Schools Children and Young People Group,CARLSON WAGONLIT TRAVEL,4000023683,272.94
DEPARTMENT FOR EDUCATION,DEPARTMENT FOR EDUCATION,12/05/2010,STAFF EXPENSES / COSTS,School Resources Group,CARLSON WAGONLIT TRAVEL,4000023683,278.95
DEPARTMENT FOR EDUCATION,DEPARTMENT FOR EDUCATION,12/05/2010,STAFF EXPENSES / COSTS,Young People  Directorate Apprenticeships Group,CARLSON WAGONLIT TRAVEL,4000023683,282.22
DEPARTMENT FOR EDUCATION,DEPARTMENT FOR EDUCATION,12/05/2010,STAFF EXPENSES / COSTS,School Formation and Investment Group,CARLSON WAGONLIT TRAVEL,4000023683,285.44
DEPARTMENT FOR EDUCATION,DEPARTMENT FOR EDUCATION,12/05/2010,STAFF EXPENSES / COSTS,School Analysis and Research,CARLSON WAGONLIT TRAVEL,4000023683,291.67
DEPARTMENT FOR EDUCATION,DEPARTMENT FOR EDUCATION,12/05/2010,STAFF EXPENSES / COSTS,Children and Families Safeguarding Group,CARLSON WAGONLIT TRAVEL,4000023683,293.66
DEPARTMENT FOR EDUCATION,DEPARTMENT FOR EDUCATION,12/05/2010,STAFF EXPENSES / COSTS,Commercial Group,CARLSON WAGONLIT TRAVEL,4000023683,308.64
DEPARTMENT FOR EDUCATION,DEPARTMENT FOR EDUCATION,12/05/2010,STAFF EXPENSES / COSTS,School Resources Group,CARLSON WAGONLIT TRAVEL,4000023683,310.54
DEPARTMENT FOR EDUCATION,DEPARTMENT FOR EDUCATION,12/05/2010,STAFF EXPENSES / COSTS,Curriculum and Pupil Well Being Curriculum Unit,CARLSON WAGONLIT TRAVEL,4000023683,312.04
DEPARTMENT FOR EDUCATION,DEPARTMENT FOR EDUCATION,12/05/2010,STAFF EXPENSES / COSTS,Children and Families Group,CARLSON WAGONLIT TRAVEL,4000023683,323.63
DEPARTMENT FOR EDUCATION,DEPARTMENT FOR EDUCATION,12/05/2010,STAFF EXPENSES / COSTS,Private Office ,CARLSON WAGONLIT TRAVEL,4000023683,330.11
DEPARTMENT FOR EDUCATION,DEPARTMENT FOR EDUCATION,12/05/2010,STAFF EXPENSES / COSTS,Supporting Children and Young People Youth Task Force,CARLSON WAGONLIT TRAVEL,4000023683,333.46
DEPARTMENT FOR EDUCATION,DEPARTMENT FOR EDUCATION,12/05/2010,STAFF EXPENSES / COSTS,Commercial Group Strategic Functions,CARLSON WAGONLIT TRAVEL,4000023683,334.01
DEPARTMENT FOR EDUCATION,DEPARTMENT FOR EDUCATION,12/05/2010,STAFF EXPENSES / COSTS,Children and Families Safeguarding Group,CARLSON WAGONLIT TRAVEL,4000023683,342.65
DEPARTMENT FOR EDUCATION,DEPARTMENT FOR EDUCATION,12/05/2010,STAFF EXPENSES / COSTS,Commercial Group Strategic Functions,CARLSON WAGONLIT TRAVEL,4000023683,344.77
DEPARTMENT FOR EDUCATION,DEPARTMENT FOR EDUCATION,12/05/2010,STAFF EXPENSES / COSTS,Children and Families Early Years Extended Schools and Special Needs,CARLSON WAGONLIT TRAVEL,4000023683,353.61
DEPARTMENT FOR EDUCATION,DEPARTMENT FOR EDUCATION,12/05/2010,STAFF EXPENSES / COSTS,Children and Families Improving Information Sharing and Management Group,CARLSON WAGONLIT TRAVEL,4000023683,360.2
DEPARTMENT FOR EDUCATION,DEPARTMENT FOR EDUCATION,12/05/2010,STAFF EXPENSES / COSTS,People and Change,CARLSON WAGONLIT TRAVEL,4000023683,367.24
DEPARTMENT FOR EDUCATION,DEPARTMENT FOR EDUCATION,12/05/2010,STAFF EXPENSES / COSTS,Commercial Group Shared Services and Children and Young People,CARLSON WAGONLIT TRAVEL,4000023683,371.11
DEPARTMENT FOR EDUCATION,DEPARTMENT FOR EDUCATION,12/05/2010,STAFF EXPENSES / COSTS,People and Change,CARLSON WAGONLIT TRAVEL,4000023683,417.13
DEPARTMENT FOR EDUCATION,DEPARTMENT FOR EDUCATION,12/05/2010,STAFF EXPENSES / COSTS,School Standards Group,CARLSON WAGONLIT TRAVEL,4000023683,431
DEPARTMENT FOR EDUCATION,DEPARTMENT FOR EDUCATION,12/05/2010,STAFF EXPENSES / COSTS,"Strategic Analysis, Research and Policy Impact Group",CARLSON WAGONLIT TRAVEL,4000023683,449.84
DEPARTMENT FOR EDUCATION,DEPARTMENT FOR EDUCATION,12/05/2010,STAFF EXPENSES / COSTS,Marketing Group,CARLSON WAGONLIT TRAVEL,4000023683,485.44
DEPARTMENT FOR EDUCATION,DEPARTMENT FOR EDUCATION,12/05/2010,STAFF EXPENSES / COSTS,People and Change,CARLSON WAGONLIT TRAVEL,4000023683,489.13
DEPARTMENT FOR EDUCATION,DEPARTMENT FOR EDUCATION,12/05/2010,STAFF EXPENSES / COSTS,Finance Group,CARLSON WAGONLIT TRAVEL,4000023683,497.57
DEPARTMENT FOR EDUCATION,DEPARTMENT FOR EDUCATION,12/05/2010,STAFF EXPENSES / COSTS,Children and Families Group,CARLSON WAGONLIT TRAVEL,4000023683,501.78
DEPARTMENT FOR EDUCATION,DEPARTMENT FOR EDUCATION,12/05/2010,STAFF EXPENSES / COSTS,Commercial Group Schools and Category Management,CARLSON WAGONLIT TRAVEL,4000023683,521.37
DEPARTMENT FOR EDUCATION,DEPARTMENT FOR EDUCATION,12/05/2010,STAFF EXPENSES / COSTS,Young People  Schools Children and Young People Group,CARLSON WAGONLIT TRAVEL,4000023683,524.82
DEPARTMENT FOR EDUCATION,DEPARTMENT FOR EDUCATION,12/05/2010,STAFF EXPENSES / COSTS,School Resources Group,CARLSON WAGONLIT TRAVEL,4000023683,541.34
DEPARTMENT FOR EDUCATION,DEPARTMENT FOR EDUCATION,12/05/2010,STAFF EXPENSES / COSTS,Corporate Services Wider Modernisation,CARLSON WAGONLIT TRAVEL,4000023683,548.99
DEPARTMENT FOR EDUCATION,DEPARTMENT FOR EDUCATION,12/05/2010,STAFF EXPENSES / COSTS,School Formation and Investment Group,CARLSON WAGONLIT TRAVEL,4000023683,582.01
DEPARTMENT FOR EDUCATION,DEPARTMENT FOR EDUCATION,12/05/2010,STAFF EXPENSES / COSTS,People and Change,CARLSON WAGONLIT TRAVEL,4000023683,591.97
DEPARTMENT FOR EDUCATION,DEPARTMENT FOR EDUCATION,12/05/2010,STAFF EXPENSES / COSTS,People and Change,CARLSON WAGONLIT TRAVEL,4000023683,619.78
DEPARTMENT FOR EDUCATION,DEPARTMENT FOR EDUCATION,12/05/2010,STAFF EXPENSES / COSTS,Commercial Group Shared Services and Children and Young People,CARLSON WAGONLIT TRAVEL,4000023683,624.58
DEPARTMENT FOR EDUCATION,DEPARTMENT FOR EDUCATION,12/05/2010,STAFF EXPENSES / COSTS,Young People Directorate Support,CARLSON WAGONLIT TRAVEL,4000023683,633.7
DEPARTMENT FOR EDUCATION,DEPARTMENT FOR EDUCATION,12/05/2010,STAFF EXPENSES / COSTS,Corporate Services Director General,CARLSON WAGONLIT TRAVEL,4000023683,643.48
DEPARTMENT FOR EDUCATION,DEPARTMENT FOR EDUCATION,12/05/2010,STAFF EXPENSES / COSTS,Curriculum and Pupil Well Being Unit,CARLSON WAGONLIT TRAVEL,4000023683,658.75
DEPARTMENT FOR EDUCATION,DEPARTMENT FOR EDUCATION,12/05/2010,STAFF EXPENSES / COSTS,Commercial Group EFM,CARLSON WAGONLIT TRAVEL,4000023683,673.64
DEPARTMENT FOR EDUCATION,DEPARTMENT FOR EDUCATION,12/05/2010,STAFF EXPENSES / COSTS,Young People Participation and Attainment Group,CARLSON WAGONLIT TRAVEL,4000023683,676.27
DEPARTMENT FOR EDUCATION,DEPARTMENT FOR EDUCATION,12/05/2010,STAFF EXPENSES / COSTS,Commercial Group Shared Services and Children and Young People,CARLSON WAGONLIT TRAVEL,4000023683,683.71
DEPARTMENT FOR EDUCATION,DEPARTMENT FOR EDUCATION,12/05/2010,STAFF EXPENSES / COSTS,Commercial Group Schools and Category Management,CARLSON WAGONLIT TRAVEL,4000023683,696.29
DEPARTMENT FOR EDUCATION,DEPARTMENT FOR EDUCATION,12/05/2010,STAFF EXPENSES / COSTS,Children and Families Supporting Delivery Group,CARLSON WAGONLIT TRAVEL,4000023683,699.14
DEPARTMENT FOR EDUCATION,DEPARTMENT FOR EDUCATION,12/05/2010,STAFF EXPENSES / COSTS,People and Change,CARLSON WAGONLIT TRAVEL,4000023683,719.54
DEPARTMENT FOR EDUCATION,DEPARTMENT FOR EDUCATION,12/05/2010,STAFF EXPENSES / COSTS,School Standards Group,CARLSON WAGONLIT TRAVEL,4000023683,720.23
DEPARTMENT FOR EDUCATION,DEPARTMENT FOR EDUCATION,12/05/2010,STAFF EXPENSES / COSTS,Young People  Schools Children and Young People Group,CARLSON WAGONLIT TRAVEL,4000023683,738.81
DEPARTMENT FOR EDUCATION,DEPARTMENT FOR EDUCATION,12/05/2010,STAFF EXPENSES / COSTS,Chief Information Officer Group,CARLSON WAGONLIT TRAVEL,4000023683,747.74
DEPARTMENT FOR EDUCATION,DEPARTMENT FOR EDUCATION,12/05/2010,STAFF EXPENSES / COSTS,Chief Information Officer Group,CARLSON WAGONLIT TRAVEL,4000023683,770.02
DEPARTMENT FOR EDUCATION,DEPARTMENT FOR EDUCATION,12/05/2010,STAFF EXPENSES / COSTS,Commercial Group Strategic Functions,CARLSON WAGONLIT TRAVEL,4000023683,782.79
DEPARTMENT FOR EDUCATION,DEPARTMENT FOR EDUCATION,12/05/2010,STAFF EXPENSES / COSTS,Chief Information Officer Group,CARLSON WAGONLIT TRAVEL,4000023683,801.03
DEPARTMENT FOR EDUCATION,DEPARTMENT FOR EDUCATION,12/05/2010,STAFF EXPENSES / COSTS,Children and Families Child Well Being Group,CARLSON WAGONLIT TRAVEL,4000023683,807.42
DEPARTMENT FOR EDUCATION,DEPARTMENT FOR EDUCATION,12/05/2010,STAFF EXPENSES / COSTS,Young People Quality Standards and Reform Group,CARLSON WAGONLIT TRAVEL,4000023683,808.37
DEPARTMENT FOR EDUCATION,DEPARTMENT FOR EDUCATION,12/05/2010,STAFF EXPENSES / COSTS,Young People  Schools Children and Young People Group,CARLSON WAGONLIT TRAVEL,4000023683,828.7
DEPARTMENT FOR EDUCATION,DEPARTMENT FOR EDUCATION,12/05/2010,STAFF EXPENSES / COSTS,Children and Families Supporting Delivery Group,CARLSON WAGONLIT TRAVEL,4000023683,841.64
DEPARTMENT FOR EDUCATION,DEPARTMENT FOR EDUCATION,12/05/2010,STAFF EXPENSES / COSTS,"Strategic Analysis, Research and Policy Impact Group",CARLSON WAGONLIT TRAVEL,4000023683,846.65
DEPARTMENT FOR EDUCATION,DEPARTMENT FOR EDUCATION,12/05/2010,STAFF EXPENSES / COSTS,Chief Information Officer Group,CARLSON WAGONLIT TRAVEL,4000023683,859.67
DEPARTMENT FOR EDUCATION,DEPARTMENT FOR EDUCATION,12/05/2010,STAFF EXPENSES / COSTS,School Formation and Investment Group,CARLSON WAGONLIT TRAVEL,4000023683,862.72
DEPARTMENT FOR EDUCATION,DEPARTMENT FOR EDUCATION,12/05/2010,STAFF EXPENSES / COSTS,Finance Group,CARLSON WAGONLIT TRAVEL,4000023683,914.81
DEPARTMENT FOR EDUCATION,DEPARTMENT FOR EDUCATION,12/05/2010,STAFF EXPENSES / COSTS,Chief Information Officer Group,CARLSON WAGONLIT TRAVEL,4000023683,931.87
DEPARTMENT FOR EDUCATION,DEPARTMENT FOR EDUCATION,12/05/2010,STAFF EXPENSES / COSTS,School Performance and Reform Group,CARLSON WAGONLIT TRAVEL,4000023683,941.18
DEPARTMENT FOR EDUCATION,DEPARTMENT FOR EDUCATION,12/05/2010,STAFF EXPENSES / COSTS,Commercial Group EFM,CARLSON WAGONLIT TRAVEL,4000023683,956.13
DEPARTMENT FOR EDUCATION,DEPARTMENT FOR EDUCATION,12/05/2010,STAFF EXPENSES / COSTS,Communications Strategy and Insight Group,CARLSON WAGONLIT TRAVEL,4000023683,965.53
DEPARTMENT FOR EDUCATION,DEPARTMENT FOR EDUCATION,12/05/2010,STAFF EXPENSES / COSTS,Young People Quality Standards and Reform Group,CARLSON WAGONLIT TRAVEL,4000023683,978.06
DEPARTMENT FOR EDUCATION,DEPARTMENT FOR EDUCATION,12/05/2010,STAFF EXPENSES / COSTS,Chief Information Officer Group,CARLSON WAGONLIT TRAVEL,4000023683,992.1
DEPARTMENT FOR EDUCATION,DEPARTMENT FOR EDUCATION,12/05/2010,STAFF EXPENSES / COSTS,Children and Families Supporting Delivery Group,CARLSON WAGONLIT TRAVEL,4000023683,999.32
DEPARTMENT FOR EDUCATION,DEPARTMENT FOR EDUCATION,12/05/2010,STAFF EXPENSES / COSTS,Young People Quality Standards and Reform Group,CARLSON WAGONLIT TRAVEL,4000023683,999.36
DEPARTMENT FOR EDUCATION,DEPARTMENT FOR EDUCATION,12/05/2010,STAFF EXPENSES / COSTS,People and Change,CARLSON WAGONLIT TRAVEL,4000023683,1044.97
DEPARTMENT FOR EDUCATION,DEPARTMENT FOR EDUCATION,12/05/2010,STAFF EXPENSES / COSTS,Young People  Schools Children and Young People Group,CARLSON WAGONLIT TRAVEL,4000023683,1046.92
DEPARTMENT FOR EDUCATION,DEPARTMENT FOR EDUCATION,12/05/2010,STAFF EXPENSES / COSTS,Commercial Group Schools and Category Management,CARLSON WAGONLIT TRAVEL,4000023683,1049.99
DEPARTMENT FOR EDUCATION,DEPARTMENT FOR EDUCATION,12/05/2010,STAFF EXPENSES / COSTS,Chief Information Officer Group,CARLSON WAGONLIT TRAVEL,4000023683,1111.8
DEPARTMENT FOR EDUCATION,DEPARTMENT FOR EDUCATION,12/05/2010,STAFF EXPENSES / COSTS,Young People Analysis Division,CARLSON WAGONLIT TRAVEL,4000023683,1115.48
DEPARTMENT FOR EDUCATION,DEPARTMENT FOR EDUCATION,12/05/2010,STAFF EXPENSES / COSTS,Chief Information Officer Group,CARLSON WAGONLIT TRAVEL,4000023683,1128.7
DEPARTMENT FOR EDUCATION,DEPARTMENT FOR EDUCATION,12/05/2010,STAFF EXPENSES / COSTS,Commercial Group,CARLSON WAGONLIT TRAVEL,4000023683,1145.52
DEPARTMENT FOR EDUCATION,DEPARTMENT FOR EDUCATION,12/05/2010,STAFF EXPENSES / COSTS,Corporate Services Strategy and Performance,CARLSON WAGONLIT TRAVEL,4000023683,1214.47
DEPARTMENT FOR EDUCATION,DEPARTMENT FOR EDUCATION,12/05/2010,STAFF EXPENSES / COSTS,Finance Group,CARLSON WAGONLIT TRAVEL,4000023683,1228.28
DEPARTMENT FOR EDUCATION,DEPARTMENT FOR EDUCATION,12/05/2010,STAFF EXPENSES / COSTS,School Performance and Reform Office of the Schools Commissioner,CARLSON WAGONLIT TRAVEL,4000023683,1229.51
DEPARTMENT FOR EDUCATION,DEPARTMENT FOR EDUCATION,12/05/2010,STAFF EXPENSES / COSTS,"Strategic Analysis, Research and Policy Impact Group",CARLSON WAGONLIT TRAVEL,4000023683,1278.02
DEPARTMENT FOR EDUCATION,DEPARTMENT FOR EDUCATION,12/05/2010,STAFF EXPENSES / COSTS,Young People  Schools Children and Young People Group,CARLSON WAGONLIT TRAVEL,4000023683,1280.8
DEPARTMENT FOR EDUCATION,DEPARTMENT FOR EDUCATION,12/05/2010,STAFF EXPENSES / COSTS,Commercial Group Shared Services and Children and Young People,CARLSON WAGONLIT TRAVEL,4000023683,1304.78
DEPARTMENT FOR EDUCATION,DEPARTMENT FOR EDUCATION,12/05/2010,STAFF EXPENSES / COSTS,School Performance and Reform Group,CARLSON WAGONLIT TRAVEL,4000023683,1343.48
DEPARTMENT FOR EDUCATION,DEPARTMENT FOR EDUCATION,12/05/2010,STAFF EXPENSES / COSTS,Children and Families Safeguarding Group,CARLSON WAGONLIT TRAVEL,4000023683,1371.18
DEPARTMENT FOR EDUCATION,DEPARTMENT FOR EDUCATION,12/05/2010,STAFF EXPENSES / COSTS,Customer Contact and Business Development Group,CARLSON WAGONLIT TRAVEL,4000023683,1413.1
DEPARTMENT FOR EDUCATION,DEPARTMENT FOR EDUCATION,12/05/2010,STAFF EXPENSES / COSTS,"Strategic Analysis, Research and Policy Impact Group",CARLSON WAGONLIT TRAVEL,4000023683,1469.32
DEPARTMENT FOR EDUCATION,DEPARTMENT FOR EDUCATION,12/05/2010,STAFF EXPENSES / COSTS,Corporate and Internal Communications Group,CARLSON WAGONLIT TRAVEL,4000023683,1474.22
DEPARTMENT FOR EDUCATION,DEPARTMENT FOR EDUCATION,12/05/2010,STAFF EXPENSES / COSTS,People and Change,CARLSON WAGONLIT TRAVEL,4000023683,1485.13
DEPARTMENT FOR EDUCATION,DEPARTMENT FOR EDUCATION,12/05/2010,STAFF EXPENSES / COSTS,School Performance and Reform Group,CARLSON WAGONLIT TRAVEL,4000023683,1507.73
DEPARTMENT FOR EDUCATION,DEPARTMENT FOR EDUCATION,12/05/2010,STAFF EXPENSES / COSTS,School Formation and Investment Group,CARLSON WAGONLIT TRAVEL,4000023683,1604.73
DEPARTMENT FOR EDUCATION,DEPARTMENT FOR EDUCATION,12/05/2010,STAFF EXPENSES / COSTS,"Strategic Analysis, Research and Policy Impact Group",CARLSON WAGONLIT TRAVEL,4000023683,1613
DEPARTMENT FOR EDUCATION,DEPARTMENT FOR EDUCATION,12/05/2010,STAFF EXPENSES / COSTS,School Formation and Investment Group,CARLSON WAGONLIT TRAVEL,4000023683,1638.84
DEPARTMENT FOR EDUCATION,DEPARTMENT FOR EDUCATION,12/05/2010,STAFF EXPENSES / COSTS,"Strategic Analysis, Research and Policy Impact Group",CARLSON WAGONLIT TRAVEL,4000023683,1715.22
DEPARTMENT FOR EDUCATION,DEPARTMENT FOR EDUCATION,12/05/2010,STAFF EXPENSES / COSTS,Corporate Services Director General,CARLSON WAGONLIT TRAVEL,4000023683,2044.93
DEPARTMENT FOR EDUCATION,DEPARTMENT FOR EDUCATION,12/05/2010,STAFF EXPENSES / COSTS,School Performance and Reform Group,CARLSON WAGONLIT TRAVEL,4000023683,2151.62
DEPARTMENT FOR EDUCATION,DEPARTMENT FOR EDUCATION,12/05/2010,STAFF EXPENSES / COSTS,Commercial Group Shared Services and Children and Young People,CARLSON WAGONLIT TRAVEL,4000023683,2220.2
DEPARTMENT FOR EDUCATION,DEPARTMENT FOR EDUCATION,12/05/2010,STAFF EXPENSES / COSTS,Commercial Group Schools and Category Management,CARLSON WAGONLIT TRAVEL,4000023683,2257.75
DEPARTMENT FOR EDUCATION,DEPARTMENT FOR EDUCATION,12/05/2010,STAFF EXPENSES / COSTS,Young People Participation and Attainment Group,CARLSON WAGONLIT TRAVEL,4000023683,2346.34
DEPARTMENT FOR EDUCATION,DEPARTMENT FOR EDUCATION,12/05/2010,STAFF EXPENSES / COSTS,Young People Quality Standards and Reform Group,CARLSON WAGONLIT TRAVEL,4000023683,2484.84
DEPARTMENT FOR EDUCATION,DEPARTMENT FOR EDUCATION,12/05/2010,STAFF EXPENSES / COSTS,Finance Group,CARLSON WAGONLIT TRAVEL,4000023683,2665.67
DEPARTMENT FOR EDUCATION,DEPARTMENT FOR EDUCATION,12/05/2010,STAFF EXPENSES / COSTS,Customer Contact and Business Development Group,CARLSON WAGONLIT TRAVEL,4000023683,2666.91
DEPARTMENT FOR EDUCATION,DEPARTMENT FOR EDUCATION,12/05/2010,STAFF EXPENSES / COSTS,Young People Workforce Group,CARLSON WAGONLIT TRAVEL,4000023683,3087.07
DEPARTMENT FOR EDUCATION,DEPARTMENT FOR EDUCATION,12/05/2010,STAFF EXPENSES / COSTS,People and Change,CARLSON WAGONLIT TRAVEL,4000023683,3272.15
DEPARTMENT FOR EDUCATION,DEPARTMENT FOR EDUCATION,12/05/2010,STAFF EXPENSES / COSTS,Chief Information Officer Group,CARLSON WAGONLIT TRAVEL,4000023683,3400.26
DEPARTMENT FOR EDUCATION,DEPARTMENT FOR EDUCATION,12/05/2010,STAFF EXPENSES / COSTS,School Standards Group,CARLSON WAGONLIT TRAVEL,4000023683,4194.18
DEPARTMENT FOR EDUCATION,DEPARTMENT FOR EDUCATION,12/05/2010,STAFF EXPENSES / COSTS,"Strategic Analysis, Research and Policy Impact Group",CARLSON WAGONLIT TRAVEL,4000023683,4338.67
DEPARTMENT FOR EDUCATION,DEPARTMENT FOR EDUCATION,12/05/2010,STAFF EXPENSES / COSTS,Children and Families Supporting Delivery Group,CARLSON WAGONLIT TRAVEL,4000023683,4467.7
DEPARTMENT FOR EDUCATION,DEPARTMENT FOR EDUCATION,12/05/2010,STAFF EXPENSES / COSTS,Commercial Group Schools and Category Management,CARLSON WAGONLIT TRAVEL,4000023683,5587.19
DEPARTMENT FOR EDUCATION,DEPARTMENT FOR EDUCATION,12/05/2010,STAFF EXPENSES / COSTS,Internal Audit,CARLSON WAGONLIT TRAVEL,4000023683,6319.49
DEPARTMENT FOR EDUCATION,DEPARTMENT FOR EDUCATION,12/05/2010,STAFF EXPENSES / COSTS,School Formation and Investment Group,CARLSON WAGONLIT TRAVEL,4000023683,8343.34
DEPARTMENT FOR EDUCATION,DEPARTMENT FOR EDUCATION,12/05/2010,STAFF EXPENSES / COSTS,Children and Families Group,CARLSON WAGONLIT TRAVEL,4000023683,9316.2
DEPARTMENT FOR EDUCATION,DEPARTMENT FOR EDUCATION,12/05/2010,PROFESSIONAL FEES,School Performance and Reform Group,EDUCATION LONDON LTD,4000023691,359729.18
DEPARTMENT FOR EDUCATION,DEPARTMENT FOR EDUCATION,12/05/2010,COMMUNICATIONS & PUBLICITY,School Standards Group,EXPOTEL HOTEL RESERVATIONS LTD,4000023692,-5512.61
DEPARTMENT FOR EDUCATION,DEPARTMENT FOR EDUCATION,12/05/2010,CONFERENCES AND MEETINGS,Supporting Children and Young People Group Activities and Engagement,EXPOTEL HOTEL RESERVATIONS LTD,4000023692,323.81
DEPARTMENT FOR EDUCATION,DEPARTMENT FOR EDUCATION,12/05/2010,CONFERENCES AND MEETINGS,Children and Families Safeguarding Group,EXPOTEL HOTEL RESERVATIONS LTD,4000023692,355.7
DEPARTMENT FOR EDUCATION,DEPARTMENT FOR EDUCATION,12/05/2010,STAFF EXPENSES / COSTS,Customer Contact and Business Development Group,EXPOTEL HOTEL RESERVATIONS LTD,4000023692,578.4
DEPARTMENT FOR EDUCATION,DEPARTMENT FOR EDUCATION,12/05/2010,STAFF EXPENSES / COSTS,Children and Families Early Years Extended Schools and Special Needs,EXPOTEL HOTEL RESERVATIONS LTD,4000023692,604.66
DEPARTMENT FOR EDUCATION,DEPARTMENT FOR EDUCATION,12/05/2010,CONFERENCES AND MEETINGS,Corporate Services Strategy and Performance,EXPOTEL HOTEL RESERVATIONS LTD,4000023692,680.06
DEPARTMENT FOR EDUCATION,DEPARTMENT FOR EDUCATION,12/05/2010,COMMUNICATIONS & PUBLICITY,14 - 19 Reform Young People Guidance,EXPOTEL HOTEL RESERVATIONS LTD,4000023692,910.33
DEPARTMENT FOR EDUCATION,DEPARTMENT FOR EDUCATION,12/05/2010,STAFF EXPENSES / COSTS,Curriculum and Pupil Well Being Improving Behaviour and Attendance Unit,EXPOTEL HOTEL RESERVATIONS LTD,4000023692,910.33
DEPARTMENT FOR EDUCATION,DEPARTMENT FOR EDUCATION,12/05/2010,CONFERENCES AND MEETINGS,Children and Families Safeguarding Group,EXPOTEL HOTEL RESERVATIONS LTD,4000023692,1105.86
DEPARTMENT FOR EDUCATION,DEPARTMENT FOR EDUCATION,12/05/2010,CONFERENCES AND MEETINGS,School Formation and Investment Group,EXPOTEL HOTEL RESERVATIONS LTD,4000023692,1190.29
DEPARTMENT FOR EDUCATION,DEPARTMENT FOR EDUCATION,12/05/2010,CONFERENCES AND MEETINGS,People and Change,EXPOTEL HOTEL RESERVATIONS LTD,4000023692,1309.06
DEPARTMENT FOR EDUCATION,DEPARTMENT FOR EDUCATION,12/05/2010,COMMUNICATIONS & PUBLICITY,Children and Families Supporting Delivery Group,EXPOTEL HOTEL RESERVATIONS LTD,4000023692,1375.87
DEPARTMENT FOR EDUCATION,DEPARTMENT FOR EDUCATION,12/05/2010,CONFERENCES AND MEETINGS,Children and Families Child Well Being Group,EXPOTEL HOTEL RESERVATIONS LTD,4000023692,1945.06
DEPARTMENT FOR EDUCATION,DEPARTMENT FOR EDUCATION,12/05/2010,COMMUNICATIONS & PUBLICITY,Supporting Children and Young People Youth Task Force,EXPOTEL HOTEL RESERVATIONS LTD,4000023692,2319.42
DEPARTMENT FOR EDUCATION,DEPARTMENT FOR EDUCATION,12/05/2010,CONFERENCES AND MEETINGS,Children and Families Safeguarding Group,EXPOTEL HOTEL RESERVATIONS LTD,4000023692,2385.78
DEPARTMENT FOR EDUCATION,DEPARTMENT FOR EDUCATION,12/05/2010,CONTRACT PROGRAMME EXPENDITURE,Children and Families Group,EXPOTEL HOTEL RESERVATIONS LTD,4000023692,2521.06
DEPARTMENT FOR EDUCATION,DEPARTMENT FOR EDUCATION,12/05/2010,CONFERENCES AND MEETINGS,Commercial Group Shared Services and Children and Young People,EXPOTEL HOTEL RESERVATIONS LTD,4000023692,2624.53
DEPARTMENT FOR EDUCATION,DEPARTMENT FOR EDUCATION,12/05/2010,STAFF EXPENSES / COSTS,Young People Participation and Attainment Group,EXPOTEL HOTEL RESERVATIONS LTD,4000023692,2871.06
DEPARTMENT FOR EDUCATION,DEPARTMENT FOR EDUCATION,12/05/2010,STAFF EXPENSES / COSTS,Communications Strategy and Insight Group,EXPOTEL HOTEL RESERVATIONS LTD,4000023692,2944.13
DEPARTMENT FOR EDUCATION,DEPARTMENT FOR EDUCATION,12/05/2010,COMMUNICATIONS & PUBLICITY,Children and Families Supporting Delivery Group,EXPOTEL HOTEL RESERVATIONS LTD,4000023692,2977.35
DEPARTMENT FOR EDUCATION,DEPARTMENT FOR EDUCATION,12/05/2010,COMMUNICATIONS & PUBLICITY,Supporting Children and Young People Group Activities and Engagement,EXPOTEL HOTEL RESERVATIONS LTD,4000023692,3743.11
DEPARTMENT FOR EDUCATION,DEPARTMENT FOR EDUCATION,12/05/2010,CONFERENCES AND MEETINGS,Corporate and Internal Communications Group,EXPOTEL HOTEL RESERVATIONS LTD,4000023692,4630.33
DEPARTMENT FOR EDUCATION,DEPARTMENT FOR EDUCATION,12/05/2010,COMMUNICATIONS & PUBLICITY,Children and Families Improving Information Sharing and Management Group,EXPOTEL HOTEL RESERVATIONS LTD,4000023692,5073.26
DEPARTMENT FOR EDUCATION,DEPARTMENT FOR EDUCATION,12/05/2010,CONFERENCES AND MEETINGS,Workforce Group Children and Families Workforce,EXPOTEL HOTEL RESERVATIONS LTD,4000023692,5693.69
DEPARTMENT FOR EDUCATION,DEPARTMENT FOR EDUCATION,12/05/2010,CONFERENCES AND MEETINGS,School Standards Group,EXPOTEL HOTEL RESERVATIONS LTD,4000023692,7491.65
DEPARTMENT FOR EDUCATION,DEPARTMENT FOR EDUCATION,12/05/2010,COMMUNICATIONS & PUBLICITY,Supporting Children and Young People Youth Task Force,EXPOTEL HOTEL RESERVATIONS LTD,4000023692,16174.38
DEPARTMENT FOR EDUCATION,DEPARTMENT FOR EDUCATION,12/05/2010,CONFERENCES AND MEETINGS,Commercial Group Strategic Functions,EXPOTEL HOTEL RESERVATIONS LTD,4000023692,26337.1
DEPARTMENT FOR EDUCATION,DEPARTMENT FOR EDUCATION,12/05/2010,MISCELLANEOUS EXPENDITURE,"Strategic Analysis, Research and Policy Impact Group",INSTITUTE OF EDUCATION,4000023696,206785.1
DEPARTMENT FOR EDUCATION,DEPARTMENT FOR EDUCATION,12/05/2010,CURRENT GRANTS,Supporting Children and Young People Youth Task Force,KIRKLEES COUNCIL,4000023701,75000
DEPARTMENT FOR EDUCATION,DEPARTMENT FOR EDUCATION,12/05/2010,CAPITAL GRANTS,Children and Families Group,LINCOLNSHIRE COUNTY COUNCIL,4000023704,90099.96
DEPARTMENT FOR EDUCATION,DEPARTMENT FOR EDUCATION,12/05/2010,CURRENT GRANTS,Supporting Children and Young People Youth Task Force,LONDON BOROUGH OF GREENWICH,4000023705,174991
DEPARTMENT FOR EDUCATION,DEPARTMENT FOR EDUCATION,12/05/2010,CURRENT GRANTS,Supporting Children and Young People Youth Task Force,LONDON BOROUGH OF TOWER HAMLETS COUNCIL,4000023706,97217
DEPARTMENT FOR EDUCATION,DEPARTMENT FOR EDUCATION,12/05/2010,CURRENT GRANTS,School Standards Group,NATIONAL LITERACY TRUST,4000023713,207000
DEPARTMENT FOR EDUCATION,DEPARTMENT FOR EDUCATION,12/05/2010,CURRENT GRANTS,Supporting Children and Young People Youth Task Force,NOTTINGHAM CITY COUNCIL,4000023715,175085
DEPARTMENT FOR EDUCATION,DEPARTMENT FOR EDUCATION,12/05/2010,CURRENT GRANTS,Supporting Children and Young People Youth Task Force,NOTTINGHAM CITY COUNCIL,4000023715,175912.44
DEPARTMENT FOR EDUCATION,DEPARTMENT FOR EDUCATION,12/05/2010,PROFESSIONAL FEES,School Formation and Investment Group,PKF UK LIMITED,4000023717,36380.35
DEPARTMENT FOR EDUCATION,DEPARTMENT FOR EDUCATION,12/05/2010,CONTRACT PROGRAMME EXPENDITURE,School Standards Group,RM DATA SOLUTIONS,4000023720,66426.4
DEPARTMENT FOR EDUCATION,DEPARTMENT FOR EDUCATION,12/05/2010,CONTRACT PROGRAMME EXPENDITURE,Supporting Children and Young People Community Cohesion,SDSA,4000023724,80000
DEPARTMENT FOR EDUCATION,DEPARTMENT FOR EDUCATION,12/05/2010,CONTRACT PROGRAMME EXPENDITURE,School Standards Group,SOFTWARE FOR DATA ANALYSIS LTD,4000023726,64565.08
DEPARTMENT FOR EDUCATION,DEPARTMENT FOR EDUCATION,12/05/2010,CURRENT GRANTS,Supporting Children and Young People Youth Task Force,TAMESIDE MBC,4000023729,39435.29
DEPARTMENT FOR EDUCATION,DEPARTMENT FOR EDUCATION,12/05/2010,IS/IT,Chief Information Officer Group,THE DANWOOD GROUP LTD,4000023730,1157.06
DEPARTMENT FOR EDUCATION,DEPARTMENT FOR EDUCATION,12/05/2010,IS/IT,Chief Information Officer Group,THE DANWOOD GROUP LTD,4000023730,43798.98
DEPARTMENT FOR EDUCATION,DEPARTMENT FOR EDUCATION,12/05/2010,CURRENT GRANTS,Supporting Children and Young People Youth Task Force,THE LONDON BOROUGH OF HACKNEY,4000023731,98935.2
DEPARTMENT FOR EDUCATION,DEPARTMENT FOR EDUCATION,12/05/2010,CONTRACT PROGRAMME EXPENDITURE,14 - 19 Reform Young People Guidance,VT CAREERS MANAGEMENT LTD,4000023735,285431
DEPARTMENT FOR EDUCATION,DEPARTMENT FOR EDUCATION,12/05/2010,CURRENT GRANTS,Supporting Children and Young People Youth Task Force,YMCA CAMBRIDGESHIRE & PETERBOROUGH,4000023737,108505
DEPARTMENT FOR EDUCATION,DEPARTMENT FOR EDUCATION,13/05/2010,FACILITIES OTHER,Commercial Group EFM,MITIE CLEANING SOUTH EAST LTD,700316,45369.16
DEPARTMENT FOR EDUCATION,DEPARTMENT FOR EDUCATION,13/05/2010,CONTRACT PROGRAMME EXPENDITURE,School Formation and Investment Group,ACADEMY ENTERPRISE TRUST,4000023769,46329
DEPARTMENT FOR EDUCATION,DEPARTMENT FOR EDUCATION,13/05/2010,CURRENT GRANTS,School Formation and Investment Group,ACADEMY ENTERPRISE TRUST,4000023769,49209
DEPARTMENT FOR EDUCATION,DEPARTMENT FOR EDUCATION,13/05/2010,CONTRACT PROGRAMME EXPENDITURE,School Formation and Investment Group,APPLEYARDS LTD,4000023773,105717.69
DEPARTMENT FOR EDUCATION,DEPARTMENT FOR EDUCATION,13/05/2010,CONTRACT PROGRAMME EXPENDITURE,Children and Families Group,BRITISH ASSOCIATION FOR ADOPTION & FOSTERING,4000023776,64311.25
DEPARTMENT FOR EDUCATION,DEPARTMENT FOR EDUCATION,13/05/2010,CURRENT GRANTS,Curriculum and Pupil Well Being Improving Behaviour and Attendance Unit,DIANA PRINCESS  MEMORIAL AWARD,4000023784,30375
DEPARTMENT FOR EDUCATION,DEPARTMENT FOR EDUCATION,13/05/2010,COMMUNICATIONS & PUBLICITY,Corporate and Internal Communications Group,EDUSERV,4000023786,33276
DEPARTMENT FOR EDUCATION,DEPARTMENT FOR EDUCATION,13/05/2010,IS/IT,Chief Information Officer Group,EDUSERV,4000023786,160511.96
DEPARTMENT FOR EDUCATION,DEPARTMENT FOR EDUCATION,13/05/2010,CAPITAL GRANTS,School Formation and Investment Group,HERTFORDSHIRE,4000023794,144157.08
DEPARTMENT FOR EDUCATION,DEPARTMENT FOR EDUCATION,13/05/2010,CAPITAL GRANTS,Chief Information Officer Group,HERTFORDSHIRE,4000023794,1173851.57
DEPARTMENT FOR EDUCATION,DEPARTMENT FOR EDUCATION,13/05/2010,CAPITAL GRANTS,School Formation and Investment Group,LEEDS CITY COUNCIL,4000023798,231462.9
DEPARTMENT FOR EDUCATION,DEPARTMENT FOR EDUCATION,13/05/2010,CAPITAL GRANTS,School Formation and Investment Group,NPS SOUTH EAST LTD,4000023801,96213.81
DEPARTMENT FOR EDUCATION,DEPARTMENT FOR EDUCATION,13/05/2010,CONTRACT PROGRAMME EXPENDITURE,Children and Families Safeguarding Group,PARTNERS ANDREWS ALDRIDGE,4000023803,44802.75
DEPARTMENT FOR EDUCATION,DEPARTMENT FOR EDUCATION,13/05/2010,CONTRACT PROGRAMME EXPENDITURE,School Formation and Investment Group,PKF UK LIMITED,4000023808,74991.6
DEPARTMENT FOR EDUCATION,DEPARTMENT FOR EDUCATION,13/05/2010,CAPITAL GRANTS,School Formation and Investment Group,RSA ACADEMY,4000023811,38686.88
DEPARTMENT FOR EDUCATION,DEPARTMENT FOR EDUCATION,13/05/2010,CONTRACT PROGRAMME EXPENDITURE,Children and Families Early Years Extended Schools and Special Needs,SERCO LTD,4000023812,3493238.54
DEPARTMENT FOR EDUCATION,DEPARTMENT FOR EDUCATION,13/05/2010,CONTRACT PROGRAMME EXPENDITURE,School Formation and Investment Group,TRIBAL EDUCATION LTD CONSULTING,4000023824,31225.63
DEPARTMENT FOR EDUCATION,DEPARTMENT FOR EDUCATION,13/05/2010,CAPITAL GRANTS,School Formation and Investment Group,W S ATKINS SERVICES LTD,4000023826,108630.52
DEPARTMENT FOR EDUCATION,DEPARTMENT FOR EDUCATION,13/05/2010,CONTRACT PROGRAMME EXPENDITURE,Supporting Children and Young People Group Activities and Engagement,YHA ENGLAND & WALES LTD,4000023829,440000
DEPARTMENT FOR EDUCATION,TEACHERS PENSION SCHEME,14/05/2010,FUNDING TO PAY TEACHERS PENSIONS,Workforce Group Young - TPS,CAPITA TP HSBC,1000157,61665.22
DEPARTMENT FOR EDUCATION,TEACHERS PENSION SCHEME,14/05/2010,FUNDING TO PAY TEACHERS PENSIONS,Workforce Group Young - TPS,CAPITA TP NATWEST,1000158,16331833.61
DEPARTMENT FOR EDUCATION,TEACHERS PENSION SCHEME,14/05/2010,FUNDING TO PAY TEACHERS PENSIONS,Workforce Group Young - TPS,CAPITA TP HSBC,1000159,303537.71
DEPARTMENT FOR EDUCATION,TEACHERS PENSION SCHEME,14/05/2010,FUNDING TO PAY TEACHERS PENSIONS,Workforce Group Young - TPS,CAPITA TP NATWEST,1000160,16202258.59
DEPARTMENT FOR EDUCATION,DEPARTMENT FOR EDUCATION,14/05/2010,GRANT IN AID,Children and Families Child Well Being Group,OFFICE OF THE CHILDRENS COMMISSIONER,2000147,121381.54
DEPARTMENT FOR EDUCATION,DEPARTMENT FOR EDUCATION,14/05/2010,CONTRACT PROGRAMME EXPENDITURE,Workforce Group Young People Workforce,TEACHERS SUPERANN,2000148,8637.82
DEPARTMENT FOR EDUCATION,DEPARTMENT FOR EDUCATION,14/05/2010,CONTRACT PROGRAMME EXPENDITURE,Workforce Group Young People Workforce,TEACHERS SUPERANN,2000148,324274.72
DEPARTMENT FOR EDUCATION,DEPARTMENT FOR EDUCATION,14/05/2010,CONTRACT PROGRAMME EXPENDITURE,Workforce Group Young People Workforce,TEACHERS SUPERANN,2000148,661320.18
DEPARTMENT FOR EDUCATION,DEPARTMENT FOR EDUCATION,14/05/2010,MISCELLANEOUS EXPENDITURE,Internal Audit,BARCLAYCARD BANK PLC,4000023872,5
DEPARTMENT FOR EDUCATION,DEPARTMENT FOR EDUCATION,14/05/2010,CONFERENCES AND MEETINGS,Private Office ,BARCLAYCARD BANK PLC,4000023872,6
DEPARTMENT FOR EDUCATION,DEPARTMENT FOR EDUCATION,14/05/2010,OFFICE MACHINERY HIRE & MAINTENANCE,Commercial Group EFM,BARCLAYCARD BANK PLC,4000023872,17.35
DEPARTMENT FOR EDUCATION,DEPARTMENT FOR EDUCATION,14/05/2010,PRINTING STATIONERY IT & CONSUMABLES,Private Office ,BARCLAYCARD BANK PLC,4000023872,22.42
DEPARTMENT FOR EDUCATION,DEPARTMENT FOR EDUCATION,14/05/2010,MISCELLANEOUS EXPENDITURE,Commercial Group Schools and Category Management,BARCLAYCARD BANK PLC,4000023872,23
DEPARTMENT FOR EDUCATION,DEPARTMENT FOR EDUCATION,14/05/2010,CONFERENCES AND MEETINGS,Private Office ,BARCLAYCARD BANK PLC,4000023872,26.2
DEPARTMENT FOR EDUCATION,DEPARTMENT FOR EDUCATION,14/05/2010,STAFF EXPENSES / COSTS,Private Office ,BARCLAYCARD BANK PLC,4000023872,30.8
DEPARTMENT FOR EDUCATION,DEPARTMENT FOR EDUCATION,14/05/2010,TELEPHONE CHARGES,People and Change,BARCLAYCARD BANK PLC,4000023872,31.38
DEPARTMENT FOR EDUCATION,DEPARTMENT FOR EDUCATION,14/05/2010,CONTRACTED OUT SERVICES,Commercial Group Schools and Category Management,BARCLAYCARD BANK PLC,4000023872,32.75
DEPARTMENT FOR EDUCATION,DEPARTMENT FOR EDUCATION,14/05/2010,STAFF EXPENSES / COSTS,Private Office ,BARCLAYCARD BANK PLC,4000023872,35.5
DEPARTMENT FOR EDUCATION,DEPARTMENT FOR EDUCATION,14/05/2010,MISCELLANEOUS EXPENDITURE,School Formation and Investment Group,BARCLAYCARD BANK PLC,4000023872,37.48
DEPARTMENT FOR EDUCATION,DEPARTMENT FOR EDUCATION,14/05/2010,PRINTING STATIONERY IT & CONSUMABLES,Marketing Group,BARCLAYCARD BANK PLC,4000023872,39.42
DEPARTMENT FOR EDUCATION,DEPARTMENT FOR EDUCATION,14/05/2010,PROFESSIONAL FEES,"Strategic Analysis, Research and Policy Impact Group",BARCLAYCARD BANK PLC,4000023872,39.99
DEPARTMENT FOR EDUCATION,DEPARTMENT FOR EDUCATION,14/05/2010,PRINTING STATIONERY IT & CONSUMABLES,Chief Information Officer Group,BARCLAYCARD BANK PLC,4000023872,40.02
DEPARTMENT FOR EDUCATION,DEPARTMENT FOR EDUCATION,14/05/2010,PRINTING STATIONERY IT & CONSUMABLES,Chief Information Officer Group,BARCLAYCARD BANK PLC,4000023872,47.87
DEPARTMENT FOR EDUCATION,DEPARTMENT FOR EDUCATION,14/05/2010,MISCELLANEOUS EXPENDITURE,Commercial Group EFM,BARCLAYCARD BANK PLC,4000023872,48.78
DEPARTMENT FOR EDUCATION,DEPARTMENT FOR EDUCATION,14/05/2010,PRINTING STATIONERY IT & CONSUMABLES,People and Change,BARCLAYCARD BANK PLC,4000023872,54.77
DEPARTMENT FOR EDUCATION,DEPARTMENT FOR EDUCATION,14/05/2010,MISCELLANEOUS EXPENDITURE,Chief Information Officer Group,BARCLAYCARD BANK PLC,4000023872,58.75
DEPARTMENT FOR EDUCATION,DEPARTMENT FOR EDUCATION,14/05/2010,STAFF EXPENSES / COSTS,Private Office ,BARCLAYCARD BANK PLC,4000023872,59.13
DEPARTMENT FOR EDUCATION,DEPARTMENT FOR EDUCATION,14/05/2010,CONFERENCES AND MEETINGS,Private Office ,BARCLAYCARD BANK PLC,4000023872,60.4
DEPARTMENT FOR EDUCATION,DEPARTMENT FOR EDUCATION,14/05/2010,TELEPHONE CHARGES,Private Office ,BARCLAYCARD BANK PLC,4000023872,62.47
DEPARTMENT FOR EDUCATION,DEPARTMENT FOR EDUCATION,14/05/2010,MISCELLANEOUS EXPENDITURE,Commercial Group Strategic Functions,BARCLAYCARD BANK PLC,4000023872,63.59
DEPARTMENT FOR EDUCATION,DEPARTMENT FOR EDUCATION,14/05/2010,MISCELLANEOUS EXPENDITURE,Group Legal Advisors Office,BARCLAYCARD BANK PLC,4000023872,67.44
DEPARTMENT FOR EDUCATION,DEPARTMENT FOR EDUCATION,14/05/2010,STAFF EXPENSES / COSTS,Private Office ,BARCLAYCARD BANK PLC,4000023872,69
DEPARTMENT FOR EDUCATION,DEPARTMENT FOR EDUCATION,14/05/2010,STAFF EXPENSES / COSTS,Private Office ,BARCLAYCARD BANK PLC,4000023872,83.37
DEPARTMENT FOR EDUCATION,DEPARTMENT FOR EDUCATION,14/05/2010,MISCELLANEOUS EXPENDITURE,People and Change,BARCLAYCARD BANK PLC,4000023872,114.9
DEPARTMENT FOR EDUCATION,DEPARTMENT FOR EDUCATION,14/05/2010,MISCELLANEOUS EXPENDITURE,Communications Strategy and Insight Group,BARCLAYCARD BANK PLC,4000023872,116.33
DEPARTMENT FOR EDUCATION,DEPARTMENT FOR EDUCATION,14/05/2010,POSTAGE,Commercial Group Schools and Category Management,BARCLAYCARD BANK PLC,4000023872,124.55
DEPARTMENT FOR EDUCATION,DEPARTMENT FOR EDUCATION,14/05/2010,STAFF EXPENSES / COSTS,Young People Workforce Group,BARCLAYCARD BANK PLC,4000023872,142.5
DEPARTMENT FOR EDUCATION,DEPARTMENT FOR EDUCATION,14/05/2010,MISCELLANEOUS EXPENDITURE,Commercial Group EFM,BARCLAYCARD BANK PLC,4000023872,142.5
DEPARTMENT FOR EDUCATION,DEPARTMENT FOR EDUCATION,14/05/2010,STAFF EXPENSES / COSTS,Commercial Group Strategic Functions,BARCLAYCARD BANK PLC,4000023872,150
DEPARTMENT FOR EDUCATION,DEPARTMENT FOR EDUCATION,14/05/2010,PRINTING STATIONERY IT & CONSUMABLES,Commercial Group Schools and Category Management,BARCLAYCARD BANK PLC,4000023872,152.37
DEPARTMENT FOR EDUCATION,DEPARTMENT FOR EDUCATION,14/05/2010,PRINTING STATIONERY IT & CONSUMABLES,Commercial Group Schools and Category Management,BARCLAYCARD BANK PLC,4000023872,167.22
DEPARTMENT FOR EDUCATION,DEPARTMENT FOR EDUCATION,14/05/2010,PRINTING STATIONERY IT & CONSUMABLES,Commercial Group EFM,BARCLAYCARD BANK PLC,4000023872,168.82
DEPARTMENT FOR EDUCATION,DEPARTMENT FOR EDUCATION,14/05/2010,TELEPHONE CHARGES,Commercial Group Shared Services and Children and Young People,BARCLAYCARD BANK PLC,4000023872,169.75
DEPARTMENT FOR EDUCATION,DEPARTMENT FOR EDUCATION,14/05/2010,MISCELLANEOUS EXPENDITURE,Young People Workforce Group,BARCLAYCARD BANK PLC,4000023872,171.53
DEPARTMENT FOR EDUCATION,DEPARTMENT FOR EDUCATION,14/05/2010,MISCELLANEOUS EXPENDITURE,Commercial Group Strategic Functions,BARCLAYCARD BANK PLC,4000023872,173.85
DEPARTMENT FOR EDUCATION,DEPARTMENT FOR EDUCATION,14/05/2010,HOSPITALITY,Private Office ,BARCLAYCARD BANK PLC,4000023872,174.47
DEPARTMENT FOR EDUCATION,DEPARTMENT FOR EDUCATION,14/05/2010,STAFF EXPENSES / COSTS,Commercial Group Schools and Category Management,BARCLAYCARD BANK PLC,4000023872,181.53
DEPARTMENT FOR EDUCATION,DEPARTMENT FOR EDUCATION,14/05/2010,FACILITIES OTHER,Children and Families Supporting Delivery Group,BARCLAYCARD BANK PLC,4000023872,183.39
DEPARTMENT FOR EDUCATION,DEPARTMENT FOR EDUCATION,14/05/2010,PRINTING STATIONERY IT & CONSUMABLES,Commercial Group EFM,BARCLAYCARD BANK PLC,4000023872,196
DEPARTMENT FOR EDUCATION,DEPARTMENT FOR EDUCATION,14/05/2010,STAFF EXPENSES / COSTS,Press Office Group,BARCLAYCARD BANK PLC,4000023872,200
DEPARTMENT FOR EDUCATION,DEPARTMENT FOR EDUCATION,14/05/2010,MISCELLANEOUS EXPENDITURE,Curriculum and Pupil Well Being Curriculum Unit,BARCLAYCARD BANK PLC,4000023872,211.5
DEPARTMENT FOR EDUCATION,DEPARTMENT FOR EDUCATION,14/05/2010,FACILITIES OTHER,Commercial Group EFM,BARCLAYCARD BANK PLC,4000023872,233
DEPARTMENT FOR EDUCATION,DEPARTMENT FOR EDUCATION,14/05/2010,PRINTING STATIONERY IT & CONSUMABLES,Corporate Services Director General,BARCLAYCARD BANK PLC,4000023872,233.26
DEPARTMENT FOR EDUCATION,DEPARTMENT FOR EDUCATION,14/05/2010,MISCELLANEOUS EXPENDITURE,Commercial Group EFM,BARCLAYCARD BANK PLC,4000023872,245
DEPARTMENT FOR EDUCATION,DEPARTMENT FOR EDUCATION,14/05/2010,PRINTING STATIONERY IT & CONSUMABLES,Press Office Group,BARCLAYCARD BANK PLC,4000023872,259.69
DEPARTMENT FOR EDUCATION,DEPARTMENT FOR EDUCATION,14/05/2010,PROFESSIONAL FEES,Commercial Group EFM,BARCLAYCARD BANK PLC,4000023872,293.75
DEPARTMENT FOR EDUCATION,DEPARTMENT FOR EDUCATION,14/05/2010,MISCELLANEOUS EXPENDITURE,Chief Information Officer Group,BARCLAYCARD BANK PLC,4000023872,297.56
DEPARTMENT FOR EDUCATION,DEPARTMENT FOR EDUCATION,14/05/2010,STAFF EXPENSES / COSTS,School Formation and Investment Group,BARCLAYCARD BANK PLC,4000023872,301.45
DEPARTMENT FOR EDUCATION,DEPARTMENT FOR EDUCATION,14/05/2010,MISCELLANEOUS EXPENDITURE,Private Office ,BARCLAYCARD BANK PLC,4000023872,314.88
DEPARTMENT FOR EDUCATION,DEPARTMENT FOR EDUCATION,14/05/2010,MISCELLANEOUS EXPENDITURE,Marketing Group,BARCLAYCARD BANK PLC,4000023872,328.07
DEPARTMENT FOR EDUCATION,DEPARTMENT FOR EDUCATION,14/05/2010,MISCELLANEOUS EXPENDITURE,"Strategic Analysis, Research and Policy Impact Group",BARCLAYCARD BANK PLC,4000023872,346.63
DEPARTMENT FOR EDUCATION,DEPARTMENT FOR EDUCATION,14/05/2010,STAFF EXPENSES / COSTS,Commercial Group Strategic Functions,BARCLAYCARD BANK PLC,4000023872,349.2
DEPARTMENT FOR EDUCATION,DEPARTMENT FOR EDUCATION,14/05/2010,PRINTING STATIONERY IT & CONSUMABLES,Chief Information Officer Group,BARCLAYCARD BANK PLC,4000023872,374.45
DEPARTMENT FOR EDUCATION,DEPARTMENT FOR EDUCATION,14/05/2010,STAFF EXPENSES / COSTS,School Performance and Reform Group,BARCLAYCARD BANK PLC,4000023872,406.5
DEPARTMENT FOR EDUCATION,DEPARTMENT FOR EDUCATION,14/05/2010,STAFF EXPENSES / COSTS,Communications Strategy and Insight Group,BARCLAYCARD BANK PLC,4000023872,458.25
DEPARTMENT FOR EDUCATION,DEPARTMENT FOR EDUCATION,14/05/2010,HOSPITALITY,Private Office ,BARCLAYCARD BANK PLC,4000023872,465.19
DEPARTMENT FOR EDUCATION,DEPARTMENT FOR EDUCATION,14/05/2010,MISCELLANEOUS EXPENDITURE,Commercial Group EFM,BARCLAYCARD BANK PLC,4000023872,490
DEPARTMENT FOR EDUCATION,DEPARTMENT FOR EDUCATION,14/05/2010,MISCELLANEOUS EXPENDITURE,Chief Information Officer Group,BARCLAYCARD BANK PLC,4000023872,503.38
DEPARTMENT FOR EDUCATION,DEPARTMENT FOR EDUCATION,14/05/2010,MISCELLANEOUS EXPENDITURE,"Strategic Analysis, Research and Policy Impact Group",BARCLAYCARD BANK PLC,4000023872,585.63
DEPARTMENT FOR EDUCATION,DEPARTMENT FOR EDUCATION,14/05/2010,HOSPITALITY,Private Office ,BARCLAYCARD BANK PLC,4000023872,594.02
DEPARTMENT FOR EDUCATION,DEPARTMENT FOR EDUCATION,14/05/2010,MISCELLANEOUS EXPENDITURE,Chief Information Officer Group,BARCLAYCARD BANK PLC,4000023872,604.01
DEPARTMENT FOR EDUCATION,DEPARTMENT FOR EDUCATION,14/05/2010,MISCELLANEOUS EXPENDITURE,Chief Information Officer Group,BARCLAYCARD BANK PLC,4000023872,607.5
DEPARTMENT FOR EDUCATION,DEPARTMENT FOR EDUCATION,14/05/2010,PRINTING STATIONERY IT & CONSUMABLES,Chief Information Officer Group,BARCLAYCARD BANK PLC,4000023872,629.81
DEPARTMENT FOR EDUCATION,DEPARTMENT FOR EDUCATION,14/05/2010,MISCELLANEOUS EXPENDITURE,"Strategic Analysis, Research and Policy Impact Group",BARCLAYCARD BANK PLC,4000023872,660
DEPARTMENT FOR EDUCATION,DEPARTMENT FOR EDUCATION,14/05/2010,MISCELLANEOUS EXPENDITURE,Commercial Group Strategic Functions,BARCLAYCARD BANK PLC,4000023872,674.1
DEPARTMENT FOR EDUCATION,DEPARTMENT FOR EDUCATION,14/05/2010,MISCELLANEOUS EXPENDITURE,Customer Contact and Business Development Group,BARCLAYCARD BANK PLC,4000023872,690.51
DEPARTMENT FOR EDUCATION,DEPARTMENT FOR EDUCATION,14/05/2010,MISCELLANEOUS EXPENDITURE,Commercial Group EFM,BARCLAYCARD BANK PLC,4000023872,768.22
DEPARTMENT FOR EDUCATION,DEPARTMENT FOR EDUCATION,14/05/2010,MISCELLANEOUS EXPENDITURE,"Strategic Analysis, Research and Policy Impact Group",BARCLAYCARD BANK PLC,4000023872,825
DEPARTMENT FOR EDUCATION,DEPARTMENT FOR EDUCATION,14/05/2010,MISCELLANEOUS EXPENDITURE,Commercial Group Shared Services and Children and Young People,BARCLAYCARD BANK PLC,4000023872,838.5
DEPARTMENT FOR EDUCATION,DEPARTMENT FOR EDUCATION,14/05/2010,HOSPITALITY,Private Office ,BARCLAYCARD BANK PLC,4000023872,839.05
DEPARTMENT FOR EDUCATION,DEPARTMENT FOR EDUCATION,14/05/2010,PROFESSIONAL FEES,Commercial Group EFM,BARCLAYCARD BANK PLC,4000023872,881.25
DEPARTMENT FOR EDUCATION,DEPARTMENT FOR EDUCATION,14/05/2010,MISCELLANEOUS EXPENDITURE,Commercial Group,BARCLAYCARD BANK PLC,4000023872,910.69
DEPARTMENT FOR EDUCATION,DEPARTMENT FOR EDUCATION,14/05/2010,STAFF EXPENSES / COSTS,Chief Information Officer Group,BARCLAYCARD BANK PLC,4000023872,1023.28
DEPARTMENT FOR EDUCATION,DEPARTMENT FOR EDUCATION,14/05/2010,MISCELLANEOUS EXPENDITURE,School Formation and Investment Group,BARCLAYCARD BANK PLC,4000023872,1030.34
DEPARTMENT FOR EDUCATION,DEPARTMENT FOR EDUCATION,14/05/2010,COMMUNICATIONS & PUBLICITY,School Formation and Investment Group,BARCLAYCARD BANK PLC,4000023872,1082.11
DEPARTMENT FOR EDUCATION,DEPARTMENT FOR EDUCATION,14/05/2010,PRINTING STATIONERY IT & CONSUMABLES,Commercial Group EFM,BARCLAYCARD BANK PLC,4000023872,1203.78
DEPARTMENT FOR EDUCATION,DEPARTMENT FOR EDUCATION,14/05/2010,MISCELLANEOUS EXPENDITURE,Commercial Group EFM,BARCLAYCARD BANK PLC,4000023872,1228.47
DEPARTMENT FOR EDUCATION,DEPARTMENT FOR EDUCATION,14/05/2010,MISCELLANEOUS EXPENDITURE,Commercial Group Shared Services and Children and Young People,BARCLAYCARD BANK PLC,4000023872,1318.24
DEPARTMENT FOR EDUCATION,DEPARTMENT FOR EDUCATION,14/05/2010,MISCELLANEOUS EXPENDITURE,Commercial Group Shared Services and Children and Young People,BARCLAYCARD BANK PLC,4000023872,1410
DEPARTMENT FOR EDUCATION,DEPARTMENT FOR EDUCATION,14/05/2010,MISCELLANEOUS EXPENDITURE,Press Office Group,BARCLAYCARD BANK PLC,4000023872,1753.75
DEPARTMENT FOR EDUCATION,DEPARTMENT FOR EDUCATION,14/05/2010,STAFF EXPENSES / COSTS,Commercial Group Shared Services and Children and Young People,BARCLAYCARD BANK PLC,4000023872,1762.5
DEPARTMENT FOR EDUCATION,DEPARTMENT FOR EDUCATION,14/05/2010,PRINTING STATIONERY IT & CONSUMABLES,Private Office ,BARCLAYCARD BANK PLC,4000023872,2343.39
DEPARTMENT FOR EDUCATION,DEPARTMENT FOR EDUCATION,14/05/2010,MISCELLANEOUS EXPENDITURE,Commercial Group EFM,BARCLAYCARD BANK PLC,4000023872,2614.7
DEPARTMENT FOR EDUCATION,DEPARTMENT FOR EDUCATION,14/05/2010,PROFESSIONAL FEES,Internal Audit,BARCLAYCARD BANK PLC,4000023872,3843.42
DEPARTMENT FOR EDUCATION,DEPARTMENT FOR EDUCATION,14/05/2010,MISCELLANEOUS EXPENDITURE,Chief Information Officer Group,BARCLAYCARD BANK PLC,4000023872,4293.25
DEPARTMENT FOR EDUCATION,DEPARTMENT FOR EDUCATION,14/05/2010,PRINTING STATIONERY IT & CONSUMABLES,Group Legal Advisors Office,BARCLAYCARD BANK PLC,4000023872,7698
DEPARTMENT FOR EDUCATION,DEPARTMENT FOR EDUCATION,14/05/2010,CURRENT GRANTS,School Standards Group,BOOK TRUST,4000023877,36862
DEPARTMENT FOR EDUCATION,DEPARTMENT FOR EDUCATION,14/05/2010,CONTRACT PROGRAMME EXPENDITURE,Children and Families Safeguarding Group,CAPITA BUSINESS SERVICES LTD,4000023880,27025
DEPARTMENT FOR EDUCATION,DEPARTMENT FOR EDUCATION,14/05/2010,COMMUNICATIONS & PUBLICITY,Supporting Children and Young People as Risk,CENTRAL OFFICE OF INFORMATION,4000023884,-35489.05
DEPARTMENT FOR EDUCATION,DEPARTMENT FOR EDUCATION,14/05/2010,STAFF EXPENSES / COSTS,Communications Strategy and Insight Group,CENTRAL OFFICE OF INFORMATION,4000023884,42175.45
DEPARTMENT FOR EDUCATION,DEPARTMENT FOR EDUCATION,14/05/2010,COMMUNICATIONS & PUBLICITY,14 - 19 Reform Qualification Standards and Reform,CENTRAL OFFICE OF INFORMATION,4000023884,525551.91
DEPARTMENT FOR EDUCATION,DEPARTMENT FOR EDUCATION,14/05/2010,CONTRACT PROGRAMME EXPENDITURE,School Standards Group,CFBT EDUCATION SERVICES,4000023885,618243.61
DEPARTMENT FOR EDUCATION,DEPARTMENT FOR EDUCATION,14/05/2010,CONTRACT PROGRAMME EXPENDITURE,School Resources Group,CIPFA BUSINESS LTD,4000023888,43483.64
DEPARTMENT FOR EDUCATION,DEPARTMENT FOR EDUCATION,14/05/2010,CONTRACT PROGRAMME EXPENDITURE,Children and Families Safeguarding Group,COI CENTRAL OFFICE OF INFORMATION,4000023892,126073.87
DEPARTMENT FOR EDUCATION,DEPARTMENT FOR EDUCATION,14/05/2010,CONTRACT PROGRAMME EXPENDITURE,School Performance and Reform Office of the Schools Commissioner,COMBERTON VILLAGE COLLEGE,4000023893,37053
DEPARTMENT FOR EDUCATION,DEPARTMENT FOR EDUCATION,14/05/2010,CAPITAL GRANTS,School Formation and Investment Group,HARRIS BOYS ACADEMY EAST DULWICH,4000023904,84182.62
DEPARTMENT FOR EDUCATION,DEPARTMENT FOR EDUCATION,14/05/2010,COMMUNICATIONS & PUBLICITY,Children and Families Group,LEWIS LIVE LTD,4000023917,28272.46
DEPARTMENT FOR EDUCATION,DEPARTMENT FOR EDUCATION,14/05/2010,FACILITIES OTHER,Commercial Group EFM,MITIE TECHNICAL FACILITIES MANAGEMENT LTD,4000023920,3449.46
DEPARTMENT FOR EDUCATION,DEPARTMENT FOR EDUCATION,14/05/2010,FACILITIES OTHER,Commercial Group EFM,MITIE TECHNICAL FACILITIES MANAGEMENT LTD,4000023920,7307.81
DEPARTMENT FOR EDUCATION,DEPARTMENT FOR EDUCATION,14/05/2010,MISCELLANEOUS EXPENDITURE,Commercial Group EFM,MITIE TECHNICAL FACILITIES MANAGEMENT LTD,4000023920,7892.78
DEPARTMENT FOR EDUCATION,DEPARTMENT FOR EDUCATION,14/05/2010,FACILITIES OTHER,Commercial Group EFM,MITIE TECHNICAL FACILITIES MANAGEMENT LTD,4000023920,12068.5
DEPARTMENT FOR EDUCATION,DEPARTMENT FOR EDUCATION,14/05/2010,MISCELLANEOUS EXPENDITURE,Commercial Group EFM,MITIE TECHNICAL FACILITIES MANAGEMENT LTD,4000023920,23172.74
DEPARTMENT FOR EDUCATION,DEPARTMENT FOR EDUCATION,14/05/2010,CURRENT GRANTS,School Standards Group,NATIONAL LITERACY TRUST,4000023922,124784.46
DEPARTMENT FOR EDUCATION,DEPARTMENT FOR EDUCATION,14/05/2010,MISCELLANEOUS EXPENDITURE,"Strategic Analysis, Research and Policy Impact Group",SHEFFIELD HALLAM UNIVERSITY,4000023945,25000
DEPARTMENT FOR EDUCATION,DEPARTMENT FOR EDUCATION,14/05/2010,CONTRACT PROGRAMME EXPENDITURE,Children and Families Supporting Delivery Group,THE LEARNING TRUST,4000023952,35425.82
DEPARTMENT FOR EDUCATION,DEPARTMENT FOR EDUCATION,14/05/2010,MANAGEMENT CONSULTANCY,Children and Families Group,TRIBAL EDUCATION LIMITED,4000023955,500742.04
DEPARTMENT FOR EDUCATION,DEPARTMENT FOR EDUCATION,14/05/2010,CURRENT GRANTS,School Formation and Investment Group,ULT KETTERING BUCCLEUCH,4000023960,76508.35
DEPARTMENT FOR EDUCATION,DEPARTMENT FOR EDUCATION,14/05/2010,CONTRACT PROGRAMME EXPENDITURE,School Standards Group,UNIVERSITY OF WOLVERHAMPTON,4000023961,35000
DEPARTMENT FOR EDUCATION,DEPARTMENT FOR EDUCATION,17/05/2010,GRANT IN AID,Curriculum and Pupil Well Being Unit,THE SCHOOL FOOD TRUST,1000153,742469
DEPARTMENT FOR EDUCATION,DEPARTMENT FOR EDUCATION,17/05/2010,CONTRACT PROGRAMME EXPENDITURE,Curriculum and Pupil Well Being Curriculum Unit,THE UNIVERSITY OF WARWICK,1000154,51920.9
DEPARTMENT FOR EDUCATION,DEPARTMENT FOR EDUCATION,17/05/2010,CURRENT GRANTS,School Resources Group,BRACKNELL FOREST BOROUGH COUNCIL,4000023968,2435283
DEPARTMENT FOR EDUCATION,DEPARTMENT FOR EDUCATION,17/05/2010,CURRENT GRANTS,School Resources Group,CHESHIRE EAST COUNCIL,4000023969,8378509
DEPARTMENT FOR EDUCATION,DEPARTMENT FOR EDUCATION,17/05/2010,CURRENT GRANTS,School Resources Group,COVENTRY CITY COUNCIL,4000023970,7493707
DEPARTMENT FOR EDUCATION,DEPARTMENT FOR EDUCATION,17/05/2010,CURRENT GRANTS,School Resources Group,DEVON COUNTY COUNCIL,4000023971,17170150
DEPARTMENT FOR EDUCATION,DEPARTMENT FOR EDUCATION,17/05/2010,CURRENT GRANTS,School Resources Group,EAST SUSSEX COUNTY COUNCIL,4000023972,10819396
DEPARTMENT FOR EDUCATION,DEPARTMENT FOR EDUCATION,17/05/2010,CURRENT GRANTS,School Resources Group,GLOUCESTERSHIRE COUNTY COUNCIL,4000023973,14904603
DEPARTMENT FOR EDUCATION,DEPARTMENT FOR EDUCATION,17/05/2010,CURRENT GRANTS,School Resources Group,HAMPSHIRE COUNTY COUNCIL,4000023974,28601708
DEPARTMENT FOR EDUCATION,DEPARTMENT FOR EDUCATION,17/05/2010,CURRENT GRANTS,School Resources Group,LANCASHIRE COUNTY COUNCIL,4000023975,29575917
DEPARTMENT FOR EDUCATION,DEPARTMENT FOR EDUCATION,17/05/2010,CURRENT GRANTS,School Resources Group,LEEDS CITY COUNCIL,4000023976,16417182
DEPARTMENT FOR EDUCATION,DEPARTMENT FOR EDUCATION,17/05/2010,CURRENT GRANTS,School Resources Group,LONDON BOROUGH OF BEXLEY COUNCIL,4000023977,5793371
DEPARTMENT FOR EDUCATION,DEPARTMENT FOR EDUCATION,17/05/2010,CURRENT GRANTS,School Resources Group,LONDON BOROUGH OF CAMDEN,4000023978,3659071
DEPARTMENT FOR EDUCATION,DEPARTMENT FOR EDUCATION,17/05/2010,CURRENT GRANTS,School Resources Group,LONDON BOROUGH OF EALING COUNCIL,4000023979,6710737
DEPARTMENT FOR EDUCATION,DEPARTMENT FOR EDUCATION,17/05/2010,CURRENT GRANTS,School Resources Group,LONDON BOROUGH OF ENFIELD COUNCIL,4000023980,7192449
DEPARTMENT FOR EDUCATION,DEPARTMENT FOR EDUCATION,17/05/2010,CURRENT GRANTS,School Resources Group,LONDON BOROUGH OF GREENWICH,4000023981,5635198
DEPARTMENT FOR EDUCATION,DEPARTMENT FOR EDUCATION,17/05/2010,CURRENT GRANTS,School Resources Group,LONDON BOROUGH OF HAMMERSMITH & FULHAM COUNCIL,4000023982,2911556
DEPARTMENT FOR EDUCATION,DEPARTMENT FOR EDUCATION,17/05/2010,CURRENT GRANTS,School Resources Group,LONDON BOROUGH OF HARROW COUNCIL,4000023983,4545484
DEPARTMENT FOR EDUCATION,DEPARTMENT FOR EDUCATION,17/05/2010,CURRENT GRANTS,School Resources Group,LONDON BOROUGH OF HILLINGDON  COUNCIL,4000023984,6597670
DEPARTMENT FOR EDUCATION,DEPARTMENT FOR EDUCATION,17/05/2010,CURRENT GRANTS,School Resources Group,LONDON BOROUGH OF HOUNSLOW COUNCIL,4000023985,5540867
DEPARTMENT FOR EDUCATION,DEPARTMENT FOR EDUCATION,17/05/2010,CURRENT GRANTS,School Resources Group,MEDWAY COUNCIL,4000023986,6227530
DEPARTMENT FOR EDUCATION,DEPARTMENT FOR EDUCATION,17/05/2010,CURRENT GRANTS,School Resources Group,NORTHAMPTONSHIRE COUNTY COUNCIL,4000023987,16872279
DEPARTMENT FOR EDUCATION,DEPARTMENT FOR EDUCATION,17/05/2010,CURRENT GRANTS,School Resources Group,PLYMOUTH CITY COUNCIL,4000023988,5927832
DEPARTMENT FOR EDUCATION,DEPARTMENT FOR EDUCATION,17/05/2010,CURRENT GRANTS,School Resources Group,SANDWELL MBC,4000023989,7030141
DEPARTMENT FOR EDUCATION,DEPARTMENT FOR EDUCATION,17/05/2010,CURRENT GRANTS,School Resources Group,SEFTON COUNCIL,4000023990,6571474
DEPARTMENT FOR EDUCATION,DEPARTMENT FOR EDUCATION,17/05/2010,CURRENT GRANTS,School Resources Group,SHEFFIELD CITY COUNCIL,4000023991,11162706
DEPARTMENT FOR EDUCATION,DEPARTMENT FOR EDUCATION,17/05/2010,CURRENT GRANTS,School Resources Group,SHROPSHIRE COUNCIL,4000023992,7060828
DEPARTMENT FOR EDUCATION,DEPARTMENT FOR EDUCATION,17/05/2010,CURRENT GRANTS,School Resources Group,SLOUGH BOROUGH COUNCIL,4000023993,3682442
DEPARTMENT FOR EDUCATION,DEPARTMENT FOR EDUCATION,17/05/2010,CURRENT GRANTS,School Resources Group,SOUTHEND ON SEA BOROUGH COUNCIL,4000023994,4160112
DEPARTMENT FOR EDUCATION,DEPARTMENT FOR EDUCATION,17/05/2010,CURRENT GRANTS,School Resources Group,SUFFOLK COUNTY COUNCIL,4000023995,18510119
DEPARTMENT FOR EDUCATION,DEPARTMENT FOR EDUCATION,17/05/2010,CURRENT GRANTS,School Resources Group,THURROCK COUNCIL,4000023996,3542369
DEPARTMENT FOR EDUCATION,DEPARTMENT FOR EDUCATION,17/05/2010,CURRENT GRANTS,School Resources Group,WILTSHIRE COUNCIL,4000023997,11337538
DEPARTMENT FOR EDUCATION,DEPARTMENT FOR EDUCATION,17/05/2010,CONTRACT PROGRAMME EXPENDITURE,School Formation and Investment Group,A4E LTD,4000024028,79258.92
DEPARTMENT FOR EDUCATION,DEPARTMENT FOR EDUCATION,17/05/2010,CONTRACT PROGRAMME EXPENDITURE,School Formation and Investment Group,APPLEYARDS LTD,4000024035,85150.65
DEPARTMENT FOR EDUCATION,DEPARTMENT FOR EDUCATION,17/05/2010,CONTRACT PROGRAMME EXPENDITURE,14 - 19 Reform Qualification Standards and Reform,CAMBRIDGE EDUCATION HEAD OFFICE,4000024046,50122.28
DEPARTMENT FOR EDUCATION,DEPARTMENT FOR EDUCATION,17/05/2010,IS/IT,Children and Families Improving Information Sharing and Management Group,CAPGEMINI UK PLC,4000024047,28483.67
DEPARTMENT FOR EDUCATION,DEPARTMENT FOR EDUCATION,17/05/2010,COMMUNICATIONS & PUBLICITY,Supporting Children and Young People Youth Task Force,CENTRAL OFFICE OF INFORMATION,4000024050,82501.05
DEPARTMENT FOR EDUCATION,DEPARTMENT FOR EDUCATION,17/05/2010,PROFESSIONAL FEES,Children and Families Child Well Being Group,CONTINYOU SOLUTIONS LTD,4000024053,27500
DEPARTMENT FOR EDUCATION,DEPARTMENT FOR EDUCATION,17/05/2010,COMMUNICATIONS & PUBLICITY,Corporate and Internal Communications Group,EDUCATIONAL DIGITAL 2 LTD,4000024068,6070.84
DEPARTMENT FOR EDUCATION,DEPARTMENT FOR EDUCATION,17/05/2010,CAPITAL LICENCES & INTANGIBLES,Corporate and Internal Communications Group,EDUCATIONAL DIGITAL 2 LTD,4000024068,1327459.78
DEPARTMENT FOR EDUCATION,DEPARTMENT FOR EDUCATION,17/05/2010,CAPITAL GRANTS,School Formation and Investment Group,HARRIS GIRLS ACADEMY EAST DULWICH,4000024078,52385.14
DEPARTMENT FOR EDUCATION,DEPARTMENT FOR EDUCATION,17/05/2010,RESEARCH & DEVELOPMENT COSTS,"Strategic Analysis, Research and Policy Impact Group",HMRC INLAND REVENUE,4000024082,28700
DEPARTMENT FOR EDUCATION,DEPARTMENT FOR EDUCATION,17/05/2010,MANAGEMENT CONSULTANCY,Internal Audit,INLAND REVENUE,4000024083,26584.88
DEPARTMENT FOR EDUCATION,DEPARTMENT FOR EDUCATION,17/05/2010,CURRENT GRANTS,Curriculum and Pupil Well Being Curriculum Unit,LAMBETH MUSIC SERVICE,4000024091,320226
DEPARTMENT FOR EDUCATION,DEPARTMENT FOR EDUCATION,17/05/2010,IS/IT,Children and Families Improving Information Sharing and Management Group,LOGICA UK LTD,4000024095,154803.08
DEPARTMENT FOR EDUCATION,DEPARTMENT FOR EDUCATION,17/05/2010,COMMUNICATIONS & PUBLICITY,14 - 19 Reform Qualification Standards and Reform,MEGSON MANAGEMENT LTD,4000024102,74998.98
DEPARTMENT FOR EDUCATION,DEPARTMENT FOR EDUCATION,17/05/2010,RESEARCH & DEVELOPMENT COSTS,Children and Families Early Years Extended Schools and Special Needs,NCB,4000024111,41783
DEPARTMENT FOR EDUCATION,DEPARTMENT FOR EDUCATION,17/05/2010,COMMUNICATIONS & PUBLICITY,Children and Families Supporting Delivery Group,NCB,4000024112,10000
DEPARTMENT FOR EDUCATION,DEPARTMENT FOR EDUCATION,17/05/2010,COMMUNICATIONS & PUBLICITY,Children and Families Group,NCB,4000024112,30000
DEPARTMENT FOR EDUCATION,DEPARTMENT FOR EDUCATION,17/05/2010,CONTRACT PROGRAMME EXPENDITURE,Children and Families Group,PARENT INNOVATION CONSORTIUM,4000024117,375198.65
DEPARTMENT FOR EDUCATION,DEPARTMENT FOR EDUCATION,17/05/2010,CAPITAL GRANTS,School Formation and Investment Group,RSA ACADEMY,4000024130,842381.32
DEPARTMENT FOR EDUCATION,DEPARTMENT FOR EDUCATION,17/05/2010,COMMUNICATIONS & PUBLICITY,Corporate and Internal Communications Group,SCROLL,4000024139,48791.88
DEPARTMENT FOR EDUCATION,DEPARTMENT FOR EDUCATION,17/05/2010,MANAGEMENT CONSULTANCY,Children and Families Improving Information Sharing and Management Group,SERCO LTD,4000024140,29403.2
DEPARTMENT FOR EDUCATION,DEPARTMENT FOR EDUCATION,17/05/2010,RESEARCH & DEVELOPMENT COSTS,"Strategic Analysis, Research and Policy Impact Group",UNIVERSITY OF ESSEX,4000024154,34800
DEPARTMENT FOR EDUCATION,DEPARTMENT FOR EDUCATION,17/05/2010,MANAGEMENT CONSULTANCY,School Performance and Reform Office of the Schools Commissioner,WHITE CONSULTANTS LTD CATALIST,4000024158,6016
DEPARTMENT FOR EDUCATION,DEPARTMENT FOR EDUCATION,17/05/2010,PROFESSIONAL FEES,School Performance and Reform Group,WHITE CONSULTANTS LTD CATALIST,4000024158,78688.42
DEPARTMENT FOR EDUCATION,DEPARTMENT FOR EDUCATION,17/05/2010,CAPITAL GRANTS,School Formation and Investment Group,WREN ACADEMY,4000024159,1281348.31
DEPARTMENT FOR EDUCATION,DEPARTMENT FOR EDUCATION,18/05/2010,CURRENT GRANTS,Children and Families Early Years Extended Schools and Special Needs,BRITISH DYSLEXIA ASSOCIATION,1000156,309750
DEPARTMENT FOR EDUCATION,TEACHERS PENSION SCHEME,18/05/2010,FUNDING TO PAY TEACHERS PENSIONS,Workforce Group Young - TPS,CAPITA TP HSBC,1000161,71723.97
DEPARTMENT FOR EDUCATION,TEACHERS PENSION SCHEME,18/05/2010,FUNDING TO PAY TEACHERS PENSIONS,Workforce Group Young - TPS,CAPITA TP NATWEST,1000162,16375272.95
DEPARTMENT FOR EDUCATION,TEACHERS PENSION SCHEME,18/05/2010,FUNDING TO PAY TEACHERS PENSIONS,Workforce Group Young - TPS,CAPITA TP HSBC,1000163,41624462.46
DEPARTMENT FOR EDUCATION,TEACHERS PENSION SCHEME,18/05/2010,FUNDING TO PAY TEACHERS PENSIONS,Workforce Group Young - TPS,CAPITA TP NATWEST,1000164,62642.58
DEPARTMENT FOR EDUCATION,TEACHERS PENSION SCHEME,18/05/2010,FUNDING TO PAY TEACHERS PENSIONS,Workforce Group Young - TPS,CAPITA TP HSBC,1000165,127288.39
DEPARTMENT FOR EDUCATION,TEACHERS PENSION SCHEME,18/05/2010,FUNDING TO PAY TEACHERS PENSIONS,Workforce Group Young - TPS,CAPITA TP NATWEST,1000166,15135802.42
DEPARTMENT FOR EDUCATION,DEPARTMENT FOR EDUCATION,18/05/2010,CONTRACT PROGRAMME EXPENDITURE,School Formation and Investment Group,APPLEYARDS LTD,4000024193,145153.77
DEPARTMENT FOR EDUCATION,DEPARTMENT FOR EDUCATION,18/05/2010,CURRENT GRANTS,Children and Families Group,BARNSLEY MBC,4000024197,189366.69
DEPARTMENT FOR EDUCATION,DEPARTMENT FOR EDUCATION,18/05/2010,RESEARCH & DEVELOPMENT COSTS,Children and Families Early Years Extended Schools and Special Needs,BIRKBECK COLLEGE,4000024198,258587.85
DEPARTMENT FOR EDUCATION,DEPARTMENT FOR EDUCATION,18/05/2010,CURRENT GRANTS,Children and Families Group,BLACKBURN WITH DARWEN BOROUGH COUNCIL,4000024199,475190.42
DEPARTMENT FOR EDUCATION,DEPARTMENT FOR EDUCATION,18/05/2010,CAPITAL GRANTS,School Resources Group,BUILDING SCHOOL FOR THE FUTURE INVESTMENTS LLP,4000024202,1893705
DEPARTMENT FOR EDUCATION,DEPARTMENT FOR EDUCATION,18/05/2010,CONTRACT PROGRAMME EXPENDITURE,Curriculum and Pupil Well Being Curriculum Unit,C I L T,4000024203,39651.06
DEPARTMENT FOR EDUCATION,DEPARTMENT FOR EDUCATION,18/05/2010,IS/IT,"Strategic Analysis, Research and Policy Impact Group",CAPGEMINI UK PLC,4000024204,4418
DEPARTMENT FOR EDUCATION,DEPARTMENT FOR EDUCATION,18/05/2010,IS/IT,Chief Information Officer Group,CAPGEMINI UK PLC,4000024204,9870
DEPARTMENT FOR EDUCATION,DEPARTMENT FOR EDUCATION,18/05/2010,IS/IT,"Strategic Analysis, Research and Policy Impact Group",CAPGEMINI UK PLC,4000024204,12447.45
DEPARTMENT FOR EDUCATION,DEPARTMENT FOR EDUCATION,18/05/2010,CURRENT GRANTS,Children and Families Group,CHESHIRE WEST & CHESTER COUNCIL,4000024208,66211
DEPARTMENT FOR EDUCATION,DEPARTMENT FOR EDUCATION,18/05/2010,CONTRACT PROGRAMME EXPENDITURE,Children and Families Early Years Extended Schools and Special Needs,CONTINYOU SOLUTIONS LTD,4000024212,192700
DEPARTMENT FOR EDUCATION,DEPARTMENT FOR EDUCATION,18/05/2010,CURRENT GRANTS,Children and Families Group,DARLINGTON BOROUGH COUNCIL,4000024213,100689
DEPARTMENT FOR EDUCATION,DEPARTMENT FOR EDUCATION,18/05/2010,MISCELLANEOUS EXPENDITURE,Children and Families Child Well Being Group,DEPARTMENT OF HEALTH,4000024215,600000
DEPARTMENT FOR EDUCATION,DEPARTMENT FOR EDUCATION,18/05/2010,CURRENT GRANTS,Children and Families Group,DEVON COUNTY COUNCIL,4000024216,178110
DEPARTMENT FOR EDUCATION,DEPARTMENT FOR EDUCATION,18/05/2010,COMMUNICATIONS & PUBLICITY,School Standards Group,DIGITAL PUBLIC,4000024217,50035.11
DEPARTMENT FOR EDUCATION,DEPARTMENT FOR EDUCATION,18/05/2010,CURRENT GRANTS,Children and Families Group,DUDLEY MBC,4000024219,280716.21
DEPARTMENT FOR EDUCATION,DEPARTMENT FOR EDUCATION,18/05/2010,CURRENT GRANTS,14 - 19 Reform Qualification Standards and Reform,EDEN PROJECT,4000024220,73407.48
DEPARTMENT FOR EDUCATION,DEPARTMENT FOR EDUCATION,18/05/2010,UTILITIES,Commercial Group EFM,EDF ENERGY,4000024221,9393.91
DEPARTMENT FOR EDUCATION,DEPARTMENT FOR EDUCATION,18/05/2010,UTILITIES,Commercial Group EFM,EDF ENERGY,4000024221,98246.02
DEPARTMENT FOR EDUCATION,DEPARTMENT FOR EDUCATION,18/05/2010,RATES & SERVICE CHARGES,Commercial Group EFM,HALTON BOROUGH COUNCIL,4000024229,35469
DEPARTMENT FOR EDUCATION,DEPARTMENT FOR EDUCATION,18/05/2010,COMMUNICATIONS & PUBLICITY,Children and Families Supporting Delivery Group,HARRY BARLOW,4000024230,48000
DEPARTMENT FOR EDUCATION,DEPARTMENT FOR EDUCATION,18/05/2010,MANAGEMENT CONSULTANCY,14 - 19 Reform Young People Guidance,IGEN LTD,4000024233,31296.45
DEPARTMENT FOR EDUCATION,DEPARTMENT FOR EDUCATION,18/05/2010,MISCELLANEOUS EXPENDITURE,Commercial Group EFM,ISS FACILITY SERVICES T/A PEGASUS SECURITY GROUP,4000024236,28944.01
DEPARTMENT FOR EDUCATION,DEPARTMENT FOR EDUCATION,18/05/2010,CAPITAL GRANTS,School Formation and Investment Group,KINGSHURST CTC,4000024244,518396.4
DEPARTMENT FOR EDUCATION,DEPARTMENT FOR EDUCATION,18/05/2010,CURRENT GRANTS,Children and Families Group,LINCOLNSHIRE COUNTY COUNCIL,4000024245,192426
DEPARTMENT FOR EDUCATION,DEPARTMENT FOR EDUCATION,18/05/2010,CURRENT GRANTS,Children and Families Group,LONDON BOROUGH OF BRENT,4000024246,241146.6
DEPARTMENT FOR EDUCATION,DEPARTMENT FOR EDUCATION,18/05/2010,CURRENT GRANTS,Children and Families Group,LONDON BOROUGH OF BROMLEY COUNCIL,4000024247,159006
DEPARTMENT FOR EDUCATION,DEPARTMENT FOR EDUCATION,18/05/2010,CURRENT GRANTS,Children and Families Group,LONDON BOROUGH OF MERTON COUNCIL,4000024248,188396
DEPARTMENT FOR EDUCATION,DEPARTMENT FOR EDUCATION,18/05/2010,CURRENT GRANTS,Children and Families Group,LONDON BOROUGH OF TOWER HAMLETS COUNCIL,4000024249,372625
DEPARTMENT FOR EDUCATION,DEPARTMENT FOR EDUCATION,18/05/2010,CURRENT GRANTS,Children and Families Group,METROPOLITAN BOROUGH OF WIRRAL,4000024251,275697
DEPARTMENT FOR EDUCATION,DEPARTMENT FOR EDUCATION,18/05/2010,IS/IT,Chief Information Officer Group,MICROSOFT LTD,4000024252,65930
DEPARTMENT FOR EDUCATION,DEPARTMENT FOR EDUCATION,18/05/2010,FACILITIES OTHER,Commercial Group EFM,MITIE TECHNICAL FACILITIES MANAGEMENT LTD,4000024254,11323.5
DEPARTMENT FOR EDUCATION,DEPARTMENT FOR EDUCATION,18/05/2010,FACILITIES OTHER,Commercial Group EFM,MITIE TECHNICAL FACILITIES MANAGEMENT LTD,4000024254,58850.5
DEPARTMENT FOR EDUCATION,DEPARTMENT FOR EDUCATION,18/05/2010,LAND AND BUILDINGS,Commercial Group EFM,MORGAN LOVELL PLC,4000024256,1113933.08
DEPARTMENT FOR EDUCATION,DEPARTMENT FOR EDUCATION,18/05/2010,MISCELLANEOUS EXPENDITURE,"Strategic Analysis, Research and Policy Impact Group",NATIONAL CENTRE FOR SOCIAL RESEARCH,4000024257,63951
DEPARTMENT FOR EDUCATION,DEPARTMENT FOR EDUCATION,18/05/2010,CURRENT GRANTS,Children and Families Group,NATIONAL COUNCIL FOR ONE PARENT FAMILIES,4000024258,73387
DEPARTMENT FOR EDUCATION,DEPARTMENT FOR EDUCATION,18/05/2010,CURRENT GRANTS,Children and Families Group,NOTTINGHAM CITY COUNCIL,4000024262,754311.12
DEPARTMENT FOR EDUCATION,DEPARTMENT FOR EDUCATION,18/05/2010,CURRENT GRANTS,Children and Families Group,OLDHAM MBC,4000024264,307812.5
DEPARTMENT FOR EDUCATION,DEPARTMENT FOR EDUCATION,18/05/2010,CONTRACT PROGRAMME EXPENDITURE,School Formation and Investment Group,PLACE GROUP LIMITED,4000024265,106270.52
DEPARTMENT FOR EDUCATION,DEPARTMENT FOR EDUCATION,18/05/2010,COMMUNICATIONS & PUBLICITY,Corporate and Internal Communications Group,REDHOUSE LANE COMMUNICATIONS LTD,4000024268,37805.63
DEPARTMENT FOR EDUCATION,DEPARTMENT FOR EDUCATION,18/05/2010,CURRENT GRANTS,Children and Families Group,ROYAL BOROUGH OF KINGSTON UPON THAMES COUNCIL,4000024272,99408
DEPARTMENT FOR EDUCATION,DEPARTMENT FOR EDUCATION,18/05/2010,CURRENT GRANTS,Children and Families Group,SHEFFIELD CITY COUNCIL,4000024274,410633
DEPARTMENT FOR EDUCATION,DEPARTMENT FOR EDUCATION,18/05/2010,CURRENT GRANTS,Children and Families Group,SHROPSHIRE COUNCIL,4000024275,130519.7
DEPARTMENT FOR EDUCATION,DEPARTMENT FOR EDUCATION,18/05/2010,CURRENT GRANTS,Children and Families Group,STOCKTON ON TEES,4000024278,329202.43
DEPARTMENT FOR EDUCATION,DEPARTMENT FOR EDUCATION,18/05/2010,OFFICE MACHINERY HIRE & MAINTENANCE,Commercial Group EFM,THE DANWOOD GROUP LTD,4000024280,-6824.86
DEPARTMENT FOR EDUCATION,DEPARTMENT FOR EDUCATION,18/05/2010,PRINTING STATIONERY IT & CONSUMABLES,Commercial Group EFM,THE DANWOOD GROUP LTD,4000024280,32018.31
DEPARTMENT FOR EDUCATION,DEPARTMENT FOR EDUCATION,18/05/2010,CONTRACT PROGRAMME EXPENDITURE,Children and Families Early Years Extended Schools and Special Needs,THE UNIVERSITY OF WARWICK,4000024282,200000
DEPARTMENT FOR EDUCATION,DEPARTMENT FOR EDUCATION,18/05/2010,CONTRACT PROGRAMME EXPENDITURE,School Formation and Investment Group,TRIBAL EDUCATION LIMITED,4000024285,42997.66
DEPARTMENT FOR EDUCATION,DEPARTMENT FOR EDUCATION,18/05/2010,MISCELLANEOUS EXPENDITURE,"Strategic Analysis, Research and Policy Impact Group",UNIVERSITY OF THE WEST OF ENGLAND,4000024287,30000
DEPARTMENT FOR EDUCATION,DEPARTMENT FOR EDUCATION,18/05/2010,CURRENT GRANTS,Children and Families Group,WEST SUSSEX COUNTY COUNCIL,4000024290,397863
DEPARTMENT FOR EDUCATION,DEPARTMENT FOR EDUCATION,18/05/2010,CURRENT GRANTS,Children and Families Group,YOUNG MINDS,4000024293,110220.5
DEPARTMENT FOR EDUCATION,DEPARTMENT FOR EDUCATION,19/05/2010,CURRENT GRANTS,School Resources Group,BARNSLEY MBC,4000024294,5220600
DEPARTMENT FOR EDUCATION,DEPARTMENT FOR EDUCATION,19/05/2010,CURRENT GRANTS,School Resources Group,BATH & NORTH EAST SOMERSET COUNCIL,4000024295,3954720
DEPARTMENT FOR EDUCATION,DEPARTMENT FOR EDUCATION,19/05/2010,CURRENT GRANTS,School Resources Group,BEDFORD BOROUGH COUNCIL,4000024296,3935280
DEPARTMENT FOR EDUCATION,DEPARTMENT FOR EDUCATION,19/05/2010,CURRENT GRANTS,School Resources Group,BIRMINGHAM CITY COUNCIL,4000024297,31863680
DEPARTMENT FOR EDUCATION,DEPARTMENT FOR EDUCATION,19/05/2010,CURRENT GRANTS,School Resources Group,BLACKBURN WITH DARWEN BOROUGH COUNCIL,4000024298,4407200
DEPARTMENT FOR EDUCATION,DEPARTMENT FOR EDUCATION,19/05/2010,CURRENT GRANTS,School Resources Group,BLACKPOOL BOROUGH COUNCIL,4000024299,3495600
DEPARTMENT FOR EDUCATION,DEPARTMENT FOR EDUCATION,19/05/2010,CURRENT GRANTS,School Resources Group,BOLTON MBC,4000024300,7114480
DEPARTMENT FOR EDUCATION,DEPARTMENT FOR EDUCATION,19/05/2010,CURRENT GRANTS,School Resources Group,BOURNEMOUTH BOROUGH COUNCIL,4000024301,3297640
DEPARTMENT FOR EDUCATION,DEPARTMENT FOR EDUCATION,19/05/2010,CURRENT GRANTS,School Resources Group,BRACKNELL FOREST BOROUGH COUNCIL,4000024302,2602560
DEPARTMENT FOR EDUCATION,DEPARTMENT FOR EDUCATION,19/05/2010,CURRENT GRANTS,School Resources Group,BRIGHTON & HOVE CITY COUNCIL,4000024303,5387280
DEPARTMENT FOR EDUCATION,DEPARTMENT FOR EDUCATION,19/05/2010,CURRENT GRANTS,School Resources Group,BRISTOL CITY COUNCIL,4000024304,8053880
DEPARTMENT FOR EDUCATION,DEPARTMENT FOR EDUCATION,19/05/2010,CURRENT GRANTS,School Resources Group,BUCKINGHAMSHIRE COUNTY COUNCIL,4000024305,11800600
DEPARTMENT FOR EDUCATION,DEPARTMENT FOR EDUCATION,19/05/2010,CURRENT GRANTS,School Resources Group,BURY MBC,4000024306,4701440
DEPARTMENT FOR EDUCATION,DEPARTMENT FOR EDUCATION,19/05/2010,CURRENT GRANTS,School Resources Group,CALDERDALE MBC,4000024307,5471680
DEPARTMENT FOR EDUCATION,DEPARTMENT FOR EDUCATION,19/05/2010,CURRENT GRANTS,School Resources Group,CAMBRIDGESHIRE COUNTY COUNCIL,4000024308,12834560
DEPARTMENT FOR EDUCATION,DEPARTMENT FOR EDUCATION,19/05/2010,CURRENT GRANTS,School Resources Group,CENTRAL BEDFORDSHIRE COUNCIL,4000024309,5869000
DEPARTMENT FOR EDUCATION,DEPARTMENT FOR EDUCATION,19/05/2010,CURRENT GRANTS,School Resources Group,CHESHIRE EAST COUNCIL,4000024310,8014040
DEPARTMENT FOR EDUCATION,DEPARTMENT FOR EDUCATION,19/05/2010,CURRENT GRANTS,School Resources Group,CHESHIRE WEST & CHESTER COUNCIL,4000024311,7608480
DEPARTMENT FOR EDUCATION,DEPARTMENT FOR EDUCATION,19/05/2010,CURRENT GRANTS,School Resources Group,CITY OF BRADFORD METROPOLITAN DISTRICT COUNCIL,4000024312,14112240
DEPARTMENT FOR EDUCATION,DEPARTMENT FOR EDUCATION,19/05/2010,CURRENT GRANTS,School Resources Group,CITY OF LONDON,4000024313,81560
DEPARTMENT FOR EDUCATION,DEPARTMENT FOR EDUCATION,19/05/2010,CURRENT GRANTS,School Resources Group,CITY OF WESTMINSTER,4000024314,3846200
DEPARTMENT FOR EDUCATION,DEPARTMENT FOR EDUCATION,19/05/2010,CURRENT GRANTS,School Resources Group,CORNWALL COUNCIL,4000024315,11137840
DEPARTMENT FOR EDUCATION,DEPARTMENT FOR EDUCATION,19/05/2010,CURRENT GRANTS,School Resources Group,COUNCIL OF THE ISLES OF SCILLY,4000024316,116653
DEPARTMENT FOR EDUCATION,DEPARTMENT FOR EDUCATION,19/05/2010,CURRENT GRANTS,School Resources Group,COVENTRY CITY COUNCIL,4000024317,8090440
DEPARTMENT FOR EDUCATION,DEPARTMENT FOR EDUCATION,19/05/2010,CURRENT GRANTS,School Resources Group,CUMBRIA COUNTY COUNCIL,4000024318,10528120
DEPARTMENT FOR EDUCATION,DEPARTMENT FOR EDUCATION,19/05/2010,CURRENT GRANTS,School Resources Group,DARLINGTON BOROUGH COUNCIL,4000024319,2452520
DEPARTMENT FOR EDUCATION,DEPARTMENT FOR EDUCATION,19/05/2010,CURRENT GRANTS,School Resources Group,DERBY CITY COUNCIL,4000024320,6221800
DEPARTMENT FOR EDUCATION,DEPARTMENT FOR EDUCATION,19/05/2010,CURRENT GRANTS,School Resources Group,DERBYSHIRE COUNTY COUNCIL,4000024321,17154280
DEPARTMENT FOR EDUCATION,DEPARTMENT FOR EDUCATION,19/05/2010,CURRENT GRANTS,School Resources Group,DEVON COUNTY COUNCIL,4000024322,14969440
DEPARTMENT FOR EDUCATION,DEPARTMENT FOR EDUCATION,19/05/2010,CURRENT GRANTS,School Resources Group,DONCASTER MBC,4000024323,6856880
DEPARTMENT FOR EDUCATION,DEPARTMENT FOR EDUCATION,19/05/2010,CURRENT GRANTS,School Resources Group,DORSET COUNTY COUNCIL,4000024324,8552200
DEPARTMENT FOR EDUCATION,DEPARTMENT FOR EDUCATION,19/05/2010,CURRENT GRANTS,School Resources Group,DUDLEY MBC,4000024325,7983080
DEPARTMENT FOR EDUCATION,DEPARTMENT FOR EDUCATION,19/05/2010,CURRENT GRANTS,School Resources Group,DURHAM COUNTY COUNCIL,4000024326,11551920
DEPARTMENT FOR EDUCATION,DEPARTMENT FOR EDUCATION,19/05/2010,CURRENT GRANTS,School Resources Group,EAST RIDING OF YORKSHIRE,4000024327,7280480
DEPARTMENT FOR EDUCATION,DEPARTMENT FOR EDUCATION,19/05/2010,CURRENT GRANTS,School Resources Group,EAST SUSSEX COUNTY COUNCIL,4000024328,11025440
DEPARTMENT FOR EDUCATION,DEPARTMENT FOR EDUCATION,19/05/2010,CURRENT GRANTS,School Resources Group,ESSEX COUNTY COUNCIL,4000024329,31441200
DEPARTMENT FOR EDUCATION,DEPARTMENT FOR EDUCATION,19/05/2010,CURRENT GRANTS,School Resources Group,GATESHEAD MBC,4000024330,4355920
DEPARTMENT FOR EDUCATION,DEPARTMENT FOR EDUCATION,19/05/2010,CURRENT GRANTS,School Resources Group,GLOUCESTERSHIRE COUNTY COUNCIL,4000024331,13026400
DEPARTMENT FOR EDUCATION,DEPARTMENT FOR EDUCATION,19/05/2010,CURRENT GRANTS,School Resources Group,HALTON BOROUGH COUNCIL,4000024332,3321320
DEPARTMENT FOR EDUCATION,DEPARTMENT FOR EDUCATION,19/05/2010,CURRENT GRANTS,School Resources Group,HAMPSHIRE COUNTY COUNCIL,4000024333,28805880
DEPARTMENT FOR EDUCATION,DEPARTMENT FOR EDUCATION,19/05/2010,CURRENT GRANTS,School Resources Group,HARTLEPOOL BOROUGH COUNCIL,4000024334,2473520
DEPARTMENT FOR EDUCATION,DEPARTMENT FOR EDUCATION,19/05/2010,CURRENT GRANTS,School Resources Group,HEREFORDSHIRE COUNCIL,4000024335,3529480
DEPARTMENT FOR EDUCATION,DEPARTMENT FOR EDUCATION,19/05/2010,CURRENT GRANTS,School Resources Group,HERTFORDSHIRE,4000024336,26763320
DEPARTMENT FOR EDUCATION,DEPARTMENT FOR EDUCATION,19/05/2010,CURRENT GRANTS,School Resources Group,ISLE OF WIGHT COUNCIL,4000024337,3042600
DEPARTMENT FOR EDUCATION,DEPARTMENT FOR EDUCATION,19/05/2010,CURRENT GRANTS,School Resources Group,KENT COUNTY COUNCIL,4000024338,32768320
DEPARTMENT FOR EDUCATION,DEPARTMENT FOR EDUCATION,19/05/2010,CURRENT GRANTS,School Resources Group,KINGSTON UPON HULL COUNCIL,4000024339,5947720
DEPARTMENT FOR EDUCATION,DEPARTMENT FOR EDUCATION,19/05/2010,CURRENT GRANTS,School Resources Group,KIRKLEES COUNCIL,4000024340,10461640
DEPARTMENT FOR EDUCATION,DEPARTMENT FOR EDUCATION,19/05/2010,CURRENT GRANTS,School Resources Group,KNOWSLEY MBC,4000024341,4026920
DEPARTMENT FOR EDUCATION,DEPARTMENT FOR EDUCATION,19/05/2010,CURRENT GRANTS,School Resources Group,LANCASHIRE COUNTY COUNCIL,4000024342,27268920
DEPARTMENT FOR EDUCATION,DEPARTMENT FOR EDUCATION,19/05/2010,CURRENT GRANTS,School Resources Group,LEEDS CITY COUNCIL,4000024343,16596840
DEPARTMENT FOR EDUCATION,DEPARTMENT FOR EDUCATION,19/05/2010,CURRENT GRANTS,School Resources Group,LEICESTER CITY COUNCIL,4000024344,8214800
DEPARTMENT FOR EDUCATION,DEPARTMENT FOR EDUCATION,19/05/2010,CURRENT GRANTS,School Resources Group,LEICESTERSHIRE COUNTY COUNCIL,4000024345,13985400
DEPARTMENT FOR EDUCATION,DEPARTMENT FOR EDUCATION,19/05/2010,CURRENT GRANTS,School Resources Group,LINCOLNSHIRE COUNTY COUNCIL,4000024346,15088880
DEPARTMENT FOR EDUCATION,DEPARTMENT FOR EDUCATION,19/05/2010,CURRENT GRANTS,School Resources Group,LIVERPOOL CITY COUNCIL,4000024347,11040880
DEPARTMENT FOR EDUCATION,DEPARTMENT FOR EDUCATION,19/05/2010,CURRENT GRANTS,School Resources Group,LONDON BOROUGH OF BARKING & DAGENHAM COUNCIL,4000024348,6096680
DEPARTMENT FOR EDUCATION,DEPARTMENT FOR EDUCATION,19/05/2010,CURRENT GRANTS,School Resources Group,LONDON BOROUGH OF BARNET COUNCIL,4000024349,8536320
DEPARTMENT FOR EDUCATION,DEPARTMENT FOR EDUCATION,19/05/2010,CURRENT GRANTS,School Resources Group,LONDON BOROUGH OF BEXLEY COUNCIL,4000024350,6404240
DEPARTMENT FOR EDUCATION,DEPARTMENT FOR EDUCATION,19/05/2010,CURRENT GRANTS,School Resources Group,LONDON BOROUGH OF BRENT,4000024351,7943120
DEPARTMENT FOR EDUCATION,DEPARTMENT FOR EDUCATION,19/05/2010,CURRENT GRANTS,School Resources Group,LONDON BOROUGH OF BROMLEY COUNCIL,4000024352,7489840
DEPARTMENT FOR EDUCATION,DEPARTMENT FOR EDUCATION,19/05/2010,CURRENT GRANTS,School Resources Group,LONDON BOROUGH OF CAMDEN,4000024353,5378840
DEPARTMENT FOR EDUCATION,DEPARTMENT FOR EDUCATION,19/05/2010,CURRENT GRANTS,School Resources Group,LONDON BOROUGH OF CROYDON COUNCIL,4000024354,8273880
DEPARTMENT FOR EDUCATION,DEPARTMENT FOR EDUCATION,19/05/2010,CURRENT GRANTS,School Resources Group,LONDON BOROUGH OF EALING COUNCIL,4000024355,8639800
DEPARTMENT FOR EDUCATION,DEPARTMENT FOR EDUCATION,19/05/2010,CURRENT GRANTS,School Resources Group,LONDON BOROUGH OF ENFIELD COUNCIL,4000024356,8965360
DEPARTMENT FOR EDUCATION,DEPARTMENT FOR EDUCATION,19/05/2010,CURRENT GRANTS,School Resources Group,LONDON BOROUGH OF GREENWICH,4000024357,7628960
DEPARTMENT FOR EDUCATION,DEPARTMENT FOR EDUCATION,19/05/2010,CURRENT GRANTS,School Resources Group,LONDON BOROUGH OF HAMMERSMITH & FULHAM COUNCIL,4000024358,3737360
DEPARTMENT FOR EDUCATION,DEPARTMENT FOR EDUCATION,19/05/2010,CURRENT GRANTS,School Resources Group,LONDON BOROUGH OF HARINGEY,4000024359,6857920
DEPARTMENT FOR EDUCATION,DEPARTMENT FOR EDUCATION,19/05/2010,CURRENT GRANTS,School Resources Group,LONDON BOROUGH OF HARROW COUNCIL,4000024360,5789440
DEPARTMENT FOR EDUCATION,DEPARTMENT FOR EDUCATION,19/05/2010,CURRENT GRANTS,School Resources Group,LONDON BOROUGH OF HAVERING COUNCIL,4000024361,6422400
DEPARTMENT FOR EDUCATION,DEPARTMENT FOR EDUCATION,19/05/2010,CURRENT GRANTS,School Resources Group,LONDON BOROUGH OF HILLINGDON  COUNCIL,4000024362,7351400
DEPARTMENT FOR EDUCATION,DEPARTMENT FOR EDUCATION,19/05/2010,CURRENT GRANTS,School Resources Group,LONDON BOROUGH OF HOUNSLOW COUNCIL,4000024363,6694640
DEPARTMENT FOR EDUCATION,DEPARTMENT FOR EDUCATION,19/05/2010,CURRENT GRANTS,School Resources Group,LONDON BOROUGH OF ISLINGTON COUNCIL,4000024364,5248120
DEPARTMENT FOR EDUCATION,DEPARTMENT FOR EDUCATION,19/05/2010,CURRENT GRANTS,School Resources Group,LONDON BOROUGH OF LAMBETH COUNCIL,4000024365,7528080
DEPARTMENT FOR EDUCATION,DEPARTMENT FOR EDUCATION,19/05/2010,CURRENT GRANTS,School Resources Group,LONDON BOROUGH OF LEWISHAM,4000024366,7495200
DEPARTMENT FOR EDUCATION,DEPARTMENT FOR EDUCATION,19/05/2010,CURRENT GRANTS,School Resources Group,LONDON BOROUGH OF MERTON COUNCIL,4000024367,4215000
DEPARTMENT FOR EDUCATION,DEPARTMENT FOR EDUCATION,19/05/2010,CURRENT GRANTS,School Resources Group,LONDON BOROUGH OF NEWHAM,4000024368,10625360
DEPARTMENT FOR EDUCATION,DEPARTMENT FOR EDUCATION,19/05/2010,CURRENT GRANTS,School Resources Group,LONDON BOROUGH OF REDBRIDGE,4000024369,7871640
DEPARTMENT FOR EDUCATION,DEPARTMENT FOR EDUCATION,19/05/2010,CURRENT GRANTS,School Resources Group,LONDON BOROUGH OF RICHMOND UPON THAMES,4000024370,4012240
DEPARTMENT FOR EDUCATION,DEPARTMENT FOR EDUCATION,19/05/2010,CURRENT GRANTS,School Resources Group,LONDON BOROUGH OF SOUTHWARK COUNCIL,4000024371,7071080
DEPARTMENT FOR EDUCATION,DEPARTMENT FOR EDUCATION,19/05/2010,CURRENT GRANTS,School Resources Group,LONDON BOROUGH OF SUTTON,4000024372,5281600
DEPARTMENT FOR EDUCATION,DEPARTMENT FOR EDUCATION,19/05/2010,CURRENT GRANTS,School Resources Group,LONDON BOROUGH OF TOWER HAMLETS COUNCIL,4000024373,9799360
DEPARTMENT FOR EDUCATION,DEPARTMENT FOR EDUCATION,19/05/2010,CURRENT GRANTS,School Resources Group,LONDON BOROUGH OF WALTHAM FOREST COUNCIL,4000024374,7072560
DEPARTMENT FOR EDUCATION,DEPARTMENT FOR EDUCATION,19/05/2010,CURRENT GRANTS,School Resources Group,LONDON BOROUGH OF WANDSWORTH COUNCIL,4000024375,6240040
DEPARTMENT FOR EDUCATION,DEPARTMENT FOR EDUCATION,19/05/2010,CURRENT GRANTS,School Resources Group,LUTON BOROUGH COUNCIL,4000024376,5733720
DEPARTMENT FOR EDUCATION,DEPARTMENT FOR EDUCATION,19/05/2010,CURRENT GRANTS,School Resources Group,MANCHESTER CITY COUNCIL,4000024377,11646560
DEPARTMENT FOR EDUCATION,DEPARTMENT FOR EDUCATION,19/05/2010,CURRENT GRANTS,School Resources Group,MEDWAY COUNCIL,4000024378,6694200
DEPARTMENT FOR EDUCATION,DEPARTMENT FOR EDUCATION,19/05/2010,CURRENT GRANTS,School Resources Group,METROPOLITAN BOROUGH OF WIRRAL,4000024379,7799520
DEPARTMENT FOR EDUCATION,DEPARTMENT FOR EDUCATION,19/05/2010,CURRENT GRANTS,School Resources Group,MIDDLESBROUGH COUNCIL,4000024380,3246920
DEPARTMENT FOR EDUCATION,DEPARTMENT FOR EDUCATION,19/05/2010,CURRENT GRANTS,School Resources Group,MILTON KEYNES COUNCIL,4000024381,6469800
DEPARTMENT FOR EDUCATION,DEPARTMENT FOR EDUCATION,19/05/2010,CURRENT GRANTS,School Resources Group,NEWCASTLE CITY COUNCIL,4000024382,5727560
DEPARTMENT FOR EDUCATION,DEPARTMENT FOR EDUCATION,19/05/2010,CURRENT GRANTS,School Resources Group,NORFOLK COUNTY COUNCIL,4000024383,17382800
DEPARTMENT FOR EDUCATION,DEPARTMENT FOR EDUCATION,19/05/2010,CURRENT GRANTS,School Resources Group,NORTH EAST LINCOLNSHIRE COUNCIL,4000024384,3792440
DEPARTMENT FOR EDUCATION,DEPARTMENT FOR EDUCATION,19/05/2010,CURRENT GRANTS,School Resources Group,NORTH LINCOLNSHIRE COUNCIL,4000024385,3860000
DEPARTMENT FOR EDUCATION,DEPARTMENT FOR EDUCATION,19/05/2010,CURRENT GRANTS,School Resources Group,NORTH SOMERSET COUNCIL,4000024386,4537800
DEPARTMENT FOR EDUCATION,DEPARTMENT FOR EDUCATION,19/05/2010,CURRENT GRANTS,School Resources Group,NORTH TYNESIDE,4000024387,4469120
DEPARTMENT FOR EDUCATION,DEPARTMENT FOR EDUCATION,19/05/2010,CURRENT GRANTS,School Resources Group,NORTH YORKSHIRE COUNTY COUNCIL,4000024388,13174880
DEPARTMENT FOR EDUCATION,DEPARTMENT FOR EDUCATION,19/05/2010,CURRENT GRANTS,School Resources Group,NORTHAMPTONSHIRE COUNTY COUNCIL,4000024389,15684800
DEPARTMENT FOR EDUCATION,DEPARTMENT FOR EDUCATION,19/05/2010,CURRENT GRANTS,School Resources Group,NORTHUMBERLAND COUNTY COUNCIL,4000024390,6516440
DEPARTMENT FOR EDUCATION,DEPARTMENT FOR EDUCATION,19/05/2010,CURRENT GRANTS,School Resources Group,NOTTINGHAM CITY COUNCIL,4000024391,6299760
DEPARTMENT FOR EDUCATION,DEPARTMENT FOR EDUCATION,19/05/2010,CURRENT GRANTS,School Resources Group,NOTTINGHAMSHIRE COUNTY COUNCIL,4000024392,17709440
DEPARTMENT FOR EDUCATION,DEPARTMENT FOR EDUCATION,19/05/2010,CURRENT GRANTS,School Resources Group,OLDHAM MBC,4000024393,6921760
DEPARTMENT FOR EDUCATION,DEPARTMENT FOR EDUCATION,19/05/2010,CURRENT GRANTS,School Resources Group,OXFORDSHIRE COUNTY COUNCIL,4000024394,13600560
DEPARTMENT FOR EDUCATION,DEPARTMENT FOR EDUCATION,19/05/2010,CURRENT GRANTS,School Resources Group,PETERBOROUGH CITY COUNCIL,4000024395,4689680
DEPARTMENT FOR EDUCATION,DEPARTMENT FOR EDUCATION,19/05/2010,CURRENT GRANTS,School Resources Group,PLYMOUTH CITY COUNCIL,4000024396,5820680
DEPARTMENT FOR EDUCATION,DEPARTMENT FOR EDUCATION,19/05/2010,CURRENT GRANTS,School Resources Group,POOLE BOROUGH COUNCIL,4000024397,2868440
DEPARTMENT FOR EDUCATION,DEPARTMENT FOR EDUCATION,19/05/2010,CURRENT GRANTS,School Resources Group,PORTSMOUTH CITY COUNCIL,4000024398,4166960
DEPARTMENT FOR EDUCATION,DEPARTMENT FOR EDUCATION,19/05/2010,CURRENT GRANTS,School Resources Group,READING BOROUGH COUNCIL,4000024399,2970400
DEPARTMENT FOR EDUCATION,DEPARTMENT FOR EDUCATION,19/05/2010,CURRENT GRANTS,School Resources Group,REDCAR & CLEVELAND BOROUGH COUNCIL,4000024400,3642840
DEPARTMENT FOR EDUCATION,DEPARTMENT FOR EDUCATION,19/05/2010,CURRENT GRANTS,School Resources Group,ROCHDALE MBC,4000024401,5736520
DEPARTMENT FOR EDUCATION,DEPARTMENT FOR EDUCATION,19/05/2010,CURRENT GRANTS,School Resources Group,ROTHERHAM MBC,4000024402,6896560
DEPARTMENT FOR EDUCATION,DEPARTMENT FOR EDUCATION,19/05/2010,CURRENT GRANTS,School Resources Group,ROYAL BOROUGH OF KINGSTON UPON THAMES COUNCIL,4000024403,3645520
DEPARTMENT FOR EDUCATION,DEPARTMENT FOR EDUCATION,19/05/2010,CURRENT GRANTS,School Resources Group,RUTLAND COUNTY COUNCIL,4000024404,868960
DEPARTMENT FOR EDUCATION,DEPARTMENT FOR EDUCATION,19/05/2010,CURRENT GRANTS,School Resources Group,SALFORD CITY COUNCIL,4000024405,5419080
DEPARTMENT FOR EDUCATION,DEPARTMENT FOR EDUCATION,19/05/2010,CURRENT GRANTS,School Resources Group,SANDWELL MBC,4000024406,7878760
DEPARTMENT FOR EDUCATION,DEPARTMENT FOR EDUCATION,19/05/2010,CURRENT GRANTS,School Resources Group,SEFTON COUNCIL,4000024407,6560600
DEPARTMENT FOR EDUCATION,DEPARTMENT FOR EDUCATION,19/05/2010,CURRENT GRANTS,School Resources Group,SHEFFIELD CITY COUNCIL,4000024408,11668320
DEPARTMENT FOR EDUCATION,DEPARTMENT FOR EDUCATION,19/05/2010,CURRENT GRANTS,School Resources Group,SHROPSHIRE COUNCIL,4000024409,6096800
DEPARTMENT FOR EDUCATION,DEPARTMENT FOR EDUCATION,19/05/2010,CURRENT GRANTS,School Resources Group,SLOUGH BOROUGH COUNCIL,4000024410,3944640
DEPARTMENT FOR EDUCATION,DEPARTMENT FOR EDUCATION,19/05/2010,CURRENT GRANTS,School Resources Group,SOLIHULL MBC,4000024411,5098280
DEPARTMENT FOR EDUCATION,DEPARTMENT FOR EDUCATION,19/05/2010,CURRENT GRANTS,School Resources Group,SOMERSET COUNTY COUNCIL,4000024412,11136000
DEPARTMENT FOR EDUCATION,DEPARTMENT FOR EDUCATION,19/05/2010,CURRENT GRANTS,School Resources Group,SOUTH GLOUCEST,4000024413,5679000
DEPARTMENT FOR EDUCATION,DEPARTMENT FOR EDUCATION,19/05/2010,CURRENT GRANTS,School Resources Group,SOUTH TYNESIDE,4000024414,3650440
DEPARTMENT FOR EDUCATION,DEPARTMENT FOR EDUCATION,19/05/2010,CURRENT GRANTS,School Resources Group,SOUTHAMPTON CITY COUNCIL,4000024415,4682520
DEPARTMENT FOR EDUCATION,DEPARTMENT FOR EDUCATION,19/05/2010,CURRENT GRANTS,School Resources Group,SOUTHEND ON SEA BOROUGH COUNCIL,4000024416,4359600
DEPARTMENT FOR EDUCATION,DEPARTMENT FOR EDUCATION,19/05/2010,CURRENT GRANTS,School Resources Group,ST HELENS MBC,4000024417,4284280
DEPARTMENT FOR EDUCATION,DEPARTMENT FOR EDUCATION,19/05/2010,CURRENT GRANTS,School Resources Group,STAFFORDSHIRE COUNCIL,4000024418,18727280
DEPARTMENT FOR EDUCATION,DEPARTMENT FOR EDUCATION,19/05/2010,CURRENT GRANTS,School Resources Group,STOCKPORT MBC,4000024419,6303280
DEPARTMENT FOR EDUCATION,DEPARTMENT FOR EDUCATION,19/05/2010,CURRENT GRANTS,School Resources Group,STOCKTON ON TEES,4000024420,4695240
DEPARTMENT FOR EDUCATION,DEPARTMENT FOR EDUCATION,19/05/2010,CURRENT GRANTS,School Resources Group,STOKE ON TRENT CITY COUNCIL,4000024421,5950920
DEPARTMENT FOR EDUCATION,DEPARTMENT FOR EDUCATION,19/05/2010,CURRENT GRANTS,School Resources Group,SUFFOLK COUNTY COUNCIL,4000024422,15149760
DEPARTMENT FOR EDUCATION,DEPARTMENT FOR EDUCATION,19/05/2010,CURRENT GRANTS,School Resources Group,SUNDERLAND CITY COUNCIL,4000024423,6295600
DEPARTMENT FOR EDUCATION,DEPARTMENT FOR EDUCATION,19/05/2010,CURRENT GRANTS,School Resources Group,SURREY COUNTY COUNCIL,4000024424,24078160
DEPARTMENT FOR EDUCATION,DEPARTMENT FOR EDUCATION,19/05/2010,CURRENT GRANTS,School Resources Group,SWINDON BOROUGH COUNCIL,4000024425,4675680
DEPARTMENT FOR EDUCATION,DEPARTMENT FOR EDUCATION,19/05/2010,CURRENT GRANTS,School Resources Group,TAMESIDE MBC,4000024426,5353160
DEPARTMENT FOR EDUCATION,DEPARTMENT FOR EDUCATION,19/05/2010,CURRENT GRANTS,School Resources Group,TELFORD & WREKIN COUNCIL,4000024427,4026160
DEPARTMENT FOR EDUCATION,DEPARTMENT FOR EDUCATION,19/05/2010,CURRENT GRANTS,School Resources Group,THE LONDON BOROUGH OF HACKNEY,4000024428,6529880
DEPARTMENT FOR EDUCATION,DEPARTMENT FOR EDUCATION,19/05/2010,CURRENT GRANTS,School Resources Group,THE ROYAL BOROUGH OF KENSINGTON & CHELSEA COUNCIL,4000024429,2670480
DEPARTMENT FOR EDUCATION,DEPARTMENT FOR EDUCATION,19/05/2010,CURRENT GRANTS,School Resources Group,THE ROYAL BOROUGH OF WINDSOR & MAIDENHEAD,4000024430,3176040
DEPARTMENT FOR EDUCATION,DEPARTMENT FOR EDUCATION,19/05/2010,CURRENT GRANTS,School Resources Group,THURROCK COUNCIL,4000024431,3916600
DEPARTMENT FOR EDUCATION,DEPARTMENT FOR EDUCATION,19/05/2010,CURRENT GRANTS,School Resources Group,TORBAY COUNCIL,4000024432,2927640
DEPARTMENT FOR EDUCATION,DEPARTMENT FOR EDUCATION,19/05/2010,CURRENT GRANTS,School Resources Group,TRAFFORD MB COUNCIL,4000024433,5664680
DEPARTMENT FOR EDUCATION,DEPARTMENT FOR EDUCATION,19/05/2010,CURRENT GRANTS,School Resources Group,WAKEFIELD MDC,4000024434,7438240
DEPARTMENT FOR EDUCATION,DEPARTMENT FOR EDUCATION,19/05/2010,CURRENT GRANTS,School Resources Group,WALSALL MBC,4000024435,7034960
DEPARTMENT FOR EDUCATION,DEPARTMENT FOR EDUCATION,19/05/2010,CURRENT GRANTS,School Resources Group,WARRINGTON BOROUGH COUNCIL,4000024436,4961880
DEPARTMENT FOR EDUCATION,DEPARTMENT FOR EDUCATION,19/05/2010,CURRENT GRANTS,School Resources Group,WARWICKSHIRE COUNTY COUNCIL,4000024437,12004360
DEPARTMENT FOR EDUCATION,DEPARTMENT FOR EDUCATION,19/05/2010,CURRENT GRANTS,School Resources Group,WEST BERKSHIRE COUNCIL,4000024438,4022560
DEPARTMENT FOR EDUCATION,DEPARTMENT FOR EDUCATION,19/05/2010,CURRENT GRANTS,School Resources Group,WEST SUSSEX COUNTY COUNCIL,4000024439,16447440
DEPARTMENT FOR EDUCATION,DEPARTMENT FOR EDUCATION,19/05/2010,CURRENT GRANTS,School Resources Group,WIGAN MBC,4000024440,7718600
DEPARTMENT FOR EDUCATION,DEPARTMENT FOR EDUCATION,19/05/2010,CURRENT GRANTS,School Resources Group,WILTSHIRE COUNCIL,4000024441,10076080
DEPARTMENT FOR EDUCATION,DEPARTMENT FOR EDUCATION,19/05/2010,CURRENT GRANTS,School Resources Group,WOKINGHAM BOROUGH COUNCIL,4000024442,3714480
DEPARTMENT FOR EDUCATION,DEPARTMENT FOR EDUCATION,19/05/2010,CURRENT GRANTS,School Resources Group,WOLVERHAMPTON CITY COUNCIL,4000024443,6177640
DEPARTMENT FOR EDUCATION,DEPARTMENT FOR EDUCATION,19/05/2010,CURRENT GRANTS,School Resources Group,WORCESTERSHIRE COUNTY COUNCIL,4000024444,11928520
DEPARTMENT FOR EDUCATION,DEPARTMENT FOR EDUCATION,19/05/2010,CURRENT GRANTS,School Resources Group,YORK CITY COUNCIL,4000024445,3697000
DEPARTMENT FOR EDUCATION,DEPARTMENT FOR EDUCATION,19/05/2010,CONTRACT PROGRAMME EXPENDITURE,Children and Families Safeguarding Group,ACTION FOR CHILDREN,4000024489,87298.31
DEPARTMENT FOR EDUCATION,DEPARTMENT FOR EDUCATION,19/05/2010,CAPITAL GRANTS,School Formation and Investment Group,ARK,4000024490,2216119.02
DEPARTMENT FOR EDUCATION,DEPARTMENT FOR EDUCATION,19/05/2010,CONTRACT PROGRAMME EXPENDITURE,Children and Families Group,BEGRAND NET LTD,4000024491,125039.97
DEPARTMENT FOR EDUCATION,DEPARTMENT FOR EDUCATION,19/05/2010,CURRENT GRANTS,School Standards Group,CANTERBURY CHRIST CHURCH UNIVERSITY,4000024493,70000
DEPARTMENT FOR EDUCATION,DEPARTMENT FOR EDUCATION,19/05/2010,CONTRACT PROGRAMME EXPENDITURE,School Standards Group,CAPITA BUSINESS SERVICES LTD,4000024494,9444722.85
DEPARTMENT FOR EDUCATION,DEPARTMENT FOR EDUCATION,19/05/2010,CONTRACT PROGRAMME EXPENDITURE,School Standards Group,CAPITA BUSINESS SERVICES LTD,4000024495,145645.95
DEPARTMENT FOR EDUCATION,DEPARTMENT FOR EDUCATION,19/05/2010,CONTRACT PROGRAMME EXPENDITURE,School Standards Group,CAPITA BUSINESS SERVICES LTD,4000024497,854383.63
DEPARTMENT FOR EDUCATION,DEPARTMENT FOR EDUCATION,19/05/2010,CONTRACT PROGRAMME EXPENDITURE,School Standards Group,CAPITA BUSINESS SERVICES LTD,4000024498,410708.33
DEPARTMENT FOR EDUCATION,DEPARTMENT FOR EDUCATION,19/05/2010,CONTRACT PROGRAMME EXPENDITURE,School Standards Group,CAPITA BUSINESS SERVICES LTD,4000024499,64709.6
DEPARTMENT FOR EDUCATION,DEPARTMENT FOR EDUCATION,19/05/2010,CONTRACT PROGRAMME EXPENDITURE,School Standards Group,CAPITA BUSINESS SERVICES LTD,4000024500,264801.53
DEPARTMENT FOR EDUCATION,DEPARTMENT FOR EDUCATION,19/05/2010,CONTRACT PROGRAMME EXPENDITURE,Children and Families Group,CAPITA RESOURCING LTD,4000024501,764.93
DEPARTMENT FOR EDUCATION,DEPARTMENT FOR EDUCATION,19/05/2010,COMMUNICATIONS & PUBLICITY,Corporate and Internal Communications Group,CAPITA RESOURCING LTD,4000024501,835.48
DEPARTMENT FOR EDUCATION,DEPARTMENT FOR EDUCATION,19/05/2010,TEMPORARY (TEMP) STAFF COSTS,Commercial Group Schools and Category Management,CAPITA RESOURCING LTD,4000024501,886.42
DEPARTMENT FOR EDUCATION,DEPARTMENT FOR EDUCATION,19/05/2010,TEMPORARY (TEMP) STAFF COSTS,Commercial Group EFM,CAPITA RESOURCING LTD,4000024501,886.42
DEPARTMENT FOR EDUCATION,DEPARTMENT FOR EDUCATION,19/05/2010,MANAGEMENT CONSULTANCY,Supporting Children and Young People as Risk,CAPITA RESOURCING LTD,4000024501,1242.75
DEPARTMENT FOR EDUCATION,DEPARTMENT FOR EDUCATION,19/05/2010,TEMPORARY (TEMP) STAFF COSTS,School Performance and Reform Group,CAPITA RESOURCING LTD,4000024501,1274.88
DEPARTMENT FOR EDUCATION,DEPARTMENT FOR EDUCATION,19/05/2010,TEMPORARY (TEMP) STAFF COSTS,Children and Families Group,CAPITA RESOURCING LTD,4000024501,1529.85
DEPARTMENT FOR EDUCATION,DEPARTMENT FOR EDUCATION,19/05/2010,CONTRACT PROGRAMME EXPENDITURE,Children and Families Group,CAPITA RESOURCING LTD,4000024501,1606.34
DEPARTMENT FOR EDUCATION,DEPARTMENT FOR EDUCATION,19/05/2010,TEMPORARY (TEMP) STAFF COSTS,Children and Families Group,CAPITA RESOURCING LTD,4000024501,1912.31
DEPARTMENT FOR EDUCATION,DEPARTMENT FOR EDUCATION,19/05/2010,CURRENT GRANTS,Children and Families Group,CAPITA RESOURCING LTD,4000024501,1939.31
DEPARTMENT FOR EDUCATION,DEPARTMENT FOR EDUCATION,19/05/2010,TEMPORARY (TEMP) STAFF COSTS,Communications Strategy and Insight Group,CAPITA RESOURCING LTD,4000024501,2538.35
DEPARTMENT FOR EDUCATION,DEPARTMENT FOR EDUCATION,19/05/2010,PROFESSIONAL FEES,School Standards Group,CAPITA RESOURCING LTD,4000024501,2820.35
DEPARTMENT FOR EDUCATION,DEPARTMENT FOR EDUCATION,19/05/2010,TEMPORARY (TEMP) STAFF COSTS,Finance Group,CAPITA RESOURCING LTD,4000024501,2995.95
DEPARTMENT FOR EDUCATION,DEPARTMENT FOR EDUCATION,19/05/2010,COMMUNICATIONS & PUBLICITY,Corporate and Internal Communications Group,CAPITA RESOURCING LTD,4000024501,3596.5
DEPARTMENT FOR EDUCATION,DEPARTMENT FOR EDUCATION,19/05/2010,TEMPORARY (TEMP) STAFF COSTS,Children and Families Group,CAPITA RESOURCING LTD,4000024501,5314.82
DEPARTMENT FOR EDUCATION,DEPARTMENT FOR EDUCATION,19/05/2010,MANAGEMENT CONSULTANCY,Commercial Group EFM,CAPITA RESOURCING LTD,4000024501,6347.34
DEPARTMENT FOR EDUCATION,DEPARTMENT FOR EDUCATION,19/05/2010,TEMPORARY (TEMP) STAFF COSTS,Commercial Group Strategic Functions,CAPITA RESOURCING LTD,4000024501,11305.09
DEPARTMENT FOR EDUCATION,DEPARTMENT FOR EDUCATION,19/05/2010,CONTRACT PROGRAMME EXPENDITURE,Children and Families Group,CAPITA RESOURCING LTD,4000024501,15532.78
DEPARTMENT FOR EDUCATION,DEPARTMENT FOR EDUCATION,19/05/2010,CURRENT GRANTS,Children and Families Supporting Delivery Group,CARE CO ORDINATION NETWORK UK,4000024502,50300
DEPARTMENT FOR EDUCATION,DEPARTMENT FOR EDUCATION,19/05/2010,CURRENT GRANTS,School Formation and Investment Group,CHURCH ACADEMY SERVICES LTD,4000024503,26942.49
DEPARTMENT FOR EDUCATION,DEPARTMENT FOR EDUCATION,19/05/2010,CURRENT GRANTS,School Standards Group,DEVON COUNTY COUNCIL,4000024510,70000
DEPARTMENT FOR EDUCATION,DEPARTMENT FOR EDUCATION,19/05/2010,PROFESSIONAL FEES,Curriculum and Pupil Well Being Curriculum Unit,ECOTEC RESEARCH & CONSULTING LTD,4000024511,47998.75
DEPARTMENT FOR EDUCATION,DEPARTMENT FOR EDUCATION,19/05/2010,OTHER PROGRAMME EXPENSES,Supporting Children and Young People Group Activities and Engagement,ECOTEC RESEARCH & CONSULTING LTD,4000024512,382419.03
DEPARTMENT FOR EDUCATION,DEPARTMENT FOR EDUCATION,19/05/2010,CURRENT GRANTS,School Standards Group,FULBRIDGE SCHOOL,4000024514,70000
DEPARTMENT FOR EDUCATION,DEPARTMENT FOR EDUCATION,19/05/2010,MISCELLANEOUS EXPENDITURE,Private Office ,GCDA GOVERNMENT CAR & DESPATCH AGENCY,4000024515,277.9
DEPARTMENT FOR EDUCATION,DEPARTMENT FOR EDUCATION,19/05/2010,POSTAGE,Commercial Group EFM,GCDA GOVERNMENT CAR & DESPATCH AGENCY,4000024515,737
DEPARTMENT FOR EDUCATION,DEPARTMENT FOR EDUCATION,19/05/2010,MISCELLANEOUS EXPENDITURE,Private Office ,GCDA GOVERNMENT CAR & DESPATCH AGENCY,4000024515,5746.93
DEPARTMENT FOR EDUCATION,DEPARTMENT FOR EDUCATION,19/05/2010,MISCELLANEOUS EXPENDITURE,Private Office ,GCDA GOVERNMENT CAR & DESPATCH AGENCY,4000024515,5746.93
DEPARTMENT FOR EDUCATION,DEPARTMENT FOR EDUCATION,19/05/2010,MISCELLANEOUS EXPENDITURE,Private Office ,GCDA GOVERNMENT CAR & DESPATCH AGENCY,4000024515,5746.93
DEPARTMENT FOR EDUCATION,DEPARTMENT FOR EDUCATION,19/05/2010,MISCELLANEOUS EXPENDITURE,Private Office ,GCDA GOVERNMENT CAR & DESPATCH AGENCY,4000024515,5870.84
DEPARTMENT FOR EDUCATION,DEPARTMENT FOR EDUCATION,19/05/2010,MISCELLANEOUS EXPENDITURE,Private Office ,GCDA GOVERNMENT CAR & DESPATCH AGENCY,4000024515,5972.09
DEPARTMENT FOR EDUCATION,DEPARTMENT FOR EDUCATION,19/05/2010,MISCELLANEOUS EXPENDITURE,Private Office ,GCDA GOVERNMENT CAR & DESPATCH AGENCY,4000024515,7209.08
DEPARTMENT FOR EDUCATION,DEPARTMENT FOR EDUCATION,19/05/2010,CAPITAL GRANTS,School Formation and Investment Group,HARRIS ACADEMY MERTON,4000024517,299628.58
DEPARTMENT FOR EDUCATION,DEPARTMENT FOR EDUCATION,19/05/2010,CAPITAL GRANTS,School Formation and Investment Group,HARRIS CTC,4000024518,36639.81
DEPARTMENT FOR EDUCATION,DEPARTMENT FOR EDUCATION,19/05/2010,CURRENT GRANTS,Children and Families Supporting Delivery Group,KIDS,4000024524,34085
DEPARTMENT FOR EDUCATION,DEPARTMENT FOR EDUCATION,19/05/2010,COMMUNICATIONS & PUBLICITY,Children and Families Group,LEWIS LIVE LTD,4000024526,26834.3
DEPARTMENT FOR EDUCATION,DEPARTMENT FOR EDUCATION,19/05/2010,CONTRACT PROGRAMME EXPENDITURE,Curriculum and Pupil Well Being Curriculum Unit,LIGHTBOX EDUCATION,4000024527,507779.19
DEPARTMENT FOR EDUCATION,DEPARTMENT FOR EDUCATION,19/05/2010,MISCELLANEOUS EXPENDITURE,"Strategic Analysis, Research and Policy Impact Group",NCB,4000024531,28580
DEPARTMENT FOR EDUCATION,DEPARTMENT FOR EDUCATION,19/05/2010,MANAGEMENT CONSULTANCY,Corporate Services Strategy and Performance,OFFICE OF GOVERNMENT COMMERCE,4000024532,38100
DEPARTMENT FOR EDUCATION,DEPARTMENT FOR EDUCATION,19/05/2010,CAPITAL GRANTS,Children and Families Group,PETERBOROUGH CITY COUNCIL,4000024535,348065.09
DEPARTMENT FOR EDUCATION,DEPARTMENT FOR EDUCATION,19/05/2010,CONTRACT PROGRAMME EXPENDITURE,School Formation and Investment Group,PLACE GROUP LIMITED,4000024536,26602.42
DEPARTMENT FOR EDUCATION,DEPARTMENT FOR EDUCATION,19/05/2010,CAPITAL GRANTS,School Formation and Investment Group,ST MARKS C OF E ACADEMY,4000024541,383830.08
DEPARTMENT FOR EDUCATION,DEPARTMENT FOR EDUCATION,19/05/2010,CURRENT GRANTS,School Formation and Investment Group,SUNDERLAND CITY COUNCIL,4000024542,195944
DEPARTMENT FOR EDUCATION,DEPARTMENT FOR EDUCATION,19/05/2010,CURRENT GRANTS,School Formation and Investment Group,THE SKINNERS ACADEMY,4000024544,45992.47
DEPARTMENT FOR EDUCATION,DEPARTMENT FOR EDUCATION,19/05/2010,CURRENT GRANTS,School Standards Group,UNIVERSITY OF WOLVERHAMPTON,4000024548,70000
DEPARTMENT FOR EDUCATION,DEPARTMENT FOR EDUCATION,20/05/2010,CONTRACT PROGRAMME EXPENDITURE,Curriculum and Pupil Well Being Curriculum Unit,NORD ANGLIA PARTNERSHIPS LTD,1000157,44657.05
DEPARTMENT FOR EDUCATION,TEACHERS PENSION SCHEME,20/05/2010,FUNDING TO PAY TEACHERS PENSIONS,Workforce Group Young - TPS,CAPITA TP HSBC,1000167,289658.52
DEPARTMENT FOR EDUCATION,TEACHERS PENSION SCHEME,20/05/2010,FUNDING TO PAY TEACHERS PENSIONS,Workforce Group Young - TPS,CAPITA TP NATWEST,1000168,14968855.46
DEPARTMENT FOR EDUCATION,DEPARTMENT FOR EDUCATION,20/05/2010,CURRENT GRANTS,Children and Families Early Years Extended Schools and Special Needs,BLACKPOOL BOROUGH COUNCIL,4000024553,-5252
DEPARTMENT FOR EDUCATION,DEPARTMENT FOR EDUCATION,20/05/2010,CURRENT GRANTS,Children and Families Early Years Extended Schools and Special Needs,BLACKPOOL BOROUGH COUNCIL,4000024553,253
DEPARTMENT FOR EDUCATION,DEPARTMENT FOR EDUCATION,20/05/2010,CAPITAL GRANTS,Children and Families Early Years Extended Schools and Special Needs,BLACKPOOL BOROUGH COUNCIL,4000024553,18250
DEPARTMENT FOR EDUCATION,DEPARTMENT FOR EDUCATION,20/05/2010,CURRENT GRANTS,Children and Families Early Years Extended Schools and Special Needs,BLACKPOOL BOROUGH COUNCIL,4000024553,24352
DEPARTMENT FOR EDUCATION,DEPARTMENT FOR EDUCATION,20/05/2010,CURRENT GRANTS,Children and Families Early Years Extended Schools and Special Needs,BLACKPOOL BOROUGH COUNCIL,4000024553,36150
DEPARTMENT FOR EDUCATION,DEPARTMENT FOR EDUCATION,20/05/2010,CAPITAL GRANTS,Children and Families Early Years Extended Schools and Special Needs,BLACKPOOL BOROUGH COUNCIL,4000024553,129956
DEPARTMENT FOR EDUCATION,DEPARTMENT FOR EDUCATION,20/05/2010,CURRENT GRANTS,Children and Families Early Years Extended Schools and Special Needs,BLACKPOOL BOROUGH COUNCIL,4000024553,366253
DEPARTMENT FOR EDUCATION,DEPARTMENT FOR EDUCATION,20/05/2010,CURRENT GRANTS,Children and Families Early Years Extended Schools and Special Needs,BLACKPOOL BOROUGH COUNCIL,4000024553,842925
DEPARTMENT FOR EDUCATION,DEPARTMENT FOR EDUCATION,20/05/2010,CAPITAL GRANTS,Children and Families Early Years Extended Schools and Special Needs,HARTLEPOOL BOROUGH COUNCIL,4000024554,13400
DEPARTMENT FOR EDUCATION,DEPARTMENT FOR EDUCATION,20/05/2010,CURRENT GRANTS,Children and Families Early Years Extended Schools and Special Needs,HARTLEPOOL BOROUGH COUNCIL,4000024554,16417
DEPARTMENT FOR EDUCATION,DEPARTMENT FOR EDUCATION,20/05/2010,CURRENT GRANTS,Children and Families Early Years Extended Schools and Special Needs,HARTLEPOOL BOROUGH COUNCIL,4000024554,41616
DEPARTMENT FOR EDUCATION,DEPARTMENT FOR EDUCATION,20/05/2010,CAPITAL GRANTS,Children and Families Early Years Extended Schools and Special Needs,HARTLEPOOL BOROUGH COUNCIL,4000024554,226763
DEPARTMENT FOR EDUCATION,DEPARTMENT FOR EDUCATION,20/05/2010,CURRENT GRANTS,Children and Families Early Years Extended Schools and Special Needs,HARTLEPOOL BOROUGH COUNCIL,4000024554,373564
DEPARTMENT FOR EDUCATION,DEPARTMENT FOR EDUCATION,20/05/2010,CURRENT GRANTS,Children and Families Early Years Extended Schools and Special Needs,HARTLEPOOL BOROUGH COUNCIL,4000024554,611520
DEPARTMENT FOR EDUCATION,DEPARTMENT FOR EDUCATION,20/05/2010,CURRENT GRANTS,Children and Families Early Years Extended Schools and Special Needs,WEST SUSSEX COUNTY COUNCIL,4000024555,76520
DEPARTMENT FOR EDUCATION,DEPARTMENT FOR EDUCATION,20/05/2010,CAPITAL GRANTS,Children and Families Early Years Extended Schools and Special Needs,WEST SUSSEX COUNTY COUNCIL,4000024555,90625
DEPARTMENT FOR EDUCATION,DEPARTMENT FOR EDUCATION,20/05/2010,CURRENT GRANTS,Children and Families Early Years Extended Schools and Special Needs,WEST SUSSEX COUNTY COUNCIL,4000024555,196750
DEPARTMENT FOR EDUCATION,DEPARTMENT FOR EDUCATION,20/05/2010,CURRENT GRANTS,Children and Families Early Years Extended Schools and Special Needs,WEST SUSSEX COUNTY COUNCIL,4000024555,286812
DEPARTMENT FOR EDUCATION,DEPARTMENT FOR EDUCATION,20/05/2010,CAPITAL GRANTS,Children and Families Early Years Extended Schools and Special Needs,WEST SUSSEX COUNTY COUNCIL,4000024555,457040
DEPARTMENT FOR EDUCATION,DEPARTMENT FOR EDUCATION,20/05/2010,CURRENT GRANTS,Children and Families Early Years Extended Schools and Special Needs,WEST SUSSEX COUNTY COUNCIL,4000024555,3162182
DEPARTMENT FOR EDUCATION,DEPARTMENT FOR EDUCATION,20/05/2010,RESEARCH & DEVELOPMENT COSTS,Children and Families Early Years Extended Schools and Special Needs,BIRKBECK COLLEGE,4000024595,258587.84
DEPARTMENT FOR EDUCATION,DEPARTMENT FOR EDUCATION,20/05/2010,STAFF EXPENSES / COSTS,Commercial Group,CARLSON WAGONLIT TRAVEL,4000024601,-498.06
DEPARTMENT FOR EDUCATION,DEPARTMENT FOR EDUCATION,20/05/2010,STAFF EXPENSES / COSTS,Chief Information Officer Group,CARLSON WAGONLIT TRAVEL,4000024601,-245.07
DEPARTMENT FOR EDUCATION,DEPARTMENT FOR EDUCATION,20/05/2010,STAFF EXPENSES / COSTS,School Formation and Investment Group,CARLSON WAGONLIT TRAVEL,4000024601,-227.37
DEPARTMENT FOR EDUCATION,DEPARTMENT FOR EDUCATION,20/05/2010,STAFF EXPENSES / COSTS,Commercial Group Schools and Category Management,CARLSON WAGONLIT TRAVEL,4000024601,-164.79
DEPARTMENT FOR EDUCATION,DEPARTMENT FOR EDUCATION,20/05/2010,STAFF EXPENSES / COSTS,School Analysis and Research,CARLSON WAGONLIT TRAVEL,4000024601,-115.17
DEPARTMENT FOR EDUCATION,DEPARTMENT FOR EDUCATION,20/05/2010,STAFF EXPENSES / COSTS,Chief Information Officer Group,CARLSON WAGONLIT TRAVEL,4000024601,-88.46
DEPARTMENT FOR EDUCATION,DEPARTMENT FOR EDUCATION,20/05/2010,STAFF EXPENSES / COSTS,Curriculum and Pupil Well Being Unit,CARLSON WAGONLIT TRAVEL,4000024601,-80.48
DEPARTMENT FOR EDUCATION,DEPARTMENT FOR EDUCATION,20/05/2010,STAFF EXPENSES / COSTS,Commercial Group Shared Services and Children and Young People,CARLSON WAGONLIT TRAVEL,4000024601,-57.49
DEPARTMENT FOR EDUCATION,DEPARTMENT FOR EDUCATION,20/05/2010,STAFF EXPENSES / COSTS,Press Office Group,CARLSON WAGONLIT TRAVEL,4000024601,-26.57
DEPARTMENT FOR EDUCATION,DEPARTMENT FOR EDUCATION,20/05/2010,STAFF EXPENSES / COSTS,Children and Families Supporting Delivery Group,CARLSON WAGONLIT TRAVEL,4000024601,4.16
DEPARTMENT FOR EDUCATION,DEPARTMENT FOR EDUCATION,20/05/2010,STAFF EXPENSES / COSTS,School Standards Group,CARLSON WAGONLIT TRAVEL,4000024601,18.16
DEPARTMENT FOR EDUCATION,DEPARTMENT FOR EDUCATION,20/05/2010,STAFF EXPENSES / COSTS,Children and Families Early Years Extended Schools and Special Needs,CARLSON WAGONLIT TRAVEL,4000024601,20.21
DEPARTMENT FOR EDUCATION,DEPARTMENT FOR EDUCATION,20/05/2010,STAFF EXPENSES / COSTS,Curriculum and Pupil Well Being Improving Behaviour and Attendance Unit,CARLSON WAGONLIT TRAVEL,4000024601,21.55
DEPARTMENT FOR EDUCATION,DEPARTMENT FOR EDUCATION,20/05/2010,STAFF EXPENSES / COSTS,Corporate and Internal Communications Group,CARLSON WAGONLIT TRAVEL,4000024601,27.71
DEPARTMENT FOR EDUCATION,DEPARTMENT FOR EDUCATION,20/05/2010,STAFF EXPENSES / COSTS,Young People  Directorate Apprenticeships Group,CARLSON WAGONLIT TRAVEL,4000024601,36.05
DEPARTMENT FOR EDUCATION,DEPARTMENT FOR EDUCATION,20/05/2010,STAFF EXPENSES / COSTS,14 - 19 Reform Qualification Standards and Reform,CARLSON WAGONLIT TRAVEL,4000024601,44.28
DEPARTMENT FOR EDUCATION,DEPARTMENT FOR EDUCATION,20/05/2010,STAFF EXPENSES / COSTS,School Analysis and Research,CARLSON WAGONLIT TRAVEL,4000024601,44.34
DEPARTMENT FOR EDUCATION,DEPARTMENT FOR EDUCATION,20/05/2010,STAFF EXPENSES / COSTS,Commercial Group EFM,CARLSON WAGONLIT TRAVEL,4000024601,46.05
DEPARTMENT FOR EDUCATION,DEPARTMENT FOR EDUCATION,20/05/2010,STAFF EXPENSES / COSTS,School Standards Group,CARLSON WAGONLIT TRAVEL,4000024601,50.25
DEPARTMENT FOR EDUCATION,DEPARTMENT FOR EDUCATION,20/05/2010,STAFF EXPENSES / COSTS,Chief Information Officer Group,CARLSON WAGONLIT TRAVEL,4000024601,61.44
DEPARTMENT FOR EDUCATION,DEPARTMENT FOR EDUCATION,20/05/2010,STAFF EXPENSES / COSTS,Young People Quality Standards and Reform Group,CARLSON WAGONLIT TRAVEL,4000024601,67.89
DEPARTMENT FOR EDUCATION,DEPARTMENT FOR EDUCATION,20/05/2010,STAFF EXPENSES / COSTS,Commercial Group Strategic Functions,CARLSON WAGONLIT TRAVEL,4000024601,73.94
DEPARTMENT FOR EDUCATION,DEPARTMENT FOR EDUCATION,20/05/2010,STAFF EXPENSES / COSTS,School Resources Group,CARLSON WAGONLIT TRAVEL,4000024601,76.81
DEPARTMENT FOR EDUCATION,DEPARTMENT FOR EDUCATION,20/05/2010,STAFF EXPENSES / COSTS,Curriculum and Pupil Well Being Curriculum Unit,CARLSON WAGONLIT TRAVEL,4000024601,77.87
DEPARTMENT FOR EDUCATION,DEPARTMENT FOR EDUCATION,20/05/2010,STAFF EXPENSES / COSTS,People and Change,CARLSON WAGONLIT TRAVEL,4000024601,84.23
DEPARTMENT FOR EDUCATION,DEPARTMENT FOR EDUCATION,20/05/2010,STAFF EXPENSES / COSTS,School Resources Group,CARLSON WAGONLIT TRAVEL,4000024601,88.27
DEPARTMENT FOR EDUCATION,DEPARTMENT FOR EDUCATION,20/05/2010,STAFF EXPENSES / COSTS,Commercial Group Schools and Category Management,CARLSON WAGONLIT TRAVEL,4000024601,92.43
DEPARTMENT FOR EDUCATION,DEPARTMENT FOR EDUCATION,20/05/2010,STAFF EXPENSES / COSTS,Children and Families Group,CARLSON WAGONLIT TRAVEL,4000024601,93.7
DEPARTMENT FOR EDUCATION,DEPARTMENT FOR EDUCATION,20/05/2010,STAFF EXPENSES / COSTS,Children and Families Group,CARLSON WAGONLIT TRAVEL,4000024601,97.67
DEPARTMENT FOR EDUCATION,DEPARTMENT FOR EDUCATION,20/05/2010,STAFF EXPENSES / COSTS,Curriculum and Pupil Well Being Curriculum Unit,CARLSON WAGONLIT TRAVEL,4000024601,99.24
DEPARTMENT FOR EDUCATION,DEPARTMENT FOR EDUCATION,20/05/2010,STAFF EXPENSES / COSTS,School Formation and Investment Group,CARLSON WAGONLIT TRAVEL,4000024601,104.3
DEPARTMENT FOR EDUCATION,DEPARTMENT FOR EDUCATION,20/05/2010,STAFF EXPENSES / COSTS,School Standards Group,CARLSON WAGONLIT TRAVEL,4000024601,106.27
DEPARTMENT FOR EDUCATION,DEPARTMENT FOR EDUCATION,20/05/2010,STAFF EXPENSES / COSTS,School Formation and Investment Group,CARLSON WAGONLIT TRAVEL,4000024601,111.31
DEPARTMENT FOR EDUCATION,DEPARTMENT FOR EDUCATION,20/05/2010,STAFF EXPENSES / COSTS,Commercial Group Schools and Category Management,CARLSON WAGONLIT TRAVEL,4000024601,117.25
DEPARTMENT FOR EDUCATION,DEPARTMENT FOR EDUCATION,20/05/2010,STAFF EXPENSES / COSTS,Young People  Schools Children and Young People Group,CARLSON WAGONLIT TRAVEL,4000024601,123.54
DEPARTMENT FOR EDUCATION,DEPARTMENT FOR EDUCATION,20/05/2010,STAFF EXPENSES / COSTS,Chief Information Officer Group,CARLSON WAGONLIT TRAVEL,4000024601,123.74
DEPARTMENT FOR EDUCATION,DEPARTMENT FOR EDUCATION,20/05/2010,STAFF EXPENSES / COSTS,People and Change,CARLSON WAGONLIT TRAVEL,4000024601,128.99
DEPARTMENT FOR EDUCATION,DEPARTMENT FOR EDUCATION,20/05/2010,STAFF EXPENSES / COSTS,School Analysis and Research,CARLSON WAGONLIT TRAVEL,4000024601,132.95
DEPARTMENT FOR EDUCATION,DEPARTMENT FOR EDUCATION,20/05/2010,STAFF EXPENSES / COSTS,Young People Directorate Support,CARLSON WAGONLIT TRAVEL,4000024601,141.27
DEPARTMENT FOR EDUCATION,DEPARTMENT FOR EDUCATION,20/05/2010,STAFF EXPENSES / COSTS,School Resources Group,CARLSON WAGONLIT TRAVEL,4000024601,148.23
DEPARTMENT FOR EDUCATION,DEPARTMENT FOR EDUCATION,20/05/2010,STAFF EXPENSES / COSTS,Marketing Group,CARLSON WAGONLIT TRAVEL,4000024601,149.55
DEPARTMENT FOR EDUCATION,DEPARTMENT FOR EDUCATION,20/05/2010,STAFF EXPENSES / COSTS,Finance Group,CARLSON WAGONLIT TRAVEL,4000024601,150.99
DEPARTMENT FOR EDUCATION,DEPARTMENT FOR EDUCATION,20/05/2010,STAFF EXPENSES / COSTS,People and Change,CARLSON WAGONLIT TRAVEL,4000024601,167.61
DEPARTMENT FOR EDUCATION,DEPARTMENT FOR EDUCATION,20/05/2010,STAFF EXPENSES / COSTS,Young People  Schools Children and Young People Group,CARLSON WAGONLIT TRAVEL,4000024601,170.67
DEPARTMENT FOR EDUCATION,DEPARTMENT FOR EDUCATION,20/05/2010,STAFF EXPENSES / COSTS,Chief Information Officer Group,CARLSON WAGONLIT TRAVEL,4000024601,173.06
DEPARTMENT FOR EDUCATION,DEPARTMENT FOR EDUCATION,20/05/2010,STAFF EXPENSES / COSTS,Chief Information Officer Group,CARLSON WAGONLIT TRAVEL,4000024601,179.56
DEPARTMENT FOR EDUCATION,DEPARTMENT FOR EDUCATION,20/05/2010,STAFF EXPENSES / COSTS,Young People  Schools Children and Young People Group,CARLSON WAGONLIT TRAVEL,4000024601,184.91
DEPARTMENT FOR EDUCATION,DEPARTMENT FOR EDUCATION,20/05/2010,STAFF EXPENSES / COSTS,School Analysis and Research,CARLSON WAGONLIT TRAVEL,4000024601,187.91
DEPARTMENT FOR EDUCATION,DEPARTMENT FOR EDUCATION,20/05/2010,STAFF EXPENSES / COSTS,Curriculum and Pupil Well Being Curriculum Unit,CARLSON WAGONLIT TRAVEL,4000024601,196.89
DEPARTMENT FOR EDUCATION,DEPARTMENT FOR EDUCATION,20/05/2010,STAFF EXPENSES / COSTS,Young People Quality Standards and Reform Group,CARLSON WAGONLIT TRAVEL,4000024601,200.84
DEPARTMENT FOR EDUCATION,DEPARTMENT FOR EDUCATION,20/05/2010,STAFF EXPENSES / COSTS,School Performance and Reform Group,CARLSON WAGONLIT TRAVEL,4000024601,205.27
DEPARTMENT FOR EDUCATION,DEPARTMENT FOR EDUCATION,20/05/2010,STAFF EXPENSES / COSTS,Chief Information Officer Group,CARLSON WAGONLIT TRAVEL,4000024601,206.13
DEPARTMENT FOR EDUCATION,DEPARTMENT FOR EDUCATION,20/05/2010,STAFF EXPENSES / COSTS,School Analysis and Research,CARLSON WAGONLIT TRAVEL,4000024601,212.84
DEPARTMENT FOR EDUCATION,DEPARTMENT FOR EDUCATION,20/05/2010,STAFF EXPENSES / COSTS,Curriculum and Pupil Well Being Curriculum Unit,CARLSON WAGONLIT TRAVEL,4000024601,217.8
DEPARTMENT FOR EDUCATION,DEPARTMENT FOR EDUCATION,20/05/2010,STAFF EXPENSES / COSTS,Customer Contact and Business Development Group,CARLSON WAGONLIT TRAVEL,4000024601,218.49
DEPARTMENT FOR EDUCATION,DEPARTMENT FOR EDUCATION,20/05/2010,STAFF EXPENSES / COSTS,Children and Families Group,CARLSON WAGONLIT TRAVEL,4000024601,221.55
DEPARTMENT FOR EDUCATION,DEPARTMENT FOR EDUCATION,20/05/2010,STAFF EXPENSES / COSTS,Children and Families Child Well Being Group,CARLSON WAGONLIT TRAVEL,4000024601,226.54
DEPARTMENT FOR EDUCATION,DEPARTMENT FOR EDUCATION,20/05/2010,STAFF EXPENSES / COSTS,Commercial Group EFM,CARLSON WAGONLIT TRAVEL,4000024601,236.37
DEPARTMENT FOR EDUCATION,DEPARTMENT FOR EDUCATION,20/05/2010,STAFF EXPENSES / COSTS,Commercial Group Shared Services and Children and Young People,CARLSON WAGONLIT TRAVEL,4000024601,238.12
DEPARTMENT FOR EDUCATION,DEPARTMENT FOR EDUCATION,20/05/2010,STAFF EXPENSES / COSTS,14 - 19 Reform Qualification Standards and Reform,CARLSON WAGONLIT TRAVEL,4000024601,248.61
DEPARTMENT FOR EDUCATION,DEPARTMENT FOR EDUCATION,20/05/2010,STAFF EXPENSES / COSTS,Children and Families Early Years Extended Schools and Special Needs,CARLSON WAGONLIT TRAVEL,4000024601,250.55
DEPARTMENT FOR EDUCATION,DEPARTMENT FOR EDUCATION,20/05/2010,STAFF EXPENSES / COSTS,Commercial Group Schools and Category Management,CARLSON WAGONLIT TRAVEL,4000024601,253.85
DEPARTMENT FOR EDUCATION,DEPARTMENT FOR EDUCATION,20/05/2010,STAFF EXPENSES / COSTS,Commercial Group EFM,CARLSON WAGONLIT TRAVEL,4000024601,261.88
DEPARTMENT FOR EDUCATION,DEPARTMENT FOR EDUCATION,20/05/2010,STAFF EXPENSES / COSTS,School Performance and Reform Group,CARLSON WAGONLIT TRAVEL,4000024601,262.71
DEPARTMENT FOR EDUCATION,DEPARTMENT FOR EDUCATION,20/05/2010,STAFF EXPENSES / COSTS,School Resources Group,CARLSON WAGONLIT TRAVEL,4000024601,264.52
DEPARTMENT FOR EDUCATION,DEPARTMENT FOR EDUCATION,20/05/2010,STAFF EXPENSES / COSTS,Commercial Group Shared Services and Children and Young People,CARLSON WAGONLIT TRAVEL,4000024601,269.81
DEPARTMENT FOR EDUCATION,DEPARTMENT FOR EDUCATION,20/05/2010,STAFF EXPENSES / COSTS,Young People  Schools Children and Young People Group,CARLSON WAGONLIT TRAVEL,4000024601,272.55
DEPARTMENT FOR EDUCATION,DEPARTMENT FOR EDUCATION,20/05/2010,STAFF EXPENSES / COSTS,School Performance and Reform Group,CARLSON WAGONLIT TRAVEL,4000024601,277.76
DEPARTMENT FOR EDUCATION,DEPARTMENT FOR EDUCATION,20/05/2010,STAFF EXPENSES / COSTS,School Analysis and Research,CARLSON WAGONLIT TRAVEL,4000024601,300.75
DEPARTMENT FOR EDUCATION,DEPARTMENT FOR EDUCATION,20/05/2010,STAFF EXPENSES / COSTS,Children and Families Safeguarding Group,CARLSON WAGONLIT TRAVEL,4000024601,305.29
DEPARTMENT FOR EDUCATION,DEPARTMENT FOR EDUCATION,20/05/2010,STAFF EXPENSES / COSTS,"Strategic Analysis, Research and Policy Impact Group",CARLSON WAGONLIT TRAVEL,4000024601,311.47
DEPARTMENT FOR EDUCATION,DEPARTMENT FOR EDUCATION,20/05/2010,STAFF EXPENSES / COSTS,Commercial Group Shared Services and Children and Young People,CARLSON WAGONLIT TRAVEL,4000024601,315.06
DEPARTMENT FOR EDUCATION,DEPARTMENT FOR EDUCATION,20/05/2010,STAFF EXPENSES / COSTS,People and Change,CARLSON WAGONLIT TRAVEL,4000024601,320.32
DEPARTMENT FOR EDUCATION,DEPARTMENT FOR EDUCATION,20/05/2010,STAFF EXPENSES / COSTS,Commercial Group EFM,CARLSON WAGONLIT TRAVEL,4000024601,334.29
DEPARTMENT FOR EDUCATION,DEPARTMENT FOR EDUCATION,20/05/2010,STAFF EXPENSES / COSTS,Chief Information Officer Group,CARLSON WAGONLIT TRAVEL,4000024601,338.59
DEPARTMENT FOR EDUCATION,DEPARTMENT FOR EDUCATION,20/05/2010,STAFF EXPENSES / COSTS,Communications Strategy and Insight Group,CARLSON WAGONLIT TRAVEL,4000024601,350.93
DEPARTMENT FOR EDUCATION,DEPARTMENT FOR EDUCATION,20/05/2010,STAFF EXPENSES / COSTS,Children and Families Supporting Delivery Group,CARLSON WAGONLIT TRAVEL,4000024601,361.74
DEPARTMENT FOR EDUCATION,DEPARTMENT FOR EDUCATION,20/05/2010,STAFF EXPENSES / COSTS,Commercial Group Shared Services and Children and Young People,CARLSON WAGONLIT TRAVEL,4000024601,363.19
DEPARTMENT FOR EDUCATION,DEPARTMENT FOR EDUCATION,20/05/2010,STAFF EXPENSES / COSTS,Chief Information Officer Group,CARLSON WAGONLIT TRAVEL,4000024601,371.09
DEPARTMENT FOR EDUCATION,DEPARTMENT FOR EDUCATION,20/05/2010,STAFF EXPENSES / COSTS,Corporate Services Strategy and Performance,CARLSON WAGONLIT TRAVEL,4000024601,373.95
DEPARTMENT FOR EDUCATION,DEPARTMENT FOR EDUCATION,20/05/2010,STAFF EXPENSES / COSTS,School Standards Group,CARLSON WAGONLIT TRAVEL,4000024601,375.22
DEPARTMENT FOR EDUCATION,DEPARTMENT FOR EDUCATION,20/05/2010,STAFF EXPENSES / COSTS,Children and Families Supporting Delivery Group,CARLSON WAGONLIT TRAVEL,4000024601,385.73
DEPARTMENT FOR EDUCATION,DEPARTMENT FOR EDUCATION,20/05/2010,STAFF EXPENSES / COSTS,Commercial Group Schools and Category Management,CARLSON WAGONLIT TRAVEL,4000024601,388.64
DEPARTMENT FOR EDUCATION,DEPARTMENT FOR EDUCATION,20/05/2010,STAFF EXPENSES / COSTS,Commercial Group Schools and Category Management,CARLSON WAGONLIT TRAVEL,4000024601,392.01
DEPARTMENT FOR EDUCATION,DEPARTMENT FOR EDUCATION,20/05/2010,STAFF EXPENSES / COSTS,Young People  Schools Children and Young People Group,CARLSON WAGONLIT TRAVEL,4000024601,403.9
DEPARTMENT FOR EDUCATION,DEPARTMENT FOR EDUCATION,20/05/2010,STAFF EXPENSES / COSTS,School Formation and Investment Group,CARLSON WAGONLIT TRAVEL,4000024601,449.94
DEPARTMENT FOR EDUCATION,DEPARTMENT FOR EDUCATION,20/05/2010,STAFF EXPENSES / COSTS,School Formation and Investment Group,CARLSON WAGONLIT TRAVEL,4000024601,453.25
DEPARTMENT FOR EDUCATION,DEPARTMENT FOR EDUCATION,20/05/2010,STAFF EXPENSES / COSTS,School Formation and Investment Group,CARLSON WAGONLIT TRAVEL,4000024601,455.71
DEPARTMENT FOR EDUCATION,DEPARTMENT FOR EDUCATION,20/05/2010,STAFF EXPENSES / COSTS,Supporting Children and Young People Youth Task Force,CARLSON WAGONLIT TRAVEL,4000024601,460.57
DEPARTMENT FOR EDUCATION,DEPARTMENT FOR EDUCATION,20/05/2010,STAFF EXPENSES / COSTS,People and Change,CARLSON WAGONLIT TRAVEL,4000024601,462.02
DEPARTMENT FOR EDUCATION,DEPARTMENT FOR EDUCATION,20/05/2010,STAFF EXPENSES / COSTS,Chief Information Officer Group,CARLSON WAGONLIT TRAVEL,4000024601,472.63
DEPARTMENT FOR EDUCATION,DEPARTMENT FOR EDUCATION,20/05/2010,STAFF EXPENSES / COSTS,Children and Families Early Years Extended Schools and Special Needs,CARLSON WAGONLIT TRAVEL,4000024601,477.25
DEPARTMENT FOR EDUCATION,DEPARTMENT FOR EDUCATION,20/05/2010,STAFF EXPENSES / COSTS,Commercial Group Shared Services and Children and Young People,CARLSON WAGONLIT TRAVEL,4000024601,481.93
DEPARTMENT FOR EDUCATION,DEPARTMENT FOR EDUCATION,20/05/2010,STAFF EXPENSES / COSTS,Corporate and Internal Communications Group,CARLSON WAGONLIT TRAVEL,4000024601,487.02
DEPARTMENT FOR EDUCATION,DEPARTMENT FOR EDUCATION,20/05/2010,STAFF EXPENSES / COSTS,Children and Families Safeguarding Group,CARLSON WAGONLIT TRAVEL,4000024601,493.94
DEPARTMENT FOR EDUCATION,DEPARTMENT FOR EDUCATION,20/05/2010,STAFF EXPENSES / COSTS,School Formation and Investment Group,CARLSON WAGONLIT TRAVEL,4000024601,500.84
DEPARTMENT FOR EDUCATION,DEPARTMENT FOR EDUCATION,20/05/2010,STAFF EXPENSES / COSTS,Chief Information Officer Group,CARLSON WAGONLIT TRAVEL,4000024601,510.62
DEPARTMENT FOR EDUCATION,DEPARTMENT FOR EDUCATION,20/05/2010,STAFF EXPENSES / COSTS,Supporting Children and Young People as Risk,CARLSON WAGONLIT TRAVEL,4000024601,528.12
DEPARTMENT FOR EDUCATION,DEPARTMENT FOR EDUCATION,20/05/2010,STAFF EXPENSES / COSTS,Commercial Group EFM,CARLSON WAGONLIT TRAVEL,4000024601,571.62
DEPARTMENT FOR EDUCATION,DEPARTMENT FOR EDUCATION,20/05/2010,STAFF EXPENSES / COSTS,School Standards Group,CARLSON WAGONLIT TRAVEL,4000024601,577.31
DEPARTMENT FOR EDUCATION,DEPARTMENT FOR EDUCATION,20/05/2010,STAFF EXPENSES / COSTS,Chief Information Officer Group,CARLSON WAGONLIT TRAVEL,4000024601,596.33
DEPARTMENT FOR EDUCATION,DEPARTMENT FOR EDUCATION,20/05/2010,STAFF EXPENSES / COSTS,People and Change,CARLSON WAGONLIT TRAVEL,4000024601,616.96
DEPARTMENT FOR EDUCATION,DEPARTMENT FOR EDUCATION,20/05/2010,STAFF EXPENSES / COSTS,People and Change,CARLSON WAGONLIT TRAVEL,4000024601,627.63
DEPARTMENT FOR EDUCATION,DEPARTMENT FOR EDUCATION,20/05/2010,STAFF EXPENSES / COSTS,Children and Families Early Years Extended Schools and Special Needs,CARLSON WAGONLIT TRAVEL,4000024601,631.31
DEPARTMENT FOR EDUCATION,DEPARTMENT FOR EDUCATION,20/05/2010,STAFF EXPENSES / COSTS,Commercial Group Strategic Functions,CARLSON WAGONLIT TRAVEL,4000024601,642.73
DEPARTMENT FOR EDUCATION,DEPARTMENT FOR EDUCATION,20/05/2010,STAFF EXPENSES / COSTS,School Resources Group,CARLSON WAGONLIT TRAVEL,4000024601,653.01
DEPARTMENT FOR EDUCATION,DEPARTMENT FOR EDUCATION,20/05/2010,STAFF EXPENSES / COSTS,Young People Quality Standards and Reform Group,CARLSON WAGONLIT TRAVEL,4000024601,671.81
DEPARTMENT FOR EDUCATION,DEPARTMENT FOR EDUCATION,20/05/2010,STAFF EXPENSES / COSTS,"Strategic Analysis, Research and Policy Impact Group",CARLSON WAGONLIT TRAVEL,4000024601,676.95
DEPARTMENT FOR EDUCATION,DEPARTMENT FOR EDUCATION,20/05/2010,STAFF EXPENSES / COSTS,Young People Participation and Attainment Group,CARLSON WAGONLIT TRAVEL,4000024601,684.88
DEPARTMENT FOR EDUCATION,DEPARTMENT FOR EDUCATION,20/05/2010,STAFF EXPENSES / COSTS,Children and Families Child Well Being Group,CARLSON WAGONLIT TRAVEL,4000024601,702.77
DEPARTMENT FOR EDUCATION,DEPARTMENT FOR EDUCATION,20/05/2010,STAFF EXPENSES / COSTS,People and Change,CARLSON WAGONLIT TRAVEL,4000024601,708.17
DEPARTMENT FOR EDUCATION,DEPARTMENT FOR EDUCATION,20/05/2010,STAFF EXPENSES / COSTS,School Analysis and Research,CARLSON WAGONLIT TRAVEL,4000024601,743.42
DEPARTMENT FOR EDUCATION,DEPARTMENT FOR EDUCATION,20/05/2010,STAFF EXPENSES / COSTS,Customer Contact and Business Development Group,CARLSON WAGONLIT TRAVEL,4000024601,793.61
DEPARTMENT FOR EDUCATION,DEPARTMENT FOR EDUCATION,20/05/2010,STAFF EXPENSES / COSTS,School Performance and Reform Office of the Schools Commissioner,CARLSON WAGONLIT TRAVEL,4000024601,832.8
DEPARTMENT FOR EDUCATION,DEPARTMENT FOR EDUCATION,20/05/2010,STAFF EXPENSES / COSTS,Young People Quality Standards and Reform Group,CARLSON WAGONLIT TRAVEL,4000024601,847.87
DEPARTMENT FOR EDUCATION,DEPARTMENT FOR EDUCATION,20/05/2010,STAFF EXPENSES / COSTS,Customer Contact and Business Development Group,CARLSON WAGONLIT TRAVEL,4000024601,889.95
DEPARTMENT FOR EDUCATION,DEPARTMENT FOR EDUCATION,20/05/2010,STAFF EXPENSES / COSTS,Chief Information Officer Group,CARLSON WAGONLIT TRAVEL,4000024601,909.71
DEPARTMENT FOR EDUCATION,DEPARTMENT FOR EDUCATION,20/05/2010,STAFF EXPENSES / COSTS,Young People  Schools Children and Young People Group,CARLSON WAGONLIT TRAVEL,4000024601,909.94
DEPARTMENT FOR EDUCATION,DEPARTMENT FOR EDUCATION,20/05/2010,STAFF EXPENSES / COSTS,Commercial Group Shared Services and Children and Young People,CARLSON WAGONLIT TRAVEL,4000024601,918.72
DEPARTMENT FOR EDUCATION,DEPARTMENT FOR EDUCATION,20/05/2010,STAFF EXPENSES / COSTS,School Resources Group,CARLSON WAGONLIT TRAVEL,4000024601,930.51
DEPARTMENT FOR EDUCATION,DEPARTMENT FOR EDUCATION,20/05/2010,STAFF EXPENSES / COSTS,Finance Group,CARLSON WAGONLIT TRAVEL,4000024601,934.88
DEPARTMENT FOR EDUCATION,DEPARTMENT FOR EDUCATION,20/05/2010,STAFF EXPENSES / COSTS,Young People Analysis Division,CARLSON WAGONLIT TRAVEL,4000024601,947.06
DEPARTMENT FOR EDUCATION,DEPARTMENT FOR EDUCATION,20/05/2010,STAFF EXPENSES / COSTS,Commercial Group EFM,CARLSON WAGONLIT TRAVEL,4000024601,998.91
DEPARTMENT FOR EDUCATION,DEPARTMENT FOR EDUCATION,20/05/2010,STAFF EXPENSES / COSTS,Chief Information Officer Group,CARLSON WAGONLIT TRAVEL,4000024601,1009.9
DEPARTMENT FOR EDUCATION,DEPARTMENT FOR EDUCATION,20/05/2010,STAFF EXPENSES / COSTS,Commercial Group Schools and Category Management,CARLSON WAGONLIT TRAVEL,4000024601,1048.45
DEPARTMENT FOR EDUCATION,DEPARTMENT FOR EDUCATION,20/05/2010,STAFF EXPENSES / COSTS,Children and Families Child Well Being Group,CARLSON WAGONLIT TRAVEL,4000024601,1055.4
DEPARTMENT FOR EDUCATION,DEPARTMENT FOR EDUCATION,20/05/2010,STAFF EXPENSES / COSTS,Commercial Group Schools and Category Management,CARLSON WAGONLIT TRAVEL,4000024601,1056.74
DEPARTMENT FOR EDUCATION,DEPARTMENT FOR EDUCATION,20/05/2010,STAFF EXPENSES / COSTS,Corporate Services Director General,CARLSON WAGONLIT TRAVEL,4000024601,1082.02
DEPARTMENT FOR EDUCATION,DEPARTMENT FOR EDUCATION,20/05/2010,STAFF EXPENSES / COSTS,Corporate Services Director General,CARLSON WAGONLIT TRAVEL,4000024601,1114.48
DEPARTMENT FOR EDUCATION,DEPARTMENT FOR EDUCATION,20/05/2010,STAFF EXPENSES / COSTS,Young People  Schools Children and Young People Group,CARLSON WAGONLIT TRAVEL,4000024601,1162.96
DEPARTMENT FOR EDUCATION,DEPARTMENT FOR EDUCATION,20/05/2010,STAFF EXPENSES / COSTS,Young People Participation and Attainment Group,CARLSON WAGONLIT TRAVEL,4000024601,1169.73
DEPARTMENT FOR EDUCATION,DEPARTMENT FOR EDUCATION,20/05/2010,STAFF EXPENSES / COSTS,Finance Group,CARLSON WAGONLIT TRAVEL,4000024601,1214.54
DEPARTMENT FOR EDUCATION,DEPARTMENT FOR EDUCATION,20/05/2010,STAFF EXPENSES / COSTS,Chief Information Officer Group,CARLSON WAGONLIT TRAVEL,4000024601,1243.33
DEPARTMENT FOR EDUCATION,DEPARTMENT FOR EDUCATION,20/05/2010,STAFF EXPENSES / COSTS,Corporate and Internal Communications Group,CARLSON WAGONLIT TRAVEL,4000024601,1290.22
DEPARTMENT FOR EDUCATION,DEPARTMENT FOR EDUCATION,20/05/2010,STAFF EXPENSES / COSTS,Commercial Group Schools and Category Management,CARLSON WAGONLIT TRAVEL,4000024601,1306.47
DEPARTMENT FOR EDUCATION,DEPARTMENT FOR EDUCATION,20/05/2010,STAFF EXPENSES / COSTS,Young People Quality Standards and Reform Group,CARLSON WAGONLIT TRAVEL,4000024601,1432.91
DEPARTMENT FOR EDUCATION,DEPARTMENT FOR EDUCATION,20/05/2010,STAFF EXPENSES / COSTS,School Performance and Reform Group,CARLSON WAGONLIT TRAVEL,4000024601,1591.7
DEPARTMENT FOR EDUCATION,DEPARTMENT FOR EDUCATION,20/05/2010,STAFF EXPENSES / COSTS,"Strategic Analysis, Research and Policy Impact Group",CARLSON WAGONLIT TRAVEL,4000024601,1654.85
DEPARTMENT FOR EDUCATION,DEPARTMENT FOR EDUCATION,20/05/2010,STAFF EXPENSES / COSTS,"Strategic Analysis, Research and Policy Impact Group",CARLSON WAGONLIT TRAVEL,4000024601,1696.42
DEPARTMENT FOR EDUCATION,DEPARTMENT FOR EDUCATION,20/05/2010,STAFF EXPENSES / COSTS,"Strategic Analysis, Research and Policy Impact Group",CARLSON WAGONLIT TRAVEL,4000024601,1793.43
DEPARTMENT FOR EDUCATION,DEPARTMENT FOR EDUCATION,20/05/2010,STAFF EXPENSES / COSTS,Children and Families Supporting Delivery Group,CARLSON WAGONLIT TRAVEL,4000024601,2057.65
DEPARTMENT FOR EDUCATION,DEPARTMENT FOR EDUCATION,20/05/2010,STAFF EXPENSES / COSTS,Chief Information Officer Group,CARLSON WAGONLIT TRAVEL,4000024601,2149.54
DEPARTMENT FOR EDUCATION,DEPARTMENT FOR EDUCATION,20/05/2010,STAFF EXPENSES / COSTS,People and Change,CARLSON WAGONLIT TRAVEL,4000024601,2426.19
DEPARTMENT FOR EDUCATION,DEPARTMENT FOR EDUCATION,20/05/2010,STAFF EXPENSES / COSTS,Finance Group,CARLSON WAGONLIT TRAVEL,4000024601,2576.85
DEPARTMENT FOR EDUCATION,DEPARTMENT FOR EDUCATION,20/05/2010,STAFF EXPENSES / COSTS,Commercial Group Strategic Functions,CARLSON WAGONLIT TRAVEL,4000024601,2608.32
DEPARTMENT FOR EDUCATION,DEPARTMENT FOR EDUCATION,20/05/2010,STAFF EXPENSES / COSTS,"Strategic Analysis, Research and Policy Impact Group",CARLSON WAGONLIT TRAVEL,4000024601,3044.67
DEPARTMENT FOR EDUCATION,DEPARTMENT FOR EDUCATION,20/05/2010,STAFF EXPENSES / COSTS,Commercial Group,CARLSON WAGONLIT TRAVEL,4000024601,3173.98
DEPARTMENT FOR EDUCATION,DEPARTMENT FOR EDUCATION,20/05/2010,STAFF EXPENSES / COSTS,Commercial Group Schools and Category Management,CARLSON WAGONLIT TRAVEL,4000024601,3923.47
DEPARTMENT FOR EDUCATION,DEPARTMENT FOR EDUCATION,20/05/2010,STAFF EXPENSES / COSTS,People and Change,CARLSON WAGONLIT TRAVEL,4000024601,3931.15
DEPARTMENT FOR EDUCATION,DEPARTMENT FOR EDUCATION,20/05/2010,STAFF EXPENSES / COSTS,Young People Workforce Group,CARLSON WAGONLIT TRAVEL,4000024601,3987.94
DEPARTMENT FOR EDUCATION,DEPARTMENT FOR EDUCATION,20/05/2010,STAFF EXPENSES / COSTS,Internal Audit,CARLSON WAGONLIT TRAVEL,4000024601,4460.8
DEPARTMENT FOR EDUCATION,DEPARTMENT FOR EDUCATION,20/05/2010,STAFF EXPENSES / COSTS,"Strategic Analysis, Research and Policy Impact Group",CARLSON WAGONLIT TRAVEL,4000024601,4578.91
DEPARTMENT FOR EDUCATION,DEPARTMENT FOR EDUCATION,20/05/2010,STAFF EXPENSES / COSTS,Children and Families Group,CARLSON WAGONLIT TRAVEL,4000024601,9546.79
DEPARTMENT FOR EDUCATION,DEPARTMENT FOR EDUCATION,20/05/2010,STAFF EXPENSES / COSTS,School Formation and Investment Group,CARLSON WAGONLIT TRAVEL,4000024601,12471.62
DEPARTMENT FOR EDUCATION,DEPARTMENT FOR EDUCATION,20/05/2010,COMMUNICATIONS & PUBLICITY,School Standards Group,CENTRAL OFFICE OF INFORMATION,4000024603,204878.88
DEPARTMENT FOR EDUCATION,DEPARTMENT FOR EDUCATION,20/05/2010,CURRENT GRANTS,School Formation and Investment Group,CHURCH ACADEMY SERVICES LTD,4000024607,50459.68
DEPARTMENT FOR EDUCATION,DEPARTMENT FOR EDUCATION,20/05/2010,COMMUNICATIONS & PUBLICITY,Children and Families Improving Information Sharing and Management Group,COI CENTRAL OFFICE OF INFORMATION,4000024610,205856.38
DEPARTMENT FOR EDUCATION,DEPARTMENT FOR EDUCATION,20/05/2010,CURRENT GRANTS,School Formation and Investment Group,DRAPERS ACADEMY,4000024614,49706.03
DEPARTMENT FOR EDUCATION,DEPARTMENT FOR EDUCATION,20/05/2010,CONTRACT PROGRAMME EXPENDITURE,Curriculum and Pupil Well Being Improving Behaviour and Attendance Unit,KNOWSLEY MBC,4000024624,14140
DEPARTMENT FOR EDUCATION,DEPARTMENT FOR EDUCATION,20/05/2010,CAPITAL GRANTS,Curriculum and Pupil Well Being Improving Behaviour and Attendance Unit,KNOWSLEY MBC,4000024624,110471.94
DEPARTMENT FOR EDUCATION,DEPARTMENT FOR EDUCATION,20/05/2010,CONTRACT PROGRAMME EXPENDITURE,School Formation and Investment Group,PKF UK LLP,4000024632,47364.26
DEPARTMENT FOR EDUCATION,DEPARTMENT FOR EDUCATION,20/05/2010,CONTRACT PROGRAMME EXPENDITURE,School Formation and Investment Group,PLACE GROUP LIMITED,4000024633,38929.45
DEPARTMENT FOR EDUCATION,DEPARTMENT FOR EDUCATION,20/05/2010,IS/IT,Commercial Group Schools and Category Management,PROCSERVE,4000024634,84824.5
DEPARTMENT FOR EDUCATION,DEPARTMENT FOR EDUCATION,20/05/2010,CONTRACT PROGRAMME EXPENDITURE,School Standards Group,TRIBAL EDUCATION LIMITED,4000024646,41999.1
DEPARTMENT FOR EDUCATION,DEPARTMENT FOR EDUCATION,20/05/2010,COMMUNICATIONS & PUBLICITY,School Formation and Investment Group,PROMOTIONAL LOGISTICS LTD,4000024653,22.04
DEPARTMENT FOR EDUCATION,DEPARTMENT FOR EDUCATION,20/05/2010,PRINTING STATIONERY IT & CONSUMABLES,Finance Group,PROMOTIONAL LOGISTICS LTD,4000024653,542.59
DEPARTMENT FOR EDUCATION,DEPARTMENT FOR EDUCATION,20/05/2010,CONTRACT PROGRAMME EXPENDITURE,Children and Families Group,PROMOTIONAL LOGISTICS LTD,4000024653,887.5
DEPARTMENT FOR EDUCATION,DEPARTMENT FOR EDUCATION,20/05/2010,PRINTING STATIONERY IT & CONSUMABLES,School Formation and Investment Group,PROMOTIONAL LOGISTICS LTD,4000024653,1199.52
DEPARTMENT FOR EDUCATION,DEPARTMENT FOR EDUCATION,20/05/2010,COMMUNICATIONS & PUBLICITY,Commercial Group Shared Services and Children and Young People,PROMOTIONAL LOGISTICS LTD,4000024653,1253.88
DEPARTMENT FOR EDUCATION,DEPARTMENT FOR EDUCATION,20/05/2010,MISCELLANEOUS EXPENDITURE,14 - 19 Reform Qualification Standards and Reform,PROMOTIONAL LOGISTICS LTD,4000024653,1253.92
DEPARTMENT FOR EDUCATION,DEPARTMENT FOR EDUCATION,20/05/2010,COMMUNICATIONS & PUBLICITY,Commercial Group Strategic Functions,PROMOTIONAL LOGISTICS LTD,4000024653,1940.01
DEPARTMENT FOR EDUCATION,DEPARTMENT FOR EDUCATION,20/05/2010,PRINTING STATIONERY IT & CONSUMABLES,School Standards Group,PROMOTIONAL LOGISTICS LTD,4000024653,2352.5
DEPARTMENT FOR EDUCATION,DEPARTMENT FOR EDUCATION,20/05/2010,PRINTING STATIONERY IT & CONSUMABLES,Children and Families Early Years Extended Schools and Special Needs,PROMOTIONAL LOGISTICS LTD,4000024653,3029.71
DEPARTMENT FOR EDUCATION,DEPARTMENT FOR EDUCATION,20/05/2010,COMMUNICATIONS & PUBLICITY,Commercial Group Strategic Functions,PROMOTIONAL LOGISTICS LTD,4000024653,3093.37
DEPARTMENT FOR EDUCATION,DEPARTMENT FOR EDUCATION,20/05/2010,COMMUNICATIONS & PUBLICITY,14 - 19 Reform Qualification Standards and Reform,PROMOTIONAL LOGISTICS LTD,4000024653,3157.81
DEPARTMENT FOR EDUCATION,DEPARTMENT FOR EDUCATION,20/05/2010,COMMUNICATIONS & PUBLICITY,Children and Families Safeguarding Group,PROMOTIONAL LOGISTICS LTD,4000024653,3732.78
DEPARTMENT FOR EDUCATION,DEPARTMENT FOR EDUCATION,20/05/2010,CURRENT GRANTS,School Standards Group,PROMOTIONAL LOGISTICS LTD,4000024653,4413.32
DEPARTMENT FOR EDUCATION,DEPARTMENT FOR EDUCATION,20/05/2010,CONTRACT PROGRAMME EXPENDITURE,Curriculum and Pupil Well Being Curriculum Unit,PROMOTIONAL LOGISTICS LTD,4000024653,6030.53
DEPARTMENT FOR EDUCATION,DEPARTMENT FOR EDUCATION,20/05/2010,COMMUNICATIONS & PUBLICITY,Supporting Children and Young People Community Cohesion,PROMOTIONAL LOGISTICS LTD,4000024653,6141.25
DEPARTMENT FOR EDUCATION,DEPARTMENT FOR EDUCATION,20/05/2010,CURRENT GRANTS,Curriculum and Pupil Well Being,PROMOTIONAL LOGISTICS LTD,4000024653,6562.05
DEPARTMENT FOR EDUCATION,DEPARTMENT FOR EDUCATION,20/05/2010,COMMUNICATIONS & PUBLICITY,14 - 19 Reform Qualification Standards and Reform,PROMOTIONAL LOGISTICS LTD,4000024653,6944.5
DEPARTMENT FOR EDUCATION,DEPARTMENT FOR EDUCATION,20/05/2010,MISCELLANEOUS EXPENDITURE,Children and Families Improving Information Sharing and Management Group,PROMOTIONAL LOGISTICS LTD,4000024653,6944.54
DEPARTMENT FOR EDUCATION,DEPARTMENT FOR EDUCATION,20/05/2010,CONTRACT PROGRAMME EXPENDITURE,Curriculum and Pupil Well Being Improving Behaviour and Attendance Unit,PROMOTIONAL LOGISTICS LTD,4000024653,14889.24
DEPARTMENT FOR EDUCATION,DEPARTMENT FOR EDUCATION,20/05/2010,COMMUNICATIONS & PUBLICITY,Children and Families Supporting Delivery Group,PROMOTIONAL LOGISTICS LTD,4000024653,17123.61
DEPARTMENT FOR EDUCATION,DEPARTMENT FOR EDUCATION,20/05/2010,CONTRACT PROGRAMME EXPENDITURE,Children and Families Safeguarding Group,PROMOTIONAL LOGISTICS LTD,4000024653,17991.28
DEPARTMENT FOR EDUCATION,DEPARTMENT FOR EDUCATION,20/05/2010,COMMUNICATIONS & PUBLICITY,Children and Families Group,PROMOTIONAL LOGISTICS LTD,4000024653,20022.42
DEPARTMENT FOR EDUCATION,DEPARTMENT FOR EDUCATION,20/05/2010,COMMUNICATIONS & PUBLICITY,14 - 19 Reform Qualification Standards and Reform,PROMOTIONAL LOGISTICS LTD,4000024653,20167
DEPARTMENT FOR EDUCATION,DEPARTMENT FOR EDUCATION,20/05/2010,COMMUNICATIONS & PUBLICITY,Children and Families Group,PROMOTIONAL LOGISTICS LTD,4000024653,21734.83
DEPARTMENT FOR EDUCATION,DEPARTMENT FOR EDUCATION,20/05/2010,COMMUNICATIONS & PUBLICITY,Children and Families Supporting Delivery Group,PROMOTIONAL LOGISTICS LTD,4000024653,35649.4
DEPARTMENT FOR EDUCATION,DEPARTMENT FOR EDUCATION,20/05/2010,PRINTING STATIONERY IT & CONSUMABLES,Children and Families Directorate,PROMOTIONAL LOGISTICS LTD,4000024653,42079.93
DEPARTMENT FOR EDUCATION,DEPARTMENT FOR EDUCATION,20/05/2010,COMMUNICATIONS & PUBLICITY,Curriculum and Pupil Well Being Improving Behaviour and Attendance Unit,PROMOTIONAL LOGISTICS LTD,4000024653,86827.56
DEPARTMENT FOR EDUCATION,DEPARTMENT FOR EDUCATION,20/05/2010,COMMUNICATIONS & PUBLICITY,Talent And Enterprise Taskforce Group,PROMOTIONAL LOGISTICS LTD,4000024653,106451.82
DEPARTMENT FOR EDUCATION,DEPARTMENT FOR EDUCATION,20/05/2010,COMMUNICATIONS & PUBLICITY,Children and Families Group,PROMOTIONAL LOGISTICS LTD,4000024653,117203.21
DEPARTMENT FOR EDUCATION,DEPARTMENT FOR EDUCATION,21/05/2010,CURRENT GRANTS,School Standards Group,CHESHIRE WEST & CHESTER COUNCIL,700324,70000
DEPARTMENT FOR EDUCATION,TEACHERS PENSION SCHEME,21/05/2010,FUNDING TO PAY TEACHERS PENSIONS,Workforce Group Young - TPS,CAPITA TP HSBC,1000169,620889.28
DEPARTMENT FOR EDUCATION,TEACHERS PENSION SCHEME,21/05/2010,FUNDING TO PAY TEACHERS PENSIONS,Workforce Group Young - TPS,CAPITA TP NATWEST,1000170,15015174.13
DEPARTMENT FOR EDUCATION,DEPARTMENT FOR EDUCATION,21/05/2010,CURRENT GRANTS,School Formation and Investment Group,ACADEMY ENTERPRISE TRUST,4000024684,100204
DEPARTMENT FOR EDUCATION,DEPARTMENT FOR EDUCATION,21/05/2010,CAPITAL GRANTS,Supporting Children and Young People Group Activities and Engagement,BRACKNELL FOREST BOROUGH COUNCIL,4000024690,16250
DEPARTMENT FOR EDUCATION,DEPARTMENT FOR EDUCATION,21/05/2010,CURRENT GRANTS,Supporting Children and Young People Group Activities and Engagement,BRACKNELL FOREST BOROUGH COUNCIL,4000024690,22500
DEPARTMENT FOR EDUCATION,DEPARTMENT FOR EDUCATION,21/05/2010,CAPITAL GRANTS,Supporting Children and Young People Group Activities and Engagement,BUCKINGHAMSHIRE COUNTY COUNCIL,4000024693,50200
DEPARTMENT FOR EDUCATION,DEPARTMENT FOR EDUCATION,21/05/2010,CURRENT GRANTS,Supporting Children and Young People Group Activities and Engagement,BUCKINGHAMSHIRE COUNTY COUNCIL,4000024693,58075
DEPARTMENT FOR EDUCATION,DEPARTMENT FOR EDUCATION,21/05/2010,COMMUNICATIONS & PUBLICITY,Corporate and Internal Communications Group,CAPGEMINI UK PLC,4000024698,23738.43
DEPARTMENT FOR EDUCATION,DEPARTMENT FOR EDUCATION,21/05/2010,MANAGEMENT CONSULTANCY,People and Change,CAPGEMINI UK PLC,4000024698,48433.54
DEPARTMENT FOR EDUCATION,DEPARTMENT FOR EDUCATION,21/05/2010,MANAGEMENT CONSULTANCY,Children and Families Early Years Extended Schools and Special Needs,CAPITA RESOURCING LTD,4000024699,342.9
DEPARTMENT FOR EDUCATION,DEPARTMENT FOR EDUCATION,21/05/2010,TEMPORARY (TEMP) STAFF COSTS,Commercial Group Schools and Category Management,CAPITA RESOURCING LTD,4000024699,709.14
DEPARTMENT FOR EDUCATION,DEPARTMENT FOR EDUCATION,21/05/2010,TEMPORARY (TEMP) STAFF COSTS,Commercial Group EFM,CAPITA RESOURCING LTD,4000024699,709.14
DEPARTMENT FOR EDUCATION,DEPARTMENT FOR EDUCATION,21/05/2010,MANAGEMENT CONSULTANCY,Supporting Children and Young People as Risk,CAPITA RESOURCING LTD,4000024699,1058.72
DEPARTMENT FOR EDUCATION,DEPARTMENT FOR EDUCATION,21/05/2010,TEMPORARY (TEMP) STAFF COSTS,School Performance and Reform Group,CAPITA RESOURCING LTD,4000024699,1274.88
DEPARTMENT FOR EDUCATION,DEPARTMENT FOR EDUCATION,21/05/2010,TEMPORARY (TEMP) STAFF COSTS,Commercial Group Schools and Category Management,CAPITA RESOURCING LTD,4000024699,1721.08
DEPARTMENT FOR EDUCATION,DEPARTMENT FOR EDUCATION,21/05/2010,CURRENT GRANTS,Children and Families Group,CAPITA RESOURCING LTD,4000024699,1912.34
DEPARTMENT FOR EDUCATION,DEPARTMENT FOR EDUCATION,21/05/2010,PROFESSIONAL FEES,School Formation and Investment Group,CAPITA RESOURCING LTD,4000024699,2231.03
DEPARTMENT FOR EDUCATION,DEPARTMENT FOR EDUCATION,21/05/2010,PROFESSIONAL FEES,School Standards Group,CAPITA RESOURCING LTD,4000024699,2256.28
DEPARTMENT FOR EDUCATION,DEPARTMENT FOR EDUCATION,21/05/2010,TEMPORARY (TEMP) STAFF COSTS,Communications Strategy and Insight Group,CAPITA RESOURCING LTD,4000024699,2538.35
DEPARTMENT FOR EDUCATION,DEPARTMENT FOR EDUCATION,21/05/2010,TEMPORARY (TEMP) STAFF COSTS,Finance Group,CAPITA RESOURCING LTD,4000024699,3368.84
DEPARTMENT FOR EDUCATION,DEPARTMENT FOR EDUCATION,21/05/2010,TEMPORARY (TEMP) STAFF COSTS,Children and Families Group,CAPITA RESOURCING LTD,4000024699,3442.16
DEPARTMENT FOR EDUCATION,DEPARTMENT FOR EDUCATION,21/05/2010,MANAGEMENT CONSULTANCY,Children and Families Supporting Delivery Group,CAPITA RESOURCING LTD,4000024699,3906
DEPARTMENT FOR EDUCATION,DEPARTMENT FOR EDUCATION,21/05/2010,MANAGEMENT CONSULTANCY,Commercial Group Schools and Category Management,CAPITA RESOURCING LTD,4000024699,5334.1
DEPARTMENT FOR EDUCATION,DEPARTMENT FOR EDUCATION,21/05/2010,COMMUNICATIONS & PUBLICITY,Corporate and Internal Communications Group,CAPITA RESOURCING LTD,4000024699,5689.06
DEPARTMENT FOR EDUCATION,DEPARTMENT FOR EDUCATION,21/05/2010,COMMUNICATIONS & PUBLICITY,Corporate and Internal Communications Group,CAPITA RESOURCING LTD,4000024699,5966.6
DEPARTMENT FOR EDUCATION,DEPARTMENT FOR EDUCATION,21/05/2010,TEMPORARY (TEMP) STAFF COSTS,Children and Families Group,CAPITA RESOURCING LTD,4000024699,5991.91
DEPARTMENT FOR EDUCATION,DEPARTMENT FOR EDUCATION,21/05/2010,TEMPORARY (TEMP) STAFF COSTS,Commercial Group Strategic Functions,CAPITA RESOURCING LTD,4000024699,8439.92
DEPARTMENT FOR EDUCATION,DEPARTMENT FOR EDUCATION,21/05/2010,TEMPORARY (TEMP) STAFF COSTS,Children and Families Group,CAPITA RESOURCING LTD,4000024699,11005.98
DEPARTMENT FOR EDUCATION,DEPARTMENT FOR EDUCATION,21/05/2010,CONTRACT PROGRAMME EXPENDITURE,Children and Families Group,CAPITA RESOURCING LTD,4000024699,25454.97
DEPARTMENT FOR EDUCATION,DEPARTMENT FOR EDUCATION,21/05/2010,CAPITAL GRANTS,School Formation and Investment Group,CHELSEA ACADEMY,4000024700,49617.83
DEPARTMENT FOR EDUCATION,DEPARTMENT FOR EDUCATION,21/05/2010,CURRENT GRANTS,School Formation and Investment Group,CHURCH ACADEMY SERVICES LTD,4000024701,42589.39
DEPARTMENT FOR EDUCATION,DEPARTMENT FOR EDUCATION,21/05/2010,COMMUNICATIONS & PUBLICITY,14 - 19 Reform Qualification Standards and Reform,COMMUNICATION SHOWS LTD,4000024704,40158.74
DEPARTMENT FOR EDUCATION,DEPARTMENT FOR EDUCATION,21/05/2010,PROFESSIONAL FEES,School Performance and Reform Group,EDUCATION LONDON LTD,4000024713,166236.06
DEPARTMENT FOR EDUCATION,DEPARTMENT FOR EDUCATION,21/05/2010,CAPITAL GRANTS,School Formation and Investment Group,GRACE ACADEMY  COVENTRY,4000024719,277591.31
DEPARTMENT FOR EDUCATION,DEPARTMENT FOR EDUCATION,21/05/2010,CAPITAL GRANTS,Supporting Children and Young People Group Activities and Engagement,KENT COUNTY COUNCIL,4000024738,158775
DEPARTMENT FOR EDUCATION,DEPARTMENT FOR EDUCATION,21/05/2010,CURRENT GRANTS,Supporting Children and Young People Group Activities and Engagement,KENT COUNTY COUNCIL,4000024738,183600
DEPARTMENT FOR EDUCATION,DEPARTMENT FOR EDUCATION,21/05/2010,CURRENT GRANTS,14 - 19 Reform Participation and Attainment,LANCASHIRE COUNTY COUNCIL,4000024740,440650.39
DEPARTMENT FOR EDUCATION,DEPARTMENT FOR EDUCATION,21/05/2010,CAPITAL GRANTS,Supporting Children and Young People Group Activities and Engagement,MEDWAY COUNCIL,4000024748,32475
DEPARTMENT FOR EDUCATION,DEPARTMENT FOR EDUCATION,21/05/2010,CURRENT GRANTS,Supporting Children and Young People Group Activities and Engagement,MEDWAY COUNCIL,4000024748,37575
DEPARTMENT FOR EDUCATION,DEPARTMENT FOR EDUCATION,21/05/2010,CAPITAL GRANTS,Supporting Children and Young People Group Activities and Engagement,MILTON KEYNES COUNCIL,4000024749,28375
DEPARTMENT FOR EDUCATION,DEPARTMENT FOR EDUCATION,21/05/2010,CURRENT GRANTS,Supporting Children and Young People Group Activities and Engagement,MILTON KEYNES COUNCIL,4000024749,32825
DEPARTMENT FOR EDUCATION,DEPARTMENT FOR EDUCATION,21/05/2010,CAPITAL GRANTS,Supporting Children and Young People Group Activities and Engagement,OXFORDSHIRE COUNTY COUNCIL,4000024755,74850
DEPARTMENT FOR EDUCATION,DEPARTMENT FOR EDUCATION,21/05/2010,CURRENT GRANTS,Supporting Children and Young People Group Activities and Engagement,OXFORDSHIRE COUNTY COUNCIL,4000024755,86575
DEPARTMENT FOR EDUCATION,DEPARTMENT FOR EDUCATION,21/05/2010,CAPITAL LICENCES & INTANGIBLES,Chief Information Officer Group,PA CONSULTING GROUP,4000024757,134707.21
DEPARTMENT FOR EDUCATION,DEPARTMENT FOR EDUCATION,21/05/2010,CONTRACT PROGRAMME EXPENDITURE,School Formation and Investment Group,PLACE GROUP LIMITED,4000024759,129824.24
DEPARTMENT FOR EDUCATION,DEPARTMENT FOR EDUCATION,21/05/2010,CAPITAL GRANTS,Supporting Children and Young People Group Activities and Engagement,SLOUGH BOROUGH COUNCIL,4000024773,16575
DEPARTMENT FOR EDUCATION,DEPARTMENT FOR EDUCATION,21/05/2010,CURRENT GRANTS,Supporting Children and Young People Group Activities and Engagement,SLOUGH BOROUGH COUNCIL,4000024773,22500
DEPARTMENT FOR EDUCATION,DEPARTMENT FOR EDUCATION,21/05/2010,CURRENT GRANTS,Children and Families Early Years Extended Schools and Special Needs,THE FAMILY FUND TRUST,4000024779,2893000
DEPARTMENT FOR EDUCATION,DEPARTMENT FOR EDUCATION,21/05/2010,IS/IT,Chief Information Officer Group,THE NATIONAL ARCHIVES,4000024780,55000
DEPARTMENT FOR EDUCATION,DEPARTMENT FOR EDUCATION,21/05/2010,CAPITAL GRANTS,Supporting Children and Young People Group Activities and Engagement,THE ROYAL BOROUGH OF WINDSOR & MAIDENHEAD,4000024782,17725
DEPARTMENT FOR EDUCATION,DEPARTMENT FOR EDUCATION,21/05/2010,CURRENT GRANTS,Supporting Children and Young People Group Activities and Engagement,THE ROYAL BOROUGH OF WINDSOR & MAIDENHEAD,4000024782,22500
DEPARTMENT FOR EDUCATION,DEPARTMENT FOR EDUCATION,21/05/2010,COMMUNICATIONS & PUBLICITY,Corporate and Internal Communications Group,TOP UP TV,4000024786,281227.7
DEPARTMENT FOR EDUCATION,DEPARTMENT FOR EDUCATION,21/05/2010,CAPITAL GRANTS,Supporting Children and Young People Group Activities and Engagement,WEST SUSSEX COUNTY COUNCIL,4000024793,84100
DEPARTMENT FOR EDUCATION,DEPARTMENT FOR EDUCATION,21/05/2010,CURRENT GRANTS,Supporting Children and Young People Group Activities and Engagement,WEST SUSSEX COUNTY COUNCIL,4000024793,97275
DEPARTMENT FOR EDUCATION,DEPARTMENT FOR EDUCATION,24/05/2010,CONTRACT PROGRAMME EXPENDITURE,Children and Families Early Years Extended Schools and Special Needs,NESTOR CRIMINAL RECORDS AGENCY,700329,33602.53
DEPARTMENT FOR EDUCATION,TEACHERS PENSION SCHEME,24/05/2010,FUNDING TO PAY TEACHERS PENSIONS,Workforce Group Young - TPS,CAPITA TP NATWEST,1000172,111439951.9
DEPARTMENT FOR EDUCATION,DEPARTMENT FOR EDUCATION,24/05/2010,CONTRACT PROGRAMME EXPENDITURE,School Formation and Investment Group,ACADEMY ENTERPRISE TRUST,4000024840,31255
DEPARTMENT FOR EDUCATION,DEPARTMENT FOR EDUCATION,24/05/2010,PROFESSIONAL FEES,School Performance and Reform Group,ANN BERGER LTD,4000024843,25850
DEPARTMENT FOR EDUCATION,DEPARTMENT FOR EDUCATION,24/05/2010,CAPITAL GRANTS,School Formation and Investment Group,ARK,4000024845,266156.51
DEPARTMENT FOR EDUCATION,DEPARTMENT FOR EDUCATION,24/05/2010,CONTRACT PROGRAMME EXPENDITURE,Curriculum and Pupil Well Being Curriculum Unit,ASSOCIATION FOR PHYSICAL EDUCATION,4000024846,32790
DEPARTMENT FOR EDUCATION,DEPARTMENT FOR EDUCATION,24/05/2010,CURRENT GRANTS,School Formation and Investment Group,BISHOP OF ROCHESTER ACADEMY,4000024850,60529.71
DEPARTMENT FOR EDUCATION,DEPARTMENT FOR EDUCATION,24/05/2010,CONTRACT PROGRAMME EXPENDITURE,School Formation and Investment Group,CAPITA SYMONDS LTD,4000024854,67916.63
DEPARTMENT FOR EDUCATION,DEPARTMENT FOR EDUCATION,24/05/2010,COMMUNICATIONS & PUBLICITY,Supporting Children and Young People Youth Task Force,CENTRAL OFFICE OF INFORMATION,4000024855,34921
DEPARTMENT FOR EDUCATION,DEPARTMENT FOR EDUCATION,24/05/2010,COMMUNICATIONS & PUBLICITY,Communications Strategy and Insight Group,CENTRAL OFFICE OF INFORMATION,4000024855,136453.88
DEPARTMENT FOR EDUCATION,DEPARTMENT FOR EDUCATION,24/05/2010,CONTRACT PROGRAMME EXPENDITURE,Curriculum and Pupil Well Being Curriculum Unit,DESIGN & TECHNOLOGY ASSOCIATION,4000024861,76250
DEPARTMENT FOR EDUCATION,DEPARTMENT FOR EDUCATION,24/05/2010,MANAGEMENT CONSULTANCY,Commercial Group EFM,DRIVERS JONAS,4000024867,61802.8
DEPARTMENT FOR EDUCATION,DEPARTMENT FOR EDUCATION,24/05/2010,CURRENT GRANTS,Supporting Children and Young People Group Activities and Engagement,ECOTEC RESEARCH & CONSULTING LTD GRANT,4000024871,66448
DEPARTMENT FOR EDUCATION,DEPARTMENT FOR EDUCATION,24/05/2010,IT EQUIPMENT CAPITAL,Commercial Group EFM,EUROPEAN ELECTRONIQUE,4000024873,137870.74
DEPARTMENT FOR EDUCATION,DEPARTMENT FOR EDUCATION,24/05/2010,STAFF EXPENSES / COSTS,Young People  Directorate Apprenticeships Group,EXPOTEL HOTEL RESERVATIONS LTD,4000024874,-5.77
DEPARTMENT FOR EDUCATION,DEPARTMENT FOR EDUCATION,24/05/2010,MANAGEMENT CONSULTANCY,Commercial Group Schools and Category Management,EXPOTEL HOTEL RESERVATIONS LTD,4000024874,55.8
DEPARTMENT FOR EDUCATION,DEPARTMENT FOR EDUCATION,24/05/2010,STAFF EXPENSES / COSTS,Young People Participation and Attainment Group,EXPOTEL HOTEL RESERVATIONS LTD,4000024874,61.83
DEPARTMENT FOR EDUCATION,DEPARTMENT FOR EDUCATION,24/05/2010,STAFF EXPENSES / COSTS,Commercial Group EFM,EXPOTEL HOTEL RESERVATIONS LTD,4000024874,61.83
DEPARTMENT FOR EDUCATION,DEPARTMENT FOR EDUCATION,24/05/2010,STAFF EXPENSES / COSTS,Children and Families Early Years Extended Schools and Special Needs,EXPOTEL HOTEL RESERVATIONS LTD,4000024874,63.69
DEPARTMENT FOR EDUCATION,DEPARTMENT FOR EDUCATION,24/05/2010,STAFF EXPENSES / COSTS,Finance Group,EXPOTEL HOTEL RESERVATIONS LTD,4000024874,65.57
DEPARTMENT FOR EDUCATION,DEPARTMENT FOR EDUCATION,24/05/2010,STAFF EXPENSES / COSTS,Commercial Group Schools and Category Management,EXPOTEL HOTEL RESERVATIONS LTD,4000024874,65.57
DEPARTMENT FOR EDUCATION,DEPARTMENT FOR EDUCATION,24/05/2010,STAFF EXPENSES / COSTS,School Formation and Investment Group,EXPOTEL HOTEL RESERVATIONS LTD,4000024874,71.15
DEPARTMENT FOR EDUCATION,DEPARTMENT FOR EDUCATION,24/05/2010,STAFF EXPENSES / COSTS,Children and Families Safeguarding Group,EXPOTEL HOTEL RESERVATIONS LTD,4000024874,71.15
DEPARTMENT FOR EDUCATION,DEPARTMENT FOR EDUCATION,24/05/2010,STAFF EXPENSES / COSTS,Children and Families Safeguarding Group,EXPOTEL HOTEL RESERVATIONS LTD,4000024874,71.15
DEPARTMENT FOR EDUCATION,DEPARTMENT FOR EDUCATION,24/05/2010,STAFF EXPENSES / COSTS,Corporate Services Director General,EXPOTEL HOTEL RESERVATIONS LTD,4000024874,71.15
DEPARTMENT FOR EDUCATION,DEPARTMENT FOR EDUCATION,24/05/2010,STAFF EXPENSES / COSTS,Curriculum and Pupil Well Being Curriculum Unit,EXPOTEL HOTEL RESERVATIONS LTD,4000024874,72.07
DEPARTMENT FOR EDUCATION,DEPARTMENT FOR EDUCATION,24/05/2010,STAFF EXPENSES / COSTS,School Resources Group,EXPOTEL HOTEL RESERVATIONS LTD,4000024874,72.07
DEPARTMENT FOR EDUCATION,DEPARTMENT FOR EDUCATION,24/05/2010,STAFF EXPENSES / COSTS,Supporting Children and Young People Community Cohesion,EXPOTEL HOTEL RESERVATIONS LTD,4000024874,74.4
DEPARTMENT FOR EDUCATION,DEPARTMENT FOR EDUCATION,24/05/2010,STAFF EXPENSES / COSTS,Children and Families Early Years Extended Schools and Special Needs,EXPOTEL HOTEL RESERVATIONS LTD,4000024874,74.4
DEPARTMENT FOR EDUCATION,DEPARTMENT FOR EDUCATION,24/05/2010,STAFF EXPENSES / COSTS,School Analysis and Research,EXPOTEL HOTEL RESERVATIONS LTD,4000024874,74.87
DEPARTMENT FOR EDUCATION,DEPARTMENT FOR EDUCATION,24/05/2010,STAFF EXPENSES / COSTS,Commercial Group Strategic Functions,EXPOTEL HOTEL RESERVATIONS LTD,4000024874,74.87
DEPARTMENT FOR EDUCATION,DEPARTMENT FOR EDUCATION,24/05/2010,STAFF EXPENSES / COSTS,Children and Families Early Years Extended Schools and Special Needs,EXPOTEL HOTEL RESERVATIONS LTD,4000024874,74.87
DEPARTMENT FOR EDUCATION,DEPARTMENT FOR EDUCATION,24/05/2010,STAFF EXPENSES / COSTS,Children and Families Early Years Extended Schools and Special Needs,EXPOTEL HOTEL RESERVATIONS LTD,4000024874,74.87
DEPARTMENT FOR EDUCATION,DEPARTMENT FOR EDUCATION,24/05/2010,STAFF EXPENSES / COSTS,Children and Families Group,EXPOTEL HOTEL RESERVATIONS LTD,4000024874,77.24
DEPARTMENT FOR EDUCATION,DEPARTMENT FOR EDUCATION,24/05/2010,STAFF EXPENSES / COSTS,People and Change,EXPOTEL HOTEL RESERVATIONS LTD,4000024874,77.66
DEPARTMENT FOR EDUCATION,DEPARTMENT FOR EDUCATION,24/05/2010,STAFF EXPENSES / COSTS,"Strategic Analysis, Research and Policy Impact Group",EXPOTEL HOTEL RESERVATIONS LTD,4000024874,80.46
DEPARTMENT FOR EDUCATION,DEPARTMENT FOR EDUCATION,24/05/2010,STAFF EXPENSES / COSTS,School Formation and Investment Group,EXPOTEL HOTEL RESERVATIONS LTD,4000024874,82.79
DEPARTMENT FOR EDUCATION,DEPARTMENT FOR EDUCATION,24/05/2010,STAFF EXPENSES / COSTS,Children and Families Group,EXPOTEL HOTEL RESERVATIONS LTD,4000024874,87.5
DEPARTMENT FOR EDUCATION,DEPARTMENT FOR EDUCATION,24/05/2010,STAFF EXPENSES / COSTS,School Formation and Investment Group,EXPOTEL HOTEL RESERVATIONS LTD,4000024874,92.1
DEPARTMENT FOR EDUCATION,DEPARTMENT FOR EDUCATION,24/05/2010,STAFF EXPENSES / COSTS,People and Change,EXPOTEL HOTEL RESERVATIONS LTD,4000024874,92.1
DEPARTMENT FOR EDUCATION,DEPARTMENT FOR EDUCATION,24/05/2010,STAFF EXPENSES / COSTS,Commercial Group EFM,EXPOTEL HOTEL RESERVATIONS LTD,4000024874,92.1
DEPARTMENT FOR EDUCATION,DEPARTMENT FOR EDUCATION,24/05/2010,STAFF EXPENSES / COSTS,Marketing Group,EXPOTEL HOTEL RESERVATIONS LTD,4000024874,92.57
DEPARTMENT FOR EDUCATION,DEPARTMENT FOR EDUCATION,24/05/2010,STAFF EXPENSES / COSTS,Finance Group,EXPOTEL HOTEL RESERVATIONS LTD,4000024874,93.49
DEPARTMENT FOR EDUCATION,DEPARTMENT FOR EDUCATION,24/05/2010,STAFF EXPENSES / COSTS,Commercial Group EFM,EXPOTEL HOTEL RESERVATIONS LTD,4000024874,94.43
DEPARTMENT FOR EDUCATION,DEPARTMENT FOR EDUCATION,24/05/2010,STAFF EXPENSES / COSTS,Young People Quality Standards and Reform Group,EXPOTEL HOTEL RESERVATIONS LTD,4000024874,99.09
DEPARTMENT FOR EDUCATION,DEPARTMENT FOR EDUCATION,24/05/2010,STAFF EXPENSES / COSTS,People and Change,EXPOTEL HOTEL RESERVATIONS LTD,4000024874,101.88
DEPARTMENT FOR EDUCATION,DEPARTMENT FOR EDUCATION,24/05/2010,STAFF EXPENSES / COSTS,Corporate and Internal Communications Group,EXPOTEL HOTEL RESERVATIONS LTD,4000024874,101.88
DEPARTMENT FOR EDUCATION,DEPARTMENT FOR EDUCATION,24/05/2010,STAFF EXPENSES / COSTS,Commercial Group Schools and Category Management,EXPOTEL HOTEL RESERVATIONS LTD,4000024874,101.88
DEPARTMENT FOR EDUCATION,DEPARTMENT FOR EDUCATION,24/05/2010,STAFF EXPENSES / COSTS,School Performance and Reform Group,EXPOTEL HOTEL RESERVATIONS LTD,4000024874,102.81
DEPARTMENT FOR EDUCATION,DEPARTMENT FOR EDUCATION,24/05/2010,STAFF EXPENSES / COSTS,Corporate Services Director General,EXPOTEL HOTEL RESERVATIONS LTD,4000024874,105.26
DEPARTMENT FOR EDUCATION,DEPARTMENT FOR EDUCATION,24/05/2010,STAFF EXPENSES / COSTS,Corporate and Internal Communications Group,EXPOTEL HOTEL RESERVATIONS LTD,4000024874,106.54
DEPARTMENT FOR EDUCATION,DEPARTMENT FOR EDUCATION,24/05/2010,RATES & SERVICE CHARGES,Young People Workforce Group,EXPOTEL HOTEL RESERVATIONS LTD,4000024874,116.21
DEPARTMENT FOR EDUCATION,DEPARTMENT FOR EDUCATION,24/05/2010,STAFF EXPENSES / COSTS,Young People Participation and Attainment Group,EXPOTEL HOTEL RESERVATIONS LTD,4000024874,122.36
DEPARTMENT FOR EDUCATION,DEPARTMENT FOR EDUCATION,24/05/2010,STAFF EXPENSES / COSTS,Curriculum and Pupil Well Being Curriculum Unit,EXPOTEL HOTEL RESERVATIONS LTD,4000024874,129.83
DEPARTMENT FOR EDUCATION,DEPARTMENT FOR EDUCATION,24/05/2010,STAFF EXPENSES / COSTS,"Strategic Analysis, Research and Policy Impact Group",EXPOTEL HOTEL RESERVATIONS LTD,4000024874,130.81
DEPARTMENT FOR EDUCATION,DEPARTMENT FOR EDUCATION,24/05/2010,STAFF EXPENSES / COSTS,Curriculum and Pupil Well Being Curriculum Unit,EXPOTEL HOTEL RESERVATIONS LTD,4000024874,131.69
DEPARTMENT FOR EDUCATION,DEPARTMENT FOR EDUCATION,24/05/2010,STAFF EXPENSES / COSTS,People and Change,EXPOTEL HOTEL RESERVATIONS LTD,4000024874,133.9
DEPARTMENT FOR EDUCATION,DEPARTMENT FOR EDUCATION,24/05/2010,STAFF EXPENSES / COSTS,Commercial Group Shared Services and Children and Young People,EXPOTEL HOTEL RESERVATIONS LTD,4000024874,134.67
DEPARTMENT FOR EDUCATION,DEPARTMENT FOR EDUCATION,24/05/2010,STAFF EXPENSES / COSTS,Chief Information Officer Group,EXPOTEL HOTEL RESERVATIONS LTD,4000024874,136.72
DEPARTMENT FOR EDUCATION,DEPARTMENT FOR EDUCATION,24/05/2010,STAFF EXPENSES / COSTS,School Formation and Investment Group,EXPOTEL HOTEL RESERVATIONS LTD,4000024874,143.22
DEPARTMENT FOR EDUCATION,DEPARTMENT FOR EDUCATION,24/05/2010,STAFF EXPENSES / COSTS,School Resources Group,EXPOTEL HOTEL RESERVATIONS LTD,4000024874,148.45
DEPARTMENT FOR EDUCATION,DEPARTMENT FOR EDUCATION,24/05/2010,STAFF EXPENSES / COSTS,Young People Participation and Attainment Group,EXPOTEL HOTEL RESERVATIONS LTD,4000024874,153.93
DEPARTMENT FOR EDUCATION,DEPARTMENT FOR EDUCATION,24/05/2010,STAFF EXPENSES / COSTS,School Performance and Reform Group,EXPOTEL HOTEL RESERVATIONS LTD,4000024874,173.26
DEPARTMENT FOR EDUCATION,DEPARTMENT FOR EDUCATION,24/05/2010,STAFF EXPENSES / COSTS,Young People  Schools Children and Young People Group,EXPOTEL HOTEL RESERVATIONS LTD,4000024874,173.95
DEPARTMENT FOR EDUCATION,DEPARTMENT FOR EDUCATION,24/05/2010,STAFF EXPENSES / COSTS,Commercial Group EFM,EXPOTEL HOTEL RESERVATIONS LTD,4000024874,179.54
DEPARTMENT FOR EDUCATION,DEPARTMENT FOR EDUCATION,24/05/2010,STAFF EXPENSES / COSTS,School Resources Group,EXPOTEL HOTEL RESERVATIONS LTD,4000024874,182.91
DEPARTMENT FOR EDUCATION,DEPARTMENT FOR EDUCATION,24/05/2010,STAFF EXPENSES / COSTS,Chief Information Officer Group,EXPOTEL HOTEL RESERVATIONS LTD,4000024874,184.2
DEPARTMENT FOR EDUCATION,DEPARTMENT FOR EDUCATION,24/05/2010,STAFF EXPENSES / COSTS,School Performance and Reform Office of the Schools Commissioner,EXPOTEL HOTEL RESERVATIONS LTD,4000024874,187.35
DEPARTMENT FOR EDUCATION,DEPARTMENT FOR EDUCATION,24/05/2010,STAFF EXPENSES / COSTS,Commercial Group EFM,EXPOTEL HOTEL RESERVATIONS LTD,4000024874,192.71
DEPARTMENT FOR EDUCATION,DEPARTMENT FOR EDUCATION,24/05/2010,STAFF EXPENSES / COSTS,Finance Group,EXPOTEL HOTEL RESERVATIONS LTD,4000024874,195.73
DEPARTMENT FOR EDUCATION,DEPARTMENT FOR EDUCATION,24/05/2010,STAFF EXPENSES / COSTS,Corporate Services Strategy and Performance,EXPOTEL HOTEL RESERVATIONS LTD,4000024874,196.71
DEPARTMENT FOR EDUCATION,DEPARTMENT FOR EDUCATION,24/05/2010,STAFF EXPENSES / COSTS,School Resources Group,EXPOTEL HOTEL RESERVATIONS LTD,4000024874,200.97
DEPARTMENT FOR EDUCATION,DEPARTMENT FOR EDUCATION,24/05/2010,STAFF EXPENSES / COSTS,Young People Quality Standards and Reform Group,EXPOTEL HOTEL RESERVATIONS LTD,4000024874,205.18
DEPARTMENT FOR EDUCATION,DEPARTMENT FOR EDUCATION,24/05/2010,STAFF EXPENSES / COSTS,Children and Families Supporting Delivery Group,EXPOTEL HOTEL RESERVATIONS LTD,4000024874,205.63
DEPARTMENT FOR EDUCATION,DEPARTMENT FOR EDUCATION,24/05/2010,CONTRACT PROGRAMME EXPENDITURE,Children and Families Safeguarding Group,EXPOTEL HOTEL RESERVATIONS LTD,4000024874,211.79
DEPARTMENT FOR EDUCATION,DEPARTMENT FOR EDUCATION,24/05/2010,STAFF EXPENSES / COSTS,Commercial Group EFM,EXPOTEL HOTEL RESERVATIONS LTD,4000024874,211.79
DEPARTMENT FOR EDUCATION,DEPARTMENT FOR EDUCATION,24/05/2010,STAFF EXPENSES / COSTS,Commercial Group Shared Services and Children and Young People,EXPOTEL HOTEL RESERVATIONS LTD,4000024874,212.51
DEPARTMENT FOR EDUCATION,DEPARTMENT FOR EDUCATION,24/05/2010,STAFF EXPENSES / COSTS,Customer Contact and Business Development Group,EXPOTEL HOTEL RESERVATIONS LTD,4000024874,213.45
DEPARTMENT FOR EDUCATION,DEPARTMENT FOR EDUCATION,24/05/2010,STAFF EXPENSES / COSTS,Children and Families Supporting Delivery Group,EXPOTEL HOTEL RESERVATIONS LTD,4000024874,218.32
DEPARTMENT FOR EDUCATION,DEPARTMENT FOR EDUCATION,24/05/2010,STAFF EXPENSES / COSTS,Supporting Children and Young People as Risk,EXPOTEL HOTEL RESERVATIONS LTD,4000024874,222.96
DEPARTMENT FOR EDUCATION,DEPARTMENT FOR EDUCATION,24/05/2010,STAFF EXPENSES / COSTS,Supporting Children and Young People Community Cohesion,EXPOTEL HOTEL RESERVATIONS LTD,4000024874,223.2
DEPARTMENT FOR EDUCATION,DEPARTMENT FOR EDUCATION,24/05/2010,STAFF EXPENSES / COSTS,Commercial Group Shared Services and Children and Young People,EXPOTEL HOTEL RESERVATIONS LTD,4000024874,230.7
DEPARTMENT FOR EDUCATION,DEPARTMENT FOR EDUCATION,24/05/2010,STAFF EXPENSES / COSTS,Commercial Group Shared Services and Children and Young People,EXPOTEL HOTEL RESERVATIONS LTD,4000024874,235.46
DEPARTMENT FOR EDUCATION,DEPARTMENT FOR EDUCATION,24/05/2010,STAFF EXPENSES / COSTS,Children and Families Safeguarding Group,EXPOTEL HOTEL RESERVATIONS LTD,4000024874,245.69
DEPARTMENT FOR EDUCATION,DEPARTMENT FOR EDUCATION,24/05/2010,STAFF EXPENSES / COSTS,Private Office ,EXPOTEL HOTEL RESERVATIONS LTD,4000024874,251.24
DEPARTMENT FOR EDUCATION,DEPARTMENT FOR EDUCATION,24/05/2010,STAFF EXPENSES / COSTS,Children and Families Supporting Delivery Group,EXPOTEL HOTEL RESERVATIONS LTD,4000024874,254.41
DEPARTMENT FOR EDUCATION,DEPARTMENT FOR EDUCATION,24/05/2010,STAFF EXPENSES / COSTS,Children and Families Child Well Being Group,EXPOTEL HOTEL RESERVATIONS LTD,4000024874,276.3
DEPARTMENT FOR EDUCATION,DEPARTMENT FOR EDUCATION,24/05/2010,STAFF EXPENSES / COSTS,Corporate and Internal Communications Group,EXPOTEL HOTEL RESERVATIONS LTD,4000024874,277.34
DEPARTMENT FOR EDUCATION,DEPARTMENT FOR EDUCATION,24/05/2010,STAFF EXPENSES / COSTS,People and Change,EXPOTEL HOTEL RESERVATIONS LTD,4000024874,277.36
DEPARTMENT FOR EDUCATION,DEPARTMENT FOR EDUCATION,24/05/2010,STAFF EXPENSES / COSTS,People and Change,EXPOTEL HOTEL RESERVATIONS LTD,4000024874,289.79
DEPARTMENT FOR EDUCATION,DEPARTMENT FOR EDUCATION,24/05/2010,STAFF EXPENSES / COSTS,"Strategic Analysis, Research and Policy Impact Group",EXPOTEL HOTEL RESERVATIONS LTD,4000024874,295.61
DEPARTMENT FOR EDUCATION,DEPARTMENT FOR EDUCATION,24/05/2010,STAFF EXPENSES / COSTS,Customer Contact and Business Development Group,EXPOTEL HOTEL RESERVATIONS LTD,4000024874,297.65
DEPARTMENT FOR EDUCATION,DEPARTMENT FOR EDUCATION,24/05/2010,STAFF EXPENSES / COSTS,Curriculum and Pupil Well Being Unit,EXPOTEL HOTEL RESERVATIONS LTD,4000024874,310.3
DEPARTMENT FOR EDUCATION,DEPARTMENT FOR EDUCATION,24/05/2010,STAFF EXPENSES / COSTS,Children and Families Supporting Delivery Group,EXPOTEL HOTEL RESERVATIONS LTD,4000024874,312.63
DEPARTMENT FOR EDUCATION,DEPARTMENT FOR EDUCATION,24/05/2010,STAFF EXPENSES / COSTS,School Resources Group,EXPOTEL HOTEL RESERVATIONS LTD,4000024874,327.89
DEPARTMENT FOR EDUCATION,DEPARTMENT FOR EDUCATION,24/05/2010,STAFF EXPENSES / COSTS,Young People Quality Standards and Reform Group,EXPOTEL HOTEL RESERVATIONS LTD,4000024874,338.24
DEPARTMENT FOR EDUCATION,DEPARTMENT FOR EDUCATION,24/05/2010,STAFF EXPENSES / COSTS,School Standards Group,EXPOTEL HOTEL RESERVATIONS LTD,4000024874,346.43
DEPARTMENT FOR EDUCATION,DEPARTMENT FOR EDUCATION,24/05/2010,STAFF EXPENSES / COSTS,Communications Strategy and Insight Group,EXPOTEL HOTEL RESERVATIONS LTD,4000024874,350.35
DEPARTMENT FOR EDUCATION,DEPARTMENT FOR EDUCATION,24/05/2010,STAFF EXPENSES / COSTS,Chief Information Officer Group,EXPOTEL HOTEL RESERVATIONS LTD,4000024874,372.27
DEPARTMENT FOR EDUCATION,DEPARTMENT FOR EDUCATION,24/05/2010,STAFF EXPENSES / COSTS,Commercial Group Schools and Category Management,EXPOTEL HOTEL RESERVATIONS LTD,4000024874,382.49
DEPARTMENT FOR EDUCATION,DEPARTMENT FOR EDUCATION,24/05/2010,STAFF EXPENSES / COSTS,Curriculum and Pupil Well Being Curriculum Unit,EXPOTEL HOTEL RESERVATIONS LTD,4000024874,386.69
DEPARTMENT FOR EDUCATION,DEPARTMENT FOR EDUCATION,24/05/2010,STAFF EXPENSES / COSTS,Commercial Group Schools and Category Management,EXPOTEL HOTEL RESERVATIONS LTD,4000024874,402.63
DEPARTMENT FOR EDUCATION,DEPARTMENT FOR EDUCATION,24/05/2010,STAFF EXPENSES / COSTS,School Formation and Investment Group,EXPOTEL HOTEL RESERVATIONS LTD,4000024874,402.65
DEPARTMENT FOR EDUCATION,DEPARTMENT FOR EDUCATION,24/05/2010,STAFF EXPENSES / COSTS,Press Office Group,EXPOTEL HOTEL RESERVATIONS LTD,4000024874,403.65
DEPARTMENT FOR EDUCATION,DEPARTMENT FOR EDUCATION,24/05/2010,STAFF EXPENSES / COSTS,Commercial Group Shared Services and Children and Young People,EXPOTEL HOTEL RESERVATIONS LTD,4000024874,413.94
DEPARTMENT FOR EDUCATION,DEPARTMENT FOR EDUCATION,24/05/2010,STAFF EXPENSES / COSTS,Chief Information Officer Group,EXPOTEL HOTEL RESERVATIONS LTD,4000024874,419.75
DEPARTMENT FOR EDUCATION,DEPARTMENT FOR EDUCATION,24/05/2010,STAFF EXPENSES / COSTS,Commercial Group Strategic Functions,EXPOTEL HOTEL RESERVATIONS LTD,4000024874,424.3
DEPARTMENT FOR EDUCATION,DEPARTMENT FOR EDUCATION,24/05/2010,STAFF EXPENSES / COSTS,Young People  Schools Children and Young People Group,EXPOTEL HOTEL RESERVATIONS LTD,4000024874,424.77
DEPARTMENT FOR EDUCATION,DEPARTMENT FOR EDUCATION,24/05/2010,STAFF EXPENSES / COSTS,Commercial Group Strategic Functions,EXPOTEL HOTEL RESERVATIONS LTD,4000024874,466.77
DEPARTMENT FOR EDUCATION,DEPARTMENT FOR EDUCATION,24/05/2010,STAFF EXPENSES / COSTS,Commercial Group Schools and Category Management,EXPOTEL HOTEL RESERVATIONS LTD,4000024874,480.52
DEPARTMENT FOR EDUCATION,DEPARTMENT FOR EDUCATION,24/05/2010,STAFF EXPENSES / COSTS,People and Change,EXPOTEL HOTEL RESERVATIONS LTD,4000024874,481.09
DEPARTMENT FOR EDUCATION,DEPARTMENT FOR EDUCATION,24/05/2010,STAFF EXPENSES / COSTS,People and Change,EXPOTEL HOTEL RESERVATIONS LTD,4000024874,486.34
DEPARTMENT FOR EDUCATION,DEPARTMENT FOR EDUCATION,24/05/2010,STAFF EXPENSES / COSTS,14 - 19 Reform Qualification Standards and Reform,EXPOTEL HOTEL RESERVATIONS LTD,4000024874,489.49
DEPARTMENT FOR EDUCATION,DEPARTMENT FOR EDUCATION,24/05/2010,STAFF EXPENSES / COSTS,People and Change,EXPOTEL HOTEL RESERVATIONS LTD,4000024874,500.56
DEPARTMENT FOR EDUCATION,DEPARTMENT FOR EDUCATION,24/05/2010,STAFF EXPENSES / COSTS,People and Change,EXPOTEL HOTEL RESERVATIONS LTD,4000024874,524.54
DEPARTMENT FOR EDUCATION,DEPARTMENT FOR EDUCATION,24/05/2010,STAFF EXPENSES / COSTS,Commercial Group EFM,EXPOTEL HOTEL RESERVATIONS LTD,4000024874,533.25
DEPARTMENT FOR EDUCATION,DEPARTMENT FOR EDUCATION,24/05/2010,STAFF EXPENSES / COSTS,Children and Families Group,EXPOTEL HOTEL RESERVATIONS LTD,4000024874,536.31
DEPARTMENT FOR EDUCATION,DEPARTMENT FOR EDUCATION,24/05/2010,STAFF EXPENSES / COSTS,"Strategic Analysis, Research and Policy Impact Group",EXPOTEL HOTEL RESERVATIONS LTD,4000024874,571.71
DEPARTMENT FOR EDUCATION,DEPARTMENT FOR EDUCATION,24/05/2010,STAFF EXPENSES / COSTS,Chief Information Officer Group,EXPOTEL HOTEL RESERVATIONS LTD,4000024874,579.62
DEPARTMENT FOR EDUCATION,DEPARTMENT FOR EDUCATION,24/05/2010,STAFF EXPENSES / COSTS,Children and Families Supporting Delivery Group,EXPOTEL HOTEL RESERVATIONS LTD,4000024874,581.48
DEPARTMENT FOR EDUCATION,DEPARTMENT FOR EDUCATION,24/05/2010,STAFF EXPENSES / COSTS,Corporate and Internal Communications Group,EXPOTEL HOTEL RESERVATIONS LTD,4000024874,582.99
DEPARTMENT FOR EDUCATION,DEPARTMENT FOR EDUCATION,24/05/2010,STAFF EXPENSES / COSTS,Children and Families Group,EXPOTEL HOTEL RESERVATIONS LTD,4000024874,651.91
DEPARTMENT FOR EDUCATION,DEPARTMENT FOR EDUCATION,24/05/2010,STAFF EXPENSES / COSTS,Finance Group,EXPOTEL HOTEL RESERVATIONS LTD,4000024874,685.45
DEPARTMENT FOR EDUCATION,DEPARTMENT FOR EDUCATION,24/05/2010,STAFF EXPENSES / COSTS,School Standards Group,EXPOTEL HOTEL RESERVATIONS LTD,4000024874,690.39
DEPARTMENT FOR EDUCATION,DEPARTMENT FOR EDUCATION,24/05/2010,STAFF EXPENSES / COSTS,School Performance and Reform Group,EXPOTEL HOTEL RESERVATIONS LTD,4000024874,693.95
DEPARTMENT FOR EDUCATION,DEPARTMENT FOR EDUCATION,24/05/2010,STAFF EXPENSES / COSTS,People and Change,EXPOTEL HOTEL RESERVATIONS LTD,4000024874,732.93
DEPARTMENT FOR EDUCATION,DEPARTMENT FOR EDUCATION,24/05/2010,STAFF EXPENSES / COSTS,Young People Quality Standards and Reform Group,EXPOTEL HOTEL RESERVATIONS LTD,4000024874,754.6
DEPARTMENT FOR EDUCATION,DEPARTMENT FOR EDUCATION,24/05/2010,STAFF EXPENSES / COSTS,Young People  Schools Children and Young People Group,EXPOTEL HOTEL RESERVATIONS LTD,4000024874,770.49
DEPARTMENT FOR EDUCATION,DEPARTMENT FOR EDUCATION,24/05/2010,STAFF EXPENSES / COSTS,Young People Analysis Division,EXPOTEL HOTEL RESERVATIONS LTD,4000024874,786.82
DEPARTMENT FOR EDUCATION,DEPARTMENT FOR EDUCATION,24/05/2010,STAFF EXPENSES / COSTS,School Formation and Investment Group,EXPOTEL HOTEL RESERVATIONS LTD,4000024874,791.98
DEPARTMENT FOR EDUCATION,DEPARTMENT FOR EDUCATION,24/05/2010,STAFF EXPENSES / COSTS,Chief Information Officer Group,EXPOTEL HOTEL RESERVATIONS LTD,4000024874,826.46
DEPARTMENT FOR EDUCATION,DEPARTMENT FOR EDUCATION,24/05/2010,STAFF EXPENSES / COSTS,Supporting Children and Young People as Risk,EXPOTEL HOTEL RESERVATIONS LTD,4000024874,829.92
DEPARTMENT FOR EDUCATION,DEPARTMENT FOR EDUCATION,24/05/2010,STAFF EXPENSES / COSTS,"Strategic Analysis, Research and Policy Impact Group",EXPOTEL HOTEL RESERVATIONS LTD,4000024874,838.32
DEPARTMENT FOR EDUCATION,DEPARTMENT FOR EDUCATION,24/05/2010,STAFF EXPENSES / COSTS,Young People  Schools Children and Young People Group,EXPOTEL HOTEL RESERVATIONS LTD,4000024874,873.01
DEPARTMENT FOR EDUCATION,DEPARTMENT FOR EDUCATION,24/05/2010,STAFF EXPENSES / COSTS,Private Office ,EXPOTEL HOTEL RESERVATIONS LTD,4000024874,885.27
DEPARTMENT FOR EDUCATION,DEPARTMENT FOR EDUCATION,24/05/2010,STAFF EXPENSES / COSTS,Commercial Group Shared Services and Children and Young People,EXPOTEL HOTEL RESERVATIONS LTD,4000024874,892.2
DEPARTMENT FOR EDUCATION,DEPARTMENT FOR EDUCATION,24/05/2010,STAFF EXPENSES / COSTS,School Resources Group,EXPOTEL HOTEL RESERVATIONS LTD,4000024874,911.67
DEPARTMENT FOR EDUCATION,DEPARTMENT FOR EDUCATION,24/05/2010,STAFF EXPENSES / COSTS,School Resources Group,EXPOTEL HOTEL RESERVATIONS LTD,4000024874,942.49
DEPARTMENT FOR EDUCATION,DEPARTMENT FOR EDUCATION,24/05/2010,STAFF EXPENSES / COSTS,Chief Information Officer Group,EXPOTEL HOTEL RESERVATIONS LTD,4000024874,965.23
DEPARTMENT FOR EDUCATION,DEPARTMENT FOR EDUCATION,24/05/2010,STAFF EXPENSES / COSTS,Customer Contact and Business Development Group,EXPOTEL HOTEL RESERVATIONS LTD,4000024874,970.35
DEPARTMENT FOR EDUCATION,DEPARTMENT FOR EDUCATION,24/05/2010,STAFF EXPENSES / COSTS,Customer Contact and Business Development Group,EXPOTEL HOTEL RESERVATIONS LTD,4000024874,974.19
DEPARTMENT FOR EDUCATION,DEPARTMENT FOR EDUCATION,24/05/2010,STAFF EXPENSES / COSTS,Supporting Children and Young People Youth Task Force,EXPOTEL HOTEL RESERVATIONS LTD,4000024874,1046.37
DEPARTMENT FOR EDUCATION,DEPARTMENT FOR EDUCATION,24/05/2010,STAFF EXPENSES / COSTS,"Strategic Analysis, Research and Policy Impact Group",EXPOTEL HOTEL RESERVATIONS LTD,4000024874,1082.19
DEPARTMENT FOR EDUCATION,DEPARTMENT FOR EDUCATION,24/05/2010,STAFF EXPENSES / COSTS,Corporate Services Strategy and Performance,EXPOTEL HOTEL RESERVATIONS LTD,4000024874,1098.53
DEPARTMENT FOR EDUCATION,DEPARTMENT FOR EDUCATION,24/05/2010,STAFF EXPENSES / COSTS,People and Change,EXPOTEL HOTEL RESERVATIONS LTD,4000024874,1191.47
DEPARTMENT FOR EDUCATION,DEPARTMENT FOR EDUCATION,24/05/2010,STAFF EXPENSES / COSTS,Young People Workforce Group,EXPOTEL HOTEL RESERVATIONS LTD,4000024874,1283.94
DEPARTMENT FOR EDUCATION,DEPARTMENT FOR EDUCATION,24/05/2010,STAFF EXPENSES / COSTS,Young People Quality Standards and Reform Group,EXPOTEL HOTEL RESERVATIONS LTD,4000024874,1464.37
DEPARTMENT FOR EDUCATION,DEPARTMENT FOR EDUCATION,24/05/2010,STAFF EXPENSES / COSTS,Children and Families Safeguarding Group,EXPOTEL HOTEL RESERVATIONS LTD,4000024874,1546.66
DEPARTMENT FOR EDUCATION,DEPARTMENT FOR EDUCATION,24/05/2010,STAFF EXPENSES / COSTS,Chief Information Officer Group,EXPOTEL HOTEL RESERVATIONS LTD,4000024874,1598.77
DEPARTMENT FOR EDUCATION,DEPARTMENT FOR EDUCATION,24/05/2010,STAFF EXPENSES / COSTS,Chief Information Officer Group,EXPOTEL HOTEL RESERVATIONS LTD,4000024874,1644.01
DEPARTMENT FOR EDUCATION,DEPARTMENT FOR EDUCATION,24/05/2010,STAFF EXPENSES / COSTS,School Performance and Reform Group,EXPOTEL HOTEL RESERVATIONS LTD,4000024874,1819.93
DEPARTMENT FOR EDUCATION,DEPARTMENT FOR EDUCATION,24/05/2010,STAFF EXPENSES / COSTS,Commercial Group Schools and Category Management,EXPOTEL HOTEL RESERVATIONS LTD,4000024874,1879.72
DEPARTMENT FOR EDUCATION,DEPARTMENT FOR EDUCATION,24/05/2010,STAFF EXPENSES / COSTS,Children and Families Improving Information Sharing and Management Group,EXPOTEL HOTEL RESERVATIONS LTD,4000024874,1977.5
DEPARTMENT FOR EDUCATION,DEPARTMENT FOR EDUCATION,24/05/2010,STAFF EXPENSES / COSTS,Children and Families Supporting Delivery Group,EXPOTEL HOTEL RESERVATIONS LTD,4000024874,2091.71
DEPARTMENT FOR EDUCATION,DEPARTMENT FOR EDUCATION,24/05/2010,STAFF EXPENSES / COSTS,Chief Information Officer Group,EXPOTEL HOTEL RESERVATIONS LTD,4000024874,2342.41
DEPARTMENT FOR EDUCATION,DEPARTMENT FOR EDUCATION,24/05/2010,STAFF EXPENSES / COSTS,School Formation and Investment Group,EXPOTEL HOTEL RESERVATIONS LTD,4000024874,2987.15
DEPARTMENT FOR EDUCATION,DEPARTMENT FOR EDUCATION,24/05/2010,STAFF EXPENSES / COSTS,Commercial Group Schools and Category Management,EXPOTEL HOTEL RESERVATIONS LTD,4000024874,4779.2
DEPARTMENT FOR EDUCATION,DEPARTMENT FOR EDUCATION,24/05/2010,STAFF EXPENSES / COSTS,Internal Audit,EXPOTEL HOTEL RESERVATIONS LTD,4000024874,5292.85
DEPARTMENT FOR EDUCATION,DEPARTMENT FOR EDUCATION,24/05/2010,STAFF EXPENSES / COSTS,Children and Families Group,EXPOTEL HOTEL RESERVATIONS LTD,4000024874,6404.11
DEPARTMENT FOR EDUCATION,DEPARTMENT FOR EDUCATION,24/05/2010,CONTRACT PROGRAMME EXPENDITURE,School Formation and Investment Group,HAVELOCK ACADEMY NEW ACADEMY PROJECT TEAM,4000024884,39689
DEPARTMENT FOR EDUCATION,DEPARTMENT FOR EDUCATION,24/05/2010,CONTRACT PROGRAMME EXPENDITURE,School Formation and Investment Group,MARTINEAU JOHNSON,4000024908,44356.71
DEPARTMENT FOR EDUCATION,DEPARTMENT FOR EDUCATION,24/05/2010,CONTRACT PROGRAMME EXPENDITURE,14 - 19 Reform Qualification Standards and Reform,NATIONAL EBP NETWORK,4000024913,28006.22
DEPARTMENT FOR EDUCATION,DEPARTMENT FOR EDUCATION,24/05/2010,RESEARCH & DEVELOPMENT COSTS,Children and Families Early Years Extended Schools and Special Needs,NATIONAL FAMILY & PARENTING INSTITUTE,4000024914,65425.89
DEPARTMENT FOR EDUCATION,DEPARTMENT FOR EDUCATION,24/05/2010,CAPITAL GRANTS,School Formation and Investment Group,NOTTINGHAM CITY COUNCIL,4000024916,318500
DEPARTMENT FOR EDUCATION,DEPARTMENT FOR EDUCATION,24/05/2010,CONTRACT PROGRAMME EXPENDITURE,Curriculum and Pupil Well Being Curriculum Unit,PERSONAL FINANCE EDUCATION GROUP PFEG,4000024919,368367.25
DEPARTMENT FOR EDUCATION,DEPARTMENT FOR EDUCATION,24/05/2010,CONTRACT PROGRAMME EXPENDITURE,School Formation and Investment Group,PETERBOROUGH DIOCESAN BOARD OF FINANCE,4000024920,28976.15
DEPARTMENT FOR EDUCATION,DEPARTMENT FOR EDUCATION,24/05/2010,CONTRACT PROGRAMME EXPENDITURE,School Standards Group,REX HALL ASSOCIATES LTD,4000024930,154907.84
DEPARTMENT FOR EDUCATION,DEPARTMENT FOR EDUCATION,24/05/2010,PROFESSIONAL FEES,Children and Families Supporting Delivery Group,SERCO LTD,4000024936,461797.33
DEPARTMENT FOR EDUCATION,DEPARTMENT FOR EDUCATION,24/05/2010,CONTRACT PROGRAMME EXPENDITURE,Children and Families Early Years Extended Schools and Special Needs,SERCO LTD,4000024936,773891.5
DEPARTMENT FOR EDUCATION,DEPARTMENT FOR EDUCATION,24/05/2010,COMMUNICATIONS & PUBLICITY,Corporate and Internal Communications Group,TEACHERS TV C/O EDUCATION DIGITAL 2 LTD,4000024939,564050.53
DEPARTMENT FOR EDUCATION,DEPARTMENT FOR EDUCATION,24/05/2010,CURRENT GRANTS,Children and Families Supporting Delivery Group,THE BETH JOHNSON FOUNDATION,4000024940,33010
DEPARTMENT FOR EDUCATION,DEPARTMENT FOR EDUCATION,24/05/2010,CONTRACT PROGRAMME EXPENDITURE,School Formation and Investment Group,TRIBAL EDUCATION LTD CONSULTING,4000024943,32291.65
DEPARTMENT FOR EDUCATION,DEPARTMENT FOR EDUCATION,24/05/2010,PROFESSIONAL FEES,School Performance and Reform Group,UNIVERSITY OF WOLVERHAMPTON,4000024944,335001.44
DEPARTMENT FOR EDUCATION,TEACHERS PENSION SCHEME,25/05/2010,FUNDING TO PAY TEACHERS PENSIONS,Workforce Group Young - TPS,CAPITA TP HSBC,1000173,539964.9
DEPARTMENT FOR EDUCATION,TEACHERS PENSION SCHEME,25/05/2010,FUNDING TO PAY TEACHERS PENSIONS,Workforce Group Young - TPS,CAPITA TP NATWEST,1000174,15761136.59
DEPARTMENT FOR EDUCATION,DEPARTMENT FOR EDUCATION,25/05/2010,MANAGEMENT CONSULTANCY,People and Change,BERKSHIRE CONSULTANCY LIMITED,4000024985,25240.58
DEPARTMENT FOR EDUCATION,DEPARTMENT FOR EDUCATION,25/05/2010,CONTRACT PROGRAMME EXPENDITURE,School Formation and Investment Group,CAMBRIDGE EDUCATION HEAD OFFICE,4000024989,27825.98
DEPARTMENT FOR EDUCATION,DEPARTMENT FOR EDUCATION,25/05/2010,IS/IT,"Strategic Analysis, Research and Policy Impact Group",CAPGEMINI UK PLC,4000024990,13626.2
DEPARTMENT FOR EDUCATION,DEPARTMENT FOR EDUCATION,25/05/2010,CAPITAL LICENCES & INTANGIBLES,Chief Information Officer Group,CAPGEMINI UK PLC,4000024990,55962
DEPARTMENT FOR EDUCATION,DEPARTMENT FOR EDUCATION,25/05/2010,CAPITAL LICENCES & INTANGIBLES,Chief Information Officer Group,CAPGEMINI UK PLC,4000024990,70969
DEPARTMENT FOR EDUCATION,DEPARTMENT FOR EDUCATION,25/05/2010,CAPITAL LICENCES & INTANGIBLES,Chief Information Officer Group,CAPGEMINI UK PLC,4000024990,230038.49
DEPARTMENT FOR EDUCATION,DEPARTMENT FOR EDUCATION,25/05/2010,IS/IT,Corporate and Internal Communications Group,CAPGEMINI UK PLC,4000024990,520027.98
DEPARTMENT FOR EDUCATION,DEPARTMENT FOR EDUCATION,25/05/2010,STAFF EXPENSES / COSTS,Children and Families Early Years Extended Schools and Special Needs,CAPITA EDUCATION RESOURCING,4000024991,62652.26
DEPARTMENT FOR EDUCATION,DEPARTMENT FOR EDUCATION,25/05/2010,CURRENT GRANTS,School Formation and Investment Group,CHURCH ACADEMY SERVICES LTD,4000024993,65514.12
DEPARTMENT FOR EDUCATION,DEPARTMENT FOR EDUCATION,25/05/2010,CAPITAL GRANTS,School Formation and Investment Group,CITY OF LONDON KPMG ACADEMY HACKNEY,4000024994,25041
DEPARTMENT FOR EDUCATION,DEPARTMENT FOR EDUCATION,25/05/2010,OTHER PROGRAMME EXPENSES,Supporting Children and Young People Youth Task Force,COI CENTRAL OFFICE OF INFORMATION,4000024996,199236.92
DEPARTMENT FOR EDUCATION,DEPARTMENT FOR EDUCATION,25/05/2010,CAPITAL GRANTS,School Formation and Investment Group,DARWEN ACADEMY,4000025000,2092540.27
DEPARTMENT FOR EDUCATION,DEPARTMENT FOR EDUCATION,25/05/2010,CAPITAL GRANTS,Supporting Children and Young People Group Activities and Engagement,DEVON COUNTY COUNCIL,4000025001,73800
DEPARTMENT FOR EDUCATION,DEPARTMENT FOR EDUCATION,25/05/2010,CURRENT GRANTS,Supporting Children and Young People Group Activities and Engagement,DEVON COUNTY COUNCIL,4000025001,85350
DEPARTMENT FOR EDUCATION,DEPARTMENT FOR EDUCATION,25/05/2010,CAPITAL GRANTS,Supporting Children and Young People Group Activities and Engagement,EAST SUSSEX COUNTY COUNCIL,4000025005,59025
DEPARTMENT FOR EDUCATION,DEPARTMENT FOR EDUCATION,25/05/2010,CURRENT GRANTS,Supporting Children and Young People Group Activities and Engagement,EAST SUSSEX COUNTY COUNCIL,4000025005,68275
DEPARTMENT FOR EDUCATION,DEPARTMENT FOR EDUCATION,25/05/2010,CURRENT GRANTS,School Performance and Reform Group,ECOTEC RESEARCH & CONSULTING LTD GRANT,4000025006,120071
DEPARTMENT FOR EDUCATION,DEPARTMENT FOR EDUCATION,25/05/2010,RESEARCH & DEVELOPMENT COSTS,"Strategic Analysis, Research and Policy Impact Group",GFK NOP LIMITED,4000025011,26680
DEPARTMENT FOR EDUCATION,DEPARTMENT FOR EDUCATION,25/05/2010,CAPITAL GRANTS,Supporting Children and Young People Group Activities and Engagement,HAMPSHIRE C C,4000025013,128475
DEPARTMENT FOR EDUCATION,DEPARTMENT FOR EDUCATION,25/05/2010,CURRENT GRANTS,Supporting Children and Young People Group Activities and Engagement,HAMPSHIRE C C,4000025013,148575
DEPARTMENT FOR EDUCATION,DEPARTMENT FOR EDUCATION,25/05/2010,TEMPORARY (TEMP) STAFF COSTS,Children and Families Child Well Being Group,HMRC INLAND REVENUE,4000025015,37536.31
DEPARTMENT FOR EDUCATION,DEPARTMENT FOR EDUCATION,25/05/2010,CAPITAL GRANTS,Supporting Children and Young People Group Activities and Engagement,ISLE OF WIGHT COUNCIL,4000025017,18050
DEPARTMENT FOR EDUCATION,DEPARTMENT FOR EDUCATION,25/05/2010,CURRENT GRANTS,Supporting Children and Young People Group Activities and Engagement,ISLE OF WIGHT COUNCIL,4000025017,22500
DEPARTMENT FOR EDUCATION,DEPARTMENT FOR EDUCATION,25/05/2010,CURRENT GRANTS,14 - 19 Reform Participation and Attainment,LOCAL GOVERNMENT ASSOCIATION,4000025024,117799
DEPARTMENT FOR EDUCATION,DEPARTMENT FOR EDUCATION,25/05/2010,CURRENT GRANTS,Children and Families Safeguarding Group,NSPCC,4000025031,556092
DEPARTMENT FOR EDUCATION,DEPARTMENT FOR EDUCATION,25/05/2010,MANAGEMENT CONSULTANCY,Children and Families Improving Information Sharing and Management Group,PA CONSULTING GROUP,4000025032,249393.83
DEPARTMENT FOR EDUCATION,DEPARTMENT FOR EDUCATION,25/05/2010,MANAGEMENT CONSULTANCY,Children and Families Improving Information Sharing and Management Group,PA CONSULTING GROUP,4000025032,709813.21
DEPARTMENT FOR EDUCATION,DEPARTMENT FOR EDUCATION,25/05/2010,CAPITAL GRANTS,Supporting Children and Young People Group Activities and Engagement,PORTSMOUTH CITY COUNCIL,4000025035,27525
DEPARTMENT FOR EDUCATION,DEPARTMENT FOR EDUCATION,25/05/2010,CURRENT GRANTS,Supporting Children and Young People Group Activities and Engagement,PORTSMOUTH CITY COUNCIL,4000025035,31825
DEPARTMENT FOR EDUCATION,DEPARTMENT FOR EDUCATION,25/05/2010,CAPITAL GRANTS,Supporting Children and Young People Group Activities and Engagement,READING BOROUGH COUNCIL,4000025037,19600
DEPARTMENT FOR EDUCATION,DEPARTMENT FOR EDUCATION,25/05/2010,CURRENT GRANTS,Supporting Children and Young People Group Activities and Engagement,READING BOROUGH COUNCIL,4000025037,22675
DEPARTMENT FOR EDUCATION,DEPARTMENT FOR EDUCATION,25/05/2010,CURRENT GRANTS,Curriculum and Pupil Well Being Improving Behaviour and Attendance Unit,ROTHERHAM MBC,4000025038,61244.35
DEPARTMENT FOR EDUCATION,DEPARTMENT FOR EDUCATION,25/05/2010,CURRENT GRANTS,Curriculum and Pupil Well Being Improving Behaviour and Attendance Unit,ROTHERHAM MBC,4000025038,704887.95
DEPARTMENT FOR EDUCATION,DEPARTMENT FOR EDUCATION,25/05/2010,CAPITAL GRANTS,Supporting Children and Young People Group Activities and Engagement,SOUTHAMPTON CITY COUNCIL,4000025040,29975
DEPARTMENT FOR EDUCATION,DEPARTMENT FOR EDUCATION,25/05/2010,CURRENT GRANTS,Supporting Children and Young People Group Activities and Engagement,SOUTHAMPTON CITY COUNCIL,4000025040,34675
DEPARTMENT FOR EDUCATION,DEPARTMENT FOR EDUCATION,25/05/2010,STAFF EXPENSES / COSTS,Children and Families Early Years Extended Schools and Special Needs,THE MEDIA GROUP TMG TV LTD,4000025044,156776.85
DEPARTMENT FOR EDUCATION,DEPARTMENT FOR EDUCATION,25/05/2010,CAPITAL GRANTS,School Formation and Investment Group,THE QUAERERE ACADEMY TRUST,4000025045,204062.88
DEPARTMENT FOR EDUCATION,DEPARTMENT FOR EDUCATION,25/05/2010,TELEPHONE CHARGES,School Formation and Investment Group,VODAFONE CORPORATE,4000025053,-0.02
DEPARTMENT FOR EDUCATION,DEPARTMENT FOR EDUCATION,25/05/2010,TELEPHONE CHARGES,School Standards Group,VODAFONE CORPORATE,4000025053,-0.02
DEPARTMENT FOR EDUCATION,DEPARTMENT FOR EDUCATION,25/05/2010,TELEPHONE CHARGES,School Resources Group,VODAFONE CORPORATE,4000025053,-0.02
DEPARTMENT FOR EDUCATION,DEPARTMENT FOR EDUCATION,25/05/2010,TELEPHONE CHARGES,Children and Families Supporting Delivery Group,VODAFONE CORPORATE,4000025053,-0.02
DEPARTMENT FOR EDUCATION,DEPARTMENT FOR EDUCATION,25/05/2010,TELEPHONE CHARGES,People and Change,VODAFONE CORPORATE,4000025053,-0.01
DEPARTMENT FOR EDUCATION,DEPARTMENT FOR EDUCATION,25/05/2010,TELEPHONE CHARGES,School Resources Group,VODAFONE CORPORATE,4000025053,-0.01
DEPARTMENT FOR EDUCATION,DEPARTMENT FOR EDUCATION,25/05/2010,TELEPHONE CHARGES,School Performance and Reform Group,VODAFONE CORPORATE,4000025053,-0.01
DEPARTMENT FOR EDUCATION,DEPARTMENT FOR EDUCATION,25/05/2010,TELEPHONE CHARGES,Young People Quality Standards and Reform Group,VODAFONE CORPORATE,4000025053,-0.01
DEPARTMENT FOR EDUCATION,DEPARTMENT FOR EDUCATION,25/05/2010,TELEPHONE CHARGES,Corporate and Internal Communications Group,VODAFONE CORPORATE,4000025053,-0.01
DEPARTMENT FOR EDUCATION,DEPARTMENT FOR EDUCATION,25/05/2010,TELEPHONE CHARGES,Communications Strategy and Insight Group,VODAFONE CORPORATE,4000025053,-0.01
DEPARTMENT FOR EDUCATION,DEPARTMENT FOR EDUCATION,25/05/2010,TELEPHONE CHARGES,Private Office ,VODAFONE CORPORATE,4000025053,-0.01
DEPARTMENT FOR EDUCATION,DEPARTMENT FOR EDUCATION,25/05/2010,TELEPHONE CHARGES,Young People Participation and Attainment Group,VODAFONE CORPORATE,4000025053,-0.01
DEPARTMENT FOR EDUCATION,DEPARTMENT FOR EDUCATION,25/05/2010,TELEPHONE CHARGES,Children and Families Early Years Extended Schools and Special Needs,VODAFONE CORPORATE,4000025053,-0.01
DEPARTMENT FOR EDUCATION,DEPARTMENT FOR EDUCATION,25/05/2010,TELEPHONE CHARGES,Commercial Group Schools and Category Management,VODAFONE CORPORATE,4000025053,-0.01
DEPARTMENT FOR EDUCATION,DEPARTMENT FOR EDUCATION,25/05/2010,TELEPHONE CHARGES,Young People  Schools Children and Young People Group,VODAFONE CORPORATE,4000025053,0.01
DEPARTMENT FOR EDUCATION,DEPARTMENT FOR EDUCATION,25/05/2010,TELEPHONE CHARGES,Commercial Group EFM,VODAFONE CORPORATE,4000025053,0.02
DEPARTMENT FOR EDUCATION,DEPARTMENT FOR EDUCATION,25/05/2010,TELEPHONE CHARGES,Commercial Group EFM,VODAFONE CORPORATE,4000025053,0.02
DEPARTMENT FOR EDUCATION,DEPARTMENT FOR EDUCATION,25/05/2010,TELEPHONE CHARGES,School Standards Group,VODAFONE CORPORATE,4000025053,0.07
DEPARTMENT FOR EDUCATION,DEPARTMENT FOR EDUCATION,25/05/2010,TELEPHONE CHARGES,Commercial Group Strategic Functions,VODAFONE CORPORATE,4000025053,0.08
DEPARTMENT FOR EDUCATION,DEPARTMENT FOR EDUCATION,25/05/2010,TELEPHONE CHARGES,School Resources Group,VODAFONE CORPORATE,4000025053,0.14
DEPARTMENT FOR EDUCATION,DEPARTMENT FOR EDUCATION,25/05/2010,TELEPHONE CHARGES,School Resources Group,VODAFONE CORPORATE,4000025053,0.14
DEPARTMENT FOR EDUCATION,DEPARTMENT FOR EDUCATION,25/05/2010,TELEPHONE CHARGES,Commercial Group EFM,VODAFONE CORPORATE,4000025053,0.15
DEPARTMENT FOR EDUCATION,DEPARTMENT FOR EDUCATION,25/05/2010,TELEPHONE CHARGES,Children and Families Supporting Delivery Group,VODAFONE CORPORATE,4000025053,0.16
DEPARTMENT FOR EDUCATION,DEPARTMENT FOR EDUCATION,25/05/2010,TELEPHONE CHARGES,Young People Quality Standards and Reform Group,VODAFONE CORPORATE,4000025053,0.19
DEPARTMENT FOR EDUCATION,DEPARTMENT FOR EDUCATION,25/05/2010,TELEPHONE CHARGES,Commercial Group EFM,VODAFONE CORPORATE,4000025053,0.2
DEPARTMENT FOR EDUCATION,DEPARTMENT FOR EDUCATION,25/05/2010,TELEPHONE CHARGES,Children and Families Supporting Delivery Group,VODAFONE CORPORATE,4000025053,0.22
DEPARTMENT FOR EDUCATION,DEPARTMENT FOR EDUCATION,25/05/2010,TELEPHONE CHARGES,School Formation and Investment Group,VODAFONE CORPORATE,4000025053,0.29
DEPARTMENT FOR EDUCATION,DEPARTMENT FOR EDUCATION,25/05/2010,TELEPHONE CHARGES,Corporate Services Director General,VODAFONE CORPORATE,4000025053,0.3
DEPARTMENT FOR EDUCATION,DEPARTMENT FOR EDUCATION,25/05/2010,TELEPHONE CHARGES,Commercial Group Shared Services and Children and Young People,VODAFONE CORPORATE,4000025053,0.33
DEPARTMENT FOR EDUCATION,DEPARTMENT FOR EDUCATION,25/05/2010,TELEPHONE CHARGES,Children and Families Early Years Extended Schools and Special Needs,VODAFONE CORPORATE,4000025053,0.39
DEPARTMENT FOR EDUCATION,DEPARTMENT FOR EDUCATION,25/05/2010,TELEPHONE CHARGES,Children and Families Safeguarding Group,VODAFONE CORPORATE,4000025053,0.45
DEPARTMENT FOR EDUCATION,DEPARTMENT FOR EDUCATION,25/05/2010,TELEPHONE CHARGES,"Strategic Analysis, Research and Policy Impact Group",VODAFONE CORPORATE,4000025053,0.51
